Service Area,Service Division,Expense Type,Expense Code,Detailed Expense Type,Payment Date,Transaction Number,Amount Exc VAT,Supplier Name
Children and Young Peoples Services,Head of Education and Skills,Supplies and Services,338099,Services,01/04/2021,3851849-39209,"1,664.00",1ST COVERALL COMPANY LTD.
"Regeneration, Economy and Growth",Corporate Property and Land,Third Party Payments,430100,Rendered by Private Contractors,01/04/2021,3851852-IN8254,"1,127.04",ACROL AIR CONDITIONING CO LTD.
Neighbourhoods and Climate Change,Technical Services CM0300,Supplies and Services,304221,Equipment and Materials,01/04/2021,3851854-31152771,600.24,AGGREGATE INDUSTRIES UK LTD.
Neighbourhoods and Climate Change,Technical Services CM0300,Supplies and Services,304221,Equipment and Materials,01/04/2021,3851854-31183960,724.68,AGGREGATE INDUSTRIES UK LTD.
Neighbourhoods and Climate Change,Technical Services CM0300,Supplies and Services,304221,Equipment and Materials,01/04/2021,3851854-31190598,725.90,AGGREGATE INDUSTRIES UK LTD.
"Regeneration, Economy and Growth",Culture Sport and Tourism,Supplies and Services,304259,Equipment and Materials,01/04/2021,3851857-171028,"6,902.00",ALBANY OFFICE EQUIPMENT (WHOLESALE) LTD.
"Regeneration, Economy and Growth",Culture Sport and Tourism,Supplies and Services,336005,Advertising E336,01/04/2021,3851858-8176,"3,850.00",ALLIANCE LEISURE SERVICES LTD.
"Regeneration, Economy and Growth",Corporate Property and Land,Third Party Payments,430100,Rendered by Private Contractors,01/04/2021,3851859-SI18495,"8,809.10",AMBIC LTD.
Children and Young Peoples Services,Head of Education and Skills,Transport,230008,Contract Hire,01/04/2021,3851865-MAR2021-1,"1,461.60",ARMSTRONG`S TAXIS.
Children and Young Peoples Services,Head of Education and Skills,Transport,230034,Contract Hire,01/04/2021,3851865-MAR2021-2,"1,120.00",ARMSTRONG`S TAXIS.
Children and Young Peoples Services,Head of Education and Skills,Transport,230034,Contract Hire,01/04/2021,3851868-825,"1,420.00",AT TAXIS LTD.
Children and Young Peoples Services,Head of Education and Skills,Transport,230008,Contract Hire,01/04/2021,3851869-022,"2,520.00",AUCKLAND TRAVEL.
Children and Young Peoples Services,Head of Education and Skills,Transport,230008,Contract Hire,01/04/2021,3851869-023,"2,680.00",AUCKLAND TRAVEL.
Children and Young Peoples Services,Head of Education and Skills,Transport,230008,Contract Hire,01/04/2021,3851869-024,"3,700.00",AUCKLAND TRAVEL.
Children and Young Peoples Services,Head of Education and Skills,Transport,230008,Contract Hire,01/04/2021,3851869-025,"2,307.20",AUCKLAND TRAVEL.
Neighbourhoods and Climate Change,Environmental Services,Third Party Payments,460305,Contract Payments,01/04/2021,3851870-124538,"1,965.00",AUTOCRAFT EQUIPMENT LTD.
"Regeneration, Economy and Growth",Corporate Property and Land,Supplies and Services,304221,Equipment and Materials,01/04/2021,3851871-2082,"3,312.70",AWR ROOFING & ALUMIN RAINWATER SYSTEMS LTD.
Children and Young Peoples Services,Childrens Services Operational Support,Intangible Assets,917001,Software capitalised licence fees,01/04/2021,3851873-20210124,"108,962.50",AZEUS UK LTD.
Neighbourhoods and Climate Change,Technical Services CM0300,Stock A926,926900,Stock in hand-Inventory system,01/04/2021,3851874-INV144247,556.80,AZTEC CHEMICALS LTD.
Neighbourhoods and Climate Change,Environmental Services,Supplies and Services,304221,Equipment and Materials,01/04/2021,3851876-98394402,"1,324.15",BALL COLEGRAVE LTD.
Neighbourhoods and Climate Change,Environmental Services,Supplies and Services,304221,Equipment and Materials,01/04/2021,3851878-77215,"1,515.50",BARHALE CONSTRUCTION SERVICES LTD.
Resources - C A C,LCTSS,Third Party Payments,440070,Other third party payments E440,01/04/2021,3851879-RES-04-2021-036A,"1,674.00",BARNARD CASTLE TOWN COUNCIL.
"Regeneration, Economy and Growth",Corporate Property and Land,Cap Exp on Grants & Other Financial Assistance (REFCUS),918501,Exp assets not owned by authority,01/04/2021,3851881-SIN043891,"190,419.25",BEAMISH MUSEUM LTD.
Resources - C A C,LCTSS,Third Party Payments,440070,Other third party payments E440,01/04/2021,3851882-RES-04-2021-032A,"1,716.00",BEARPARK PARISH COUNCIL.
Resources - C A C,LCTSS,Third Party Payments,440070,Other third party payments E440,01/04/2021,3851884-RES-04-2021-005A,"5,522.00",BELMONT PARISH COUNCIL.
Children and Young Peoples Services,Head of Education and Skills,Transport,230006,Contract Hire,01/04/2021,3851885-21,"2,186.24",BELMONT TAXIS.
"Regeneration, Economy and Growth",Culture Sport and Tourism,Supplies and Services,336005,Advertising E336,01/04/2021,3851887-INV-0351,"3,630.00",BEYOND DIGITAL SOLUTIONS LTD.
Children and Young Peoples Services,Head of Education and Skills,Transport,230006,Contract Hire,01/04/2021,3851888-F738-MARCH21,"1,632.12",BIG MAMA`S TAXI.
Resources - C A C,LCTSS,Third Party Payments,440070,Other third party payments E440,01/04/2021,3851889-RES-04-2021-060A,"8,755.00",BISHOP AUCKLAND TOWN COUNCIL.
Resources - C A C,LCTSS,Third Party Payments,440070,Other third party payments E440,01/04/2021,3851890-RES-04-2021-109A,"3,382.00",BISHOP MIDDLEHAM PARISH COUNCIL.
Children and Young Peoples Services,Head of Education and Skills,Transport,230008,Contract Hire,01/04/2021,3851891-E013-MARCH,"2,048.18",BLACKHALL TAXIS.
Children and Young Peoples Services,Head of Education and Skills,Third Party Payments,410037,Rendered by Other Local Authorities,01/04/2021,3851893-1072,"3,200.00",BLUE CABIN.
Children and Young Peoples Services,Head of Education and Skills,Transport,230008,Contract Hire,01/04/2021,3851894-32685,"2,904.00",BLUELINE TAXIS.
Children and Young Peoples Services,Head of Education and Skills,Transport,230007,Contract Hire,01/04/2021,3851895-100G,"2,240.00",BOBS TAXIS.
Children and Young Peoples Services,Head of Education and Skills,Transport,230007,Contract Hire,01/04/2021,3851895-100H,"2,960.00",BOBS TAXIS.
Adult and Health Services,Head of Adults,Third Party Payments,478151,Purchase of Care,01/04/2021,3851898-CB28,"2,424.00",BONDCARE WILLINGTON LTD.
Adult and Health Services,Head of Adults,Third Party Payments,479140,Purchase of Care,01/04/2021,3851898-SUSTAINABILITYPAYMENT12/8,"6,688.22",BONDCARE WILLINGTON LTD.
Adult and Health Services,Head of Adults,Third Party Payments,479140,Purchase of Care,01/04/2021,3851899-SUSTAINABILITYPAYMENT12/7,"2,427.60",BONDCARE WILLINGTON LTD.
Resources - C A C,LCTSS,Third Party Payments,440070,Other third party payments E440,01/04/2021,3851900-RES-04-2021-062A,"1,474.00",BOURNMOOR PARISH COUNCIL.
Resources BK0010,Legal & Democratic Services,Premises,120021,Energy Costs,01/04/2021,3851904-24184,728.82,BRADLEY HALL LTD.
"Regeneration, Economy and Growth",Culture Sport and Tourism,Supplies and Services,304259,Equipment and Materials,01/04/2021,3851906-2723,"1,045.00",BRAND THAT T/A WEAR THAT.
Neighbourhoods and Climate Change,Technical Services CM0300,Supplies and Services,304221,Equipment and Materials,01/04/2021,3851908-10196344/92280,558.25,BREEDON TRADING LTD.
Children and Young Peoples Services,Head of Education and Skills,Transport,230008,Contract Hire,01/04/2021,3851909-BZ00367,"1,219.60",BREZ`S TAXIS.
Children and Young Peoples Services,Head of Education and Skills,Transport,230012,Contract Hire,01/04/2021,3851910-7-MARCH21,"2,652.80",BRIAN PURVIS T/A BJ`S TAXIS.
"Regeneration, Economy and Growth",Corporate Property and Land,Third Party Payments,430100,Rendered by Private Contractors,01/04/2021,3851912-INV273353,"2,299.00",BROXAP LTD.
"Regeneration, Economy and Growth",Corporate Property and Land,Third Party Payments,430100,Rendered by Private Contractors,01/04/2021,3851912-INV273449,950.00,BROXAP LTD.
Resources - C A C,LCTSS,Third Party Payments,440070,Other third party payments E440,01/04/2021,3851914-RES-04-2021-051A,525.00,BURNHOPE PARISH COUNCIL.
"Regeneration, Economy and Growth",Transport and Contracted Services,Construction work A908,908105,Construction work,01/04/2021,3851915-27522,"2,733.48",BUS SHELTERS LTD.
Children and Young Peoples Services,Head of Education and Skills,Transport,230008,Contract Hire,01/04/2021,3851918-BIL0229,"1,100.80",CA MUSGROVE.
Adult and Health Services,Head of Adults,Premises,106082,Centrally Controlled Rep and Maint,01/04/2021,3851923-7857,614.38,CATHEDRAL LOCK & SAFE SERVICES LTD.
Resources BK0010,Digital and Customer Services,Supplies and Services,342033,Computers and Communications,01/04/2021,3851924-104218,"5,109.06",CENTRAL POWER SERVICES LTD (CPS).
Resources BK0010,Digital and Customer Services,Supplies and Services,304259,Equipment and Materials,01/04/2021,3851924-104219,972.00,CENTRAL POWER SERVICES LTD (CPS).
Resources BK0010,Digital and Customer Services,Supplies and Services,304259,Equipment and Materials,01/04/2021,3851924-104220,"1,780.00",CENTRAL POWER SERVICES LTD (CPS).
Resources BK0010,Digital and Customer Services,Supplies and Services,342033,Computers and Communications,01/04/2021,3851924-104221,"6,288.00",CENTRAL POWER SERVICES LTD (CPS).
Resources BK0010,Digital and Customer Services,Supplies and Services,342033,Computers and Communications,01/04/2021,3851924-104223,"6,288.00",CENTRAL POWER SERVICES LTD (CPS).
Resources BK0010,Digital and Customer Services,Supplies and Services,304259,Equipment and Materials,01/04/2021,3851924-104224,"2,136.00",CENTRAL POWER SERVICES LTD (CPS).
Resources BK0010,Digital and Customer Services,Supplies and Services,304259,Equipment and Materials,01/04/2021,3851924-104225,"2,492.00",CENTRAL POWER SERVICES LTD (CPS).
Resources - C A C,LCTSS,Third Party Payments,440070,Other third party payments E440,01/04/2021,3851925-RES-04-2021-108A,"6,709.00",CHARTER TRUSTEES FOR THE CITY OF DURHAM.
Children and Young Peoples Services,Head of Education and Skills,Transport,230008,Contract Hire,01/04/2021,3851927-SS18,"2,651.40",CHIPPERS TAXIS.
Children and Young Peoples Services,Childrens Services Operational Support,Supplies and Services,338026,Services,01/04/2021,3851928-AB54,"1,035.00",CHOICES & VOICES CARE LTD.
Resources - C A C,LCTSS,Third Party Payments,440070,Other third party payments E440,01/04/2021,3851933-RES-04-2021-110A,622.00,CITY OF DURHAM PARISH COUNCIL.
Neighbourhoods and Climate Change,Technical Services CM0300,Stock A926,926900,Stock in hand-Inventory system,01/04/2021,3851935-828824,731.89,CMT EQUIPMENT LTD.
Resources - C A C,LCTSS,Third Party Payments,440070,Other third party payments E440,01/04/2021,3851936-RES-04-2021-056A,"3,816.00",COCKFIELD PARISH COUNCIL.
Adult and Health Services,Head of Adults,Third Party Payments,478151,Purchase of Care,01/04/2021,3851937-421R167309,"2,823.48",COMMUNITY INTEGRATED CARE LTD.
Resources - C A C,LCTSS,Third Party Payments,440070,Other third party payments E440,01/04/2021,3851939-RES-04-2021-019A,"20,778.00",CORNFORTH PARISH COUNCIL.
Resources - C A C,LCTSS,Third Party Payments,440070,Other third party payments E440,01/04/2021,3851940-RES-04-2021-042A,"1,083.00",CORNSAY PARISH COUNCIL.
Children and Young Peoples Services,Head of Early Help Inclusion & Vulnerable Children.,Supplies and Services,384700,Miscellaneous Expenses,01/04/2021,3851942-WSFS0012,"3,298.00",COUNTY DURHAM FURNITURE HELP SCHEME (CDFHS).
Adult and Health Services,Head of Adults,Third Party Payments,479140,Purchase of Care,01/04/2021,3851944-SUSTAINABILITYPAYMENT12/3,"88,589.55",CRAIGARRAN LTD.
Adult and Health Services,Head of Adults,Third Party Payments,478151,Purchase of Care,01/04/2021,3851945-0000492119,"2,673.00",CREATIVE SUPPORT LTD.
Resources - C A C,LCTSS,Third Party Payments,440070,Other third party payments E440,01/04/2021,3851946-RES-04-2021-067A,"1,222.00",CROXDALE & HETT PARISH COUNCIL.
Neighbourhoods and Climate Change,Environmental Services,Supplies and Services,338066,Services,01/04/2021,3851948-3441,"1,560.00",CURIOUS 12 LTD.
Children and Young Peoples Services,Head of Education and Skills,Supplies and Services,384540,Miscellaneous Expenses,01/04/2021,3851948-3442,600.00,CURIOUS 12 LTD.
Children and Young Peoples Services,Head of Education and Skills,Transport,230007,Contract Hire,01/04/2021,3851951-FBEC260321,593.73,D IRVING T/A BJ TAXIS.
Adult and Health Services,Head of Adults,Transport,230005,Contract Hire,01/04/2021,3851951-THOR0321,"1,140.72",D IRVING T/A BJ TAXIS.
Children and Young Peoples Services,Head of Education and Skills,Transport,230035,Contract Hire,01/04/2021,3851951-WHIT260321,782.28,D IRVING T/A BJ TAXIS.
Children and Young Peoples Services,Head of Education and Skills,Transport,230006,Contract Hire,01/04/2021,3851952-DPHCMAR2101,"1,002.00",DALELINK PRIVATE HIRE.
Children and Young Peoples Services,Head of Early Help Inclusion & Vulnerable Children.,Supplies and Services,384899,Miscellaneous Expenses,01/04/2021,3851954-3915424,"7,477.00",DARLINGTON BOROUGH COUNCIL.
Children and Young Peoples Services,Head of Education and Skills,Transport,230008,Contract Hire,01/04/2021,3851955-3624,"2,669.80",DAVES MINIBUSES.
Children and Young Peoples Services,Head of Education and Skills,Transport,230008,Contract Hire,01/04/2021,3851955-3626,"1,960.00",DAVES MINIBUSES.
Adult and Health Services,Head of Adults,Transport,230005,Contract Hire,01/04/2021,3851956-F014,726.00,DAVID BRIDDICK T/A COUNDONS TAXIS.
Children and Young Peoples Services,Head of Education and Skills,Transport,230007,Contract Hire,01/04/2021,3851956-H016,571.08,DAVID BRIDDICK T/A COUNDONS TAXIS.
Resources BK0010,Digital and Customer Services,Vehicles Equipment Furniture and Fittings,912701,Computer equipment,01/04/2021,3851959-7402702935,"2,486.54",DELL COMPUTER CORPORATION LTD.
Neighbourhoods and Climate Change,Technical Services CM0300,Construction work A908,908105,Construction work,01/04/2021,3851962-INV-210331-1417,995.00,DHF PRODUCTS LTD.
Neighbourhoods and Climate Change,Technical Services CM0300,Construction work A908,908105,Construction work,01/04/2021,3851962-INV-210331-1418,995.00,DHF PRODUCTS LTD.
Neighbourhoods and Climate Change,Technical Services CM0300,Construction work A908,908105,Construction work,01/04/2021,3851962-INV-210331-1419,"1,975.00",DHF PRODUCTS LTD.
Neighbourhoods and Climate Change,Technical Services CM0300,Construction work A908,908105,Construction work,01/04/2021,3851962-INV-210331-1420,995.00,DHF PRODUCTS LTD.
Neighbourhoods and Climate Change,Environmental Services,Supplies and Services,384974,Miscellaneous Expenses,01/04/2021,3851965-NEI-EXP-03-2021-020,"40,000.00",DRIVER & VEHICLE STANDARDS AGENCY (DVSA).
Resources - C A C,LCTSS,Third Party Payments,440070,Other third party payments E440,01/04/2021,3851968-RES-04-2021-018A,"25,387.00",EASINGTON COLLIERY PARISH COUNCIL.
Resources - C A C,LCTSS,Third Party Payments,440070,Other third party payments E440,01/04/2021,3851972-RES-04-2021-069A,964.00,EDMONDSLEY PARISH COUNCIL.
Adult and Health Services,Head of Adults,Third Party Payments,479140,Purchase of Care,01/04/2021,3851978-SUSTAINABILITYPAYMENT12/4,"40,377.55",ELBA CARE LTD.
Resources - C A C,LCTSS,Third Party Payments,440070,Other third party payments E440,01/04/2021,3851979-RES-04-2021-071A,"1,047.00",ELDON PARISH COUNCIL.
Children and Young Peoples Services,Head of Education and Skills,Third Party Payments,440999,Other third party payments E440,01/04/2021,3851981-BUJG-3VGG,750.00,ELLIOTT & TELFORD GARDEN SERVICES LTD.
Adult and Health Services,Head of Adults,Third Party Payments,478151,Purchase of Care,01/04/2021,3851983-KWVOIDS/PERIOD13-2021,736.96,EMBRACING CARE.
Adult and Health Services,Head of Adults,Third Party Payments,478151,Purchase of Care,01/04/2021,3851984-CONIFERSPERIOD13-2021,"2,644.60",EMBRACING CARE.
Adult and Health Services,Head of Adults,Third Party Payments,478151,Purchase of Care,01/04/2021,3851984-HIGHFIELDP13-2021,"1,920.80",EMBRACING CARE.
Adult and Health Services,Head of Adults,Third Party Payments,478151,Purchase of Care,01/04/2021,3851984-PARKDRIVE13-2021,"2,429.40",EMBRACING CARE.
Adult and Health Services,Head of Adults,Third Party Payments,478151,Purchase of Care,01/04/2021,3851984-TAYLORSTREETP13-2021,"2,583.00",EMBRACING CARE.
Adult and Health Services,Head of Adults,Third Party Payments,478151,Purchase of Care,01/04/2021,3851984-WESTDRIVEP13-2021,"2,468.68",EMBRACING CARE.
Neighbourhoods and Climate Change,Environmental Services,Supplies and Services,304221,Equipment and Materials,01/04/2021,3851987-6884556,"3,425.00",ESE WORLD LTD.
Resources - C A C,LCTSS,Third Party Payments,440070,Other third party payments E440,01/04/2021,3851988-RES-04-2021-028A,"2,391.00",ESH PARISH COUNCIL.
Resources - C A C,LCTSS,Third Party Payments,440070,Other third party payments E440,01/04/2021,3851990-RES-04-2021-024A,657.00,ETHERLEY PARISH COUNCIL.
Resources - C A C,LCTSS,Third Party Payments,440070,Other third party payments E440,01/04/2021,3851991-RES-04-2021-072A,"2,431.00",EVENWOOD & BARONY PARISH COUNCIL.
Dedicated Schools Grant BG0015,DSG High Needs Block,Supplies and Services,384302,Miscellaneous Expenses,01/04/2021,3851993-0000000477,"3,000.00",EXCEL ACADEMY PARTNERSHIP T/A FRAMWELLGATE SCHOOL DURHAM.
"Regeneration, Economy and Growth",Transport and Contracted Services,Supplies and Services,342051,Computers and Communications,01/04/2021,3851994-M21/125,"7,717.00",EXEGESIS SDM LTD.
Resources BK0010,Corporate Finance & Commercial Services,Supplies and Services,342051,Computers and Communications,01/04/2021,3851995-HEX67000714704,"1,575.94",EXPERIAN LTD.
Adult and Health Services,Head of Adults,Third Party Payments,478151,Purchase of Care,01/04/2021,3851996-FHAS504,"1,576.35",FALCON HOUSING ASSOCIATION CIC.
Resources - C A C,LCTSS,Third Party Payments,440070,Other third party payments E440,01/04/2021,3851997-RES-04-2021-001A,"64,822.00",FERRYHILL TOWN COUNCIL.
Resources - C A C,LCTSS,Third Party Payments,440070,Other third party payments E440,01/04/2021,3851999-RES-04-2021-023A,"11,579.00",FISHBURN PARISH COUNCIL.
Resources - C A C,LCTSS,Third Party Payments,440070,Other third party payments E440,01/04/2021,3852003-RES-04-2021-074A,830.00,FRAMWELLGATE MOOR PARISH COUNCIL.
Children and Young Peoples Services,Head of Education and Skills,Transport,230007,Contract Hire,01/04/2021,3852008-22706-4034,"2,762.40",GARNETTS LTD (COACHES).
Children and Young Peoples Services,Head of Education and Skills,Transport,230007,Contract Hire,01/04/2021,3852008-22706-4035,"2,555.60",GARNETTS LTD (COACHES).
Children and Young Peoples Services,Head of Education and Skills,Transport,230007,Contract Hire,01/04/2021,3852008-22706-4036,"2,762.40",GARNETTS LTD (COACHES).
Children and Young Peoples Services,Head of Education and Skills,Transport,230007,Contract Hire,01/04/2021,3852008-22706-4037,"4,991.60",GARNETTS LTD (COACHES).
Children and Young Peoples Services,Head of Education and Skills,Transport,230007,Contract Hire,01/04/2021,3852008-22706-4038,"2,555.60",GARNETTS LTD (COACHES).
Children and Young Peoples Services,Head of Education and Skills,Transport,230007,Contract Hire,01/04/2021,3852008-22710,"6,580.00",GARNETTS LTD (COACHES).
Children and Young Peoples Services,Head of Education and Skills,Transport,230007,Contract Hire,01/04/2021,3852009-ST026,"1,342.00",GARY JACKSON PRIVATE HIRE.
Children and Young Peoples Services,Head of Education and Skills,Transport,230007,Contract Hire,01/04/2021,3852012-07-MARCH21,"2,720.00",GRAHAM WILLIAMS T/A BUS 2 MINIBUS HIRE.
Resources - C A C,LCTSS,Third Party Payments,440070,Other third party payments E440,01/04/2021,3852014-RES-04-2021-002A,"90,152.50",GREAT AYCLIFFE TOWN COUNCIL.
Resources - C A C,LCTSS,Third Party Payments,440070,Other third party payments E440,01/04/2021,3852015-RES-04-2021-076A,968.00,GREAT LUMLEY PARISH COUNCIL.
Resources - C A C,LCTSS,Third Party Payments,440070,Other third party payments E440,01/04/2021,3852016-RES-04-2021-075A,"5,105.00",GREATER WILLINGTON TOWN COUNCIL.
"Regeneration, Economy and Growth",Culture Sport and Tourism,Premises,145023,Cleaning and Domestic Supplies,01/04/2021,3852018-06/115849,895.95,GREENHAM TRADING LTD.
Resources - C A C,LCTSS,Third Party Payments,440070,Other third party payments E440,01/04/2021,3852022-RES-04-2021-048A,"9,386.00",HASWELL PARISH COUNCIL.
Adult and Health Services,Head of Adults,Third Party Payments,479140,Purchase of Care,01/04/2021,3852028-SUSTAINABILITYPAYMENT12/1,"11,119.68",HILL CARE 3 LTD.
Resources - C A C,LCTSS,Third Party Payments,440070,Other third party payments E440,01/04/2021,3852031-RES-04-2021-007A,"45,038.00",HORDEN PARISH COUNCIL.
Resources - C A C,LCTSS,Third Party Payments,440070,Other third party payments E440,01/04/2021,3852032-RES-04-2021-078A,"4,034.00",HUTTON HENRY PARISH COUNCIL.
Adult and Health Services,Head of Adults,Transport,230005,Contract Hire,01/04/2021,3852034-IR2103003,"1,960.00",I & R EXECUTIVE TRAVEL.
"Regeneration, Economy and Growth",Corporate Property and Land,Third Party Payments,430100,Rendered by Private Contractors,01/04/2021,3852036-10636,767.00,INGLEFORD SCAFFOLDING LTD.
"Regeneration, Economy and Growth",Culture Sport and Tourism,Supplies and Services,304259,Equipment and Materials,01/04/2021,3852038-6385,"2,175.00",INGRAM AV LTD T/A INGRAMSOUNDS.
"Regeneration, Economy and Growth",Culture Sport and Tourism,Supplies and Services,304259,Equipment and Materials,01/04/2021,3852038-6386,"4,040.00",INGRAM AV LTD T/A INGRAMSOUNDS.
Children and Young Peoples Services,Head of Education and Skills,Transport,230008,Contract Hire,01/04/2021,3852043-038AC,"2,932.40",JACKIES TAXIS.
Children and Young Peoples Services,Head of Education and Skills,Transport,230006,Contract Hire,01/04/2021,3852044-0797,"1,840.00",JACKSON`S TAXI.
Children and Young Peoples Services,Head of Education and Skills,Transport,230008,Contract Hire,01/04/2021,3852044-0798,"1,870.00",JACKSON`S TAXI.
Children and Young Peoples Services,Head of Education and Skills,Transport,230008,Contract Hire,01/04/2021,3852044-0799,"2,531.95",JACKSON`S TAXI.
Children and Young Peoples Services,Head of Education and Skills,Transport,230008,Contract Hire,01/04/2021,3852044-0800,"2,324.95",JACKSON`S TAXI.
Children and Young Peoples Services,Head of Education and Skills,Transport,230016,Contract Hire,01/04/2021,3852045-84,"1,840.00",JAYS TAXIS/JOHN GARLAND (TAXIS).
Children and Young Peoples Services,Head of Education and Skills,Transport,230008,Contract Hire,01/04/2021,3852045-85,"2,700.00",JAYS TAXIS/JOHN GARLAND (TAXIS).
Children and Young Peoples Services,Head of Education and Skills,Transport,230008,Contract Hire,01/04/2021,3852045-86,"2,430.00",JAYS TAXIS/JOHN GARLAND (TAXIS).
Children and Young Peoples Services,Head of Education and Skills,Transport,230007,Contract Hire,01/04/2021,3852047-INV3047,"1,206.24",JEFF ANDERSON COACHES LTD.
Children and Young Peoples Services,Head of Education and Skills,Transport,230008,Contract Hire,01/04/2021,3852047-INV3048,"1,880.60",JEFF ANDERSON COACHES LTD.
Children and Young Peoples Services,Head of Education and Skills,Transport,230007,Contract Hire,01/04/2021,3852047-INV3050,"2,720.00",JEFF ANDERSON COACHES LTD.
Children and Young Peoples Services,Head of Education and Skills,Transport,230008,Contract Hire,01/04/2021,3852047-INV3051,"2,025.80",JEFF ANDERSON COACHES LTD.
Neighbourhoods and Climate Change,Technical Services CM0300,Stock A926,926900,Stock in hand-Inventory system,01/04/2021,3852048-10104,568.30,JG UNIFORMS.
Children and Young Peoples Services,Childrens Services Operational Support,Supplies and Services,338026,Services,01/04/2021,3852049-20DUR015,922.50,JIM MURDOCH (INDEPENDENT SOCIAL WORKER).
Neighbourhoods and Climate Change,Technical Services CM0300,Supplies and Services,304358,Equipment and Materials,01/04/2021,3852050-31236,906.50,JOHN R BUTTERFIELD LTD.
Neighbourhoods and Climate Change,Technical Services CM0300,Supplies and Services,304358,Equipment and Materials,01/04/2021,3852050-31238,857.00,JOHN R BUTTERFIELD LTD.
Neighbourhoods and Climate Change,Technical Services CM0300,Supplies and Services,304358,Equipment and Materials,01/04/2021,3852050-31241,"1,137.00",JOHN R BUTTERFIELD LTD.
Neighbourhoods and Climate Change,Technical Services CM0300,Supplies and Services,304358,Equipment and Materials,01/04/2021,3852050-31242,"1,137.00",JOHN R BUTTERFIELD LTD.
Neighbourhoods and Climate Change,Technical Services CM0300,Supplies and Services,304358,Equipment and Materials,01/04/2021,3852050-31244,814.00,JOHN R BUTTERFIELD LTD.
Neighbourhoods and Climate Change,Technical Services CM0300,Supplies and Services,304358,Equipment and Materials,01/04/2021,3852050-31245,814.00,JOHN R BUTTERFIELD LTD.
Neighbourhoods and Climate Change,Technical Services CM0300,Supplies and Services,304358,Equipment and Materials,01/04/2021,3852050-31246,814.00,JOHN R BUTTERFIELD LTD.
Neighbourhoods and Climate Change,Technical Services CM0300,Supplies and Services,304358,Equipment and Materials,01/04/2021,3852050-31249,"1,156.75",JOHN R BUTTERFIELD LTD.
Neighbourhoods and Climate Change,Technical Services CM0300,Supplies and Services,304358,Equipment and Materials,01/04/2021,3852050-31256,779.50,JOHN R BUTTERFIELD LTD.
Neighbourhoods and Climate Change,Technical Services CM0300,Supplies and Services,304358,Equipment and Materials,01/04/2021,3852050-31265,639.50,JOHN R BUTTERFIELD LTD.
Neighbourhoods and Climate Change,Technical Services CM0300,Supplies and Services,304358,Equipment and Materials,01/04/2021,3852050-31269,906.50,JOHN R BUTTERFIELD LTD.
Neighbourhoods and Climate Change,Technical Services CM0300,Supplies and Services,304358,Equipment and Materials,01/04/2021,3852050-31270,906.50,JOHN R BUTTERFIELD LTD.
Neighbourhoods and Climate Change,Technical Services CM0300,Supplies and Services,304358,Equipment and Materials,01/04/2021,3852050-31271,923.50,JOHN R BUTTERFIELD LTD.
"Regeneration, Economy and Growth",Culture Sport and Tourism,Supplies and Services,384199,Miscellaneous Expenses,01/04/2021,3852052-29,"2,100.00",JON OLD CONSERVATION.
"Regeneration, Economy and Growth",Culture Sport and Tourism,Supplies and Services,304259,Equipment and Materials,01/04/2021,3852053-101357,791.12,JP LENNARD LTD.
Neighbourhoods and Climate Change,Technical Services CM0300,Stock A926,926900,Stock in hand-Inventory system,01/04/2021,3852056-0104/00323813,"1,145.88",JT DOVE LTD.
Neighbourhoods and Climate Change,Technical Services CM0300,Supplies and Services,304221,Equipment and Materials,01/04/2021,3852056-0107/00321133,994.58,JT DOVE LTD.
"Regeneration, Economy and Growth",Corporate Property and Land,Supplies and Services,304221,Equipment and Materials,01/04/2021,3852056-0113/00315911,883.12,JT DOVE LTD.
"Regeneration, Economy and Growth",Corporate Property and Land,Supplies and Services,304221,Equipment and Materials,01/04/2021,3852056-0113/00315913,"1,272.86",JT DOVE LTD.
"Regeneration, Economy and Growth",Corporate Property and Land,Supplies and Services,304221,Equipment and Materials,01/04/2021,3852056-0120/00310817,"2,235.60",JT DOVE LTD.
Resources - C A C,LCTSS,Third Party Payments,440070,Other third party payments E440,01/04/2021,3852059-RES-04-2021-081A,"1,630.00",KELLOE PARISH COUNCIL.
Neighbourhoods and Climate Change,Technical Services CM0300,Supplies and Services,304358,Equipment and Materials,01/04/2021,3852061-3493,"1,160.00",KEVIN SNOWDON GROUNDWORKS LTD.
Neighbourhoods and Climate Change,Technical Services CM0300,Supplies and Services,304358,Equipment and Materials,01/04/2021,3852061-3645,703.00,KEVIN SNOWDON GROUNDWORKS LTD.
Neighbourhoods and Climate Change,Technical Services CM0300,Supplies and Services,304358,Equipment and Materials,01/04/2021,3852061-3646,"1,054.75",KEVIN SNOWDON GROUNDWORKS LTD.
Neighbourhoods and Climate Change,Technical Services CM0300,Supplies and Services,304358,Equipment and Materials,01/04/2021,3852061-3647,"1,054.75",KEVIN SNOWDON GROUNDWORKS LTD.
Neighbourhoods and Climate Change,Technical Services CM0300,Supplies and Services,304358,Equipment and Materials,01/04/2021,3852061-3648,888.00,KEVIN SNOWDON GROUNDWORKS LTD.
Neighbourhoods and Climate Change,Technical Services CM0300,Supplies and Services,304358,Equipment and Materials,01/04/2021,3852061-3649,888.00,KEVIN SNOWDON GROUNDWORKS LTD.
Neighbourhoods and Climate Change,Technical Services CM0300,Supplies and Services,304358,Equipment and Materials,01/04/2021,3852061-3651,"1,504.63",KEVIN SNOWDON GROUNDWORKS LTD.
Neighbourhoods and Climate Change,Technical Services CM0300,Supplies and Services,304358,Equipment and Materials,01/04/2021,3852061-3652,"1,504.63",KEVIN SNOWDON GROUNDWORKS LTD.
Neighbourhoods and Climate Change,Technical Services CM0300,Supplies and Services,304358,Equipment and Materials,01/04/2021,3852061-3653,888.00,KEVIN SNOWDON GROUNDWORKS LTD.
Neighbourhoods and Climate Change,Technical Services CM0300,Supplies and Services,304358,Equipment and Materials,01/04/2021,3852061-3654,703.00,KEVIN SNOWDON GROUNDWORKS LTD.
Neighbourhoods and Climate Change,Technical Services CM0300,Supplies and Services,304358,Equipment and Materials,01/04/2021,3852061-3655,"1,054.75",KEVIN SNOWDON GROUNDWORKS LTD.
Neighbourhoods and Climate Change,Technical Services CM0300,Supplies and Services,304358,Equipment and Materials,01/04/2021,3852061-3658,753.00,KEVIN SNOWDON GROUNDWORKS LTD.
Neighbourhoods and Climate Change,Technical Services CM0300,Supplies and Services,304358,Equipment and Materials,01/04/2021,3852061-3664,"1,504.63",KEVIN SNOWDON GROUNDWORKS LTD.
Neighbourhoods and Climate Change,Technical Services CM0300,Supplies and Services,304358,Equipment and Materials,01/04/2021,3852061-3665,968.00,KEVIN SNOWDON GROUNDWORKS LTD.
Adult and Health Services,Head of Adults,Third Party Payments,479140,Purchase of Care,01/04/2021,3852063-SUSTAINABILITYPAYMENT12/5,"26,827.65",LAMBTON HOUSE LTD.
Resources - C A C,LCTSS,Third Party Payments,440070,Other third party payments E440,01/04/2021,3852064-RES-04-2021-025A,784.00,LANCHESTER PARISH COUNCIL.
Adult and Health Services,Head of Adults,Third Party Payments,479140,Purchase of Care,01/04/2021,3852068-SUSTAINABILITYPAYMENT12/6,"2,278.12",LEAZES HALL CARE HOME LTD.
Children and Young Peoples Services,Head of Education and Skills,Transport,230008,Contract Hire,01/04/2021,3852078-69,"1,273.05",MALCOLM CARR T/A CARLY CABS.
Children and Young Peoples Services,Head of Education and Skills,Third Party Payments,440999,Other third party payments E440,01/04/2021,3852079-GGCL-ABXY,750.00,MAPLELEAF SHOPFITTERS LTD.
Neighbourhoods and Climate Change,Environmental Services,Cap Exp on Grants & Other Financial Assistance (REFCUS),918501,Exp assets not owned by authority,01/04/2021,3852080-1252,"38,477.96",MARSDEN AES LTD.
Neighbourhoods and Climate Change,Environmental Services,Supplies and Services,338099,Services,01/04/2021,3852083-1138,"1,160.00",MATTHEW ALLISON T/A ARBOR 82.
Neighbourhoods and Climate Change,Environmental Services,Third Party Payments,430100,Rendered by Private Contractors,01/04/2021,3852083-1142,"3,220.00",MATTHEW ALLISON T/A ARBOR 82.
Adult and Health Services,Head of Adults,Supplies and Services,308011,Furniture,01/04/2021,3852084-MAH2220,"1,946.83",MEDEQUIP T/A MANAGE AT HOME.
Neighbourhoods and Climate Change,Environmental Services,Cap Exp on Grants & Other Financial Assistance (REFCUS),918501,Exp assets not owned by authority,01/04/2021,3852088-26/03/2021/6176,634.50,MICROPROPAGATION SERVICES (EM) LTD T/A BEADAMOSS.
Children and Young Peoples Services,Head of Education and Skills,Supplies and Services,384199,Miscellaneous Expenses,01/04/2021,3852089-INV-2757,"1,375.00",MID NITE EXPRESS.
Children and Young Peoples Services,Head of Education and Skills,Supplies and Services,352001,Conference Expenses,01/04/2021,3852092-SI-107388,850.00,MONDALE IT SOLUTIONS LTD.
Resources - C A C,LCTSS,Third Party Payments,440070,Other third party payments E440,01/04/2021,3852093-RES-04-2021-031A,"20,386.00",MONK HESLEDEN PARISH COUNCIL.
Children and Young Peoples Services,Head of Education and Skills,Transport,230006,Contract Hire,01/04/2021,3852094-CEW8-7MARCH21,"1,008.00",MOOR PRIVATE HIRE.
Children and Young Peoples Services,Head of Childrens Social Care,Supplies and Services,336005,Advertising E336,01/04/2021,3852096-1593,"5,909.50",MOSAIC CORPORATE GIFTS LTD.
Children and Young Peoples Services,Head of Childrens Social Care,Supplies and Services,384540,Miscellaneous Expenses,01/04/2021,3852097-MP59,"25,815.00",MOTIF PICTURES LTD.
Children and Young Peoples Services,Head of Education and Skills,Transport,230008,Contract Hire,01/04/2021,3852098-173,"1,297.18",MR A MCKENNA T/A ANDY CABS.
Children and Young Peoples Services,Head of Education and Skills,Transport,230008,Contract Hire,01/04/2021,3852099-DT103-21,666.00,MR CT WALKER T/A CW TAXIS.
Children and Young Peoples Services,Head of Education and Skills,Transport,230008,Contract Hire,01/04/2021,3852099-OAK203-21,"2,376.00",MR CT WALKER T/A CW TAXIS.
Children and Young Peoples Services,Head of Education and Skills,Transport,230034,Contract Hire,01/04/2021,3852100-MARCH21,840.00,MR JOHN ADAMS T/A JA TAXIS (DURHAM).
Children and Young Peoples Services,Head of Education and Skills,Transport,230009,Contract Hire,01/04/2021,3852104-FIN0321,840.00,MR STUART SCOTT T/A AIRPORT CARS DURHAM
Resources - C A C,LCTSS,Third Party Payments,440070,Other third party payments E440,01/04/2021,3852109-RES-04-2021-050A,"21,826.50",MURTON PARISH COUNCIL.
Neighbourhoods and Climate Change,Technical Services CM0300,Supplies and Services,304358,Equipment and Materials,01/04/2021,3852113-NC/143/BW,"2,447.50",NEDCO CONTRACTS (NE) LTD.
Neighbourhoods and Climate Change,Technical Services CM0300,Supplies and Services,304358,Equipment and Materials,01/04/2021,3852113-NC/144/BW,"2,447.50",NEDCO CONTRACTS (NE) LTD.
Neighbourhoods and Climate Change,Technical Services CM0300,Supplies and Services,304999,Equipment and Materials,01/04/2021,3852121-21029,770.00,NORTH EAST TRAFFIC DATA COLLECTION LTD.
Adult and Health Services,Adults Excluded,Supplies and Services,338099,Services,01/04/2021,3852123-24662515,"15,000.00",NORTH TYNESIDE COUNCIL.
Resources BK0010,Finance & Transactional Services,Supplies and Services,338066,Services,01/04/2021,3852124-91444540,"6,511.33",NORTHGATE PUBLIC SERVICES (UK) LTD.
Neighbourhoods and Climate Change,Technical Services CM0300,Third Party Payments,430100,Rendered by Private Contractors,01/04/2021,3852125-219044,718.02,NORTHUMBERLAND COUNTY COUNCIL.
Children and Young Peoples Services,Head of Education and Skills,Third Party Payments,410037,Rendered by Other Local Authorities,01/04/2021,3852127-INV-2724,997.50,NUDGE EDUCATION LTD.
Children and Young Peoples Services,Head of Education and Skills,Third Party Payments,410037,Rendered by Other Local Authorities,01/04/2021,3852127-INV-2725,"15,000.00",NUDGE EDUCATION LTD.
"Regeneration, Economy and Growth",Business Durham CL0850,Supplies and Services,336005,Advertising E336,01/04/2021,3852130-8063,"1,000.00",OPEN BOX MEDIA & COMMUNICATIONS LTD.
Resources BK0010,Digital and Customer Services,Supplies and Services,342051,Computers and Communications,01/04/2021,3852133-1801631,"89,945.27",ORACLE CORPORATION UK LTD.
"Regeneration, Economy and Growth",Corporate Property and Land,Third Party Payments,430100,Rendered by Private Contractors,01/04/2021,3852134-INV-20118-01,"3,013.00",OSG (SPECIALIST CONTRACTORS) LTD.
Resources - C A C,LCTSS,Third Party Payments,440070,Other third party payments E440,01/04/2021,3852138-RES-04-2021-021A,"1,263.00",PELTON PARISH COUNCIL.
Children and Young Peoples Services,Head of Education and Skills,Transport,230008,Contract Hire,01/04/2021,3852142-E035-MARCH,"1,720.00",PETER`S PRIVATE HIRE/PETER BEST.
Children and Young Peoples Services,Head of Education and Skills,Transport,230008,Contract Hire,01/04/2021,3852142-E043-MARCH,"1,798.00",PETER`S PRIVATE HIRE/PETER BEST.
Children and Young Peoples Services,Head of Education and Skills,Transport,230005,Contract Hire,01/04/2021,3852142-F816-MARCH,"1,824.00",PETER`S PRIVATE HIRE/PETER BEST.
Children and Young Peoples Services,Head of Education and Skills,Transport,230008,Contract Hire,01/04/2021,3852142-M023-MARCH,"1,480.00",PETER`S PRIVATE HIRE/PETER BEST.
Children and Young Peoples Services,Head of Education and Skills,Transport,230008,Contract Hire,01/04/2021,3852142-N049-MARCH,"2,594.00",PETER`S PRIVATE HIRE/PETER BEST.
Children and Young Peoples Services,Head of Education and Skills,Transport,230034,Contract Hire,01/04/2021,3852143-3422-MARCH,"1,040.00",PETER`S TAXIS.
Children and Young Peoples Services,Head of Education and Skills,Transport,230006,Contract Hire,01/04/2021,3852143-F789-MARCH,"1,832.00",PETER`S TAXIS.
Children and Young Peoples Services,Head of Education and Skills,Transport,230007,Contract Hire,01/04/2021,3852143-N103-MARCH,"1,640.00",PETER`S TAXIS.
Resources - C A C,LCTSS,Third Party Payments,440070,Other third party payments E440,01/04/2021,3852140-RES-04-2021-003A,"129,323.00",PETERLEE TOWN COUNCIL.
Resources BK0010,Finance & Transactional Services,Supplies and Services,342051,Computers and Communications,01/04/2021,3852145-10182,"1,995.00",PILAT (UK) LTD.
"Regeneration, Economy and Growth",Corporate Property and Land,Premises,106083,Centrally Controlled Rep and Maint,01/04/2021,3852149-13647,"3,250.00",PREMIER CELL FIT T/A LIVEWIRE GATES & DOORS.
"Regeneration, Economy and Growth",Transport and Contracted Services,Third Party Payments,430100,Rendered by Private Contractors,01/04/2021,3852150-141747,"1,101.23",PROTECTOR SECURITY GROUP LTD.
"Regeneration, Economy and Growth",Transport and Contracted Services,Third Party Payments,430109,Rendered by Private Contractors,01/04/2021,3852153-IN16240QTDC,"1,056.00",Q-FREE (BRISTOL) UK LTD.
"Regeneration, Economy and Growth",Transport and Contracted Services,Third Party Payments,430106,Rendered by Private Contractors,01/04/2021,3852154-2116,"4,338.20",R COOPER T/A DC TAXIS.
Adult and Health Services,Adults Excluded,Supplies and Services,338027,Services,01/04/2021,3852156-01082,"1,975.00",RAJ CHAUHAN T/A 3R KNOWLEDGE CONSULTING LTD.
Children and Young Peoples Services,Head of Education and Skills,Supplies and Services,384199,Miscellaneous Expenses,01/04/2021,3852157-INV-0125,"17,794.23",RAW DIGITAL TRAINING LTD.
Adult and Health Services,Head of Adults,Third Party Payments,478151,Purchase of Care,01/04/2021,3852158-SLSINV/00039744,"23,275.99",REAL LIFE OPTIONS.
Adult and Health Services,Head of Adults,Third Party Payments,478151,Purchase of Care,01/04/2021,3852158-SLSINV/00043364,"1,631.60",REAL LIFE OPTIONS.
Adult and Health Services,Head of Adults,Third Party Payments,478151,Purchase of Care,01/04/2021,3852107-15,"2,322.60",REDACTED - PAYMENT TO INDIVIDUAL
Adult and Health Services,Head of Adults,Third Party Payments,478151,Purchase of Care,01/04/2021,3852107-16,"2,035.95",REDACTED - PAYMENT TO INDIVIDUAL
"Regeneration, Economy and Growth",Culture Sport and Tourism,Supplies and Services,304259,Equipment and Materials,01/04/2021,3852166-0000066082,"4,995.00",ROSEHILL POLYMER LTD.
"Regeneration, Economy and Growth",Corporate Property and Land,Third Party Payments,430100,Rendered by Private Contractors,01/04/2021,3852168-30026,"6,540.00",S&G ENGINEERING (NE) LTD.
Resources - C A C,LCTSS,Third Party Payments,440070,Other third party payments E440,01/04/2021,3852169-RES-04-2021-026A,"3,113.00",SACRISTON PARISH COUNCIL.
"Regeneration, Economy and Growth",Culture Sport and Tourism,Premises,106080,Centrally Controlled Rep and Maint,01/04/2021,3852174-99674877,675.00,SCHNEIDER ELECTRIC LTD.
Resources - C A C,LCTSS,Third Party Payments,440070,Other third party payments E440,01/04/2021,3852176-RES-04-2021-041A,"81,943.50",SEAHAM TOWN COUNCIL.
Adult and Health Services,Commissioning inc Supporting People,Third Party Payments,470103,Purchase of Care,01/04/2021,3852181-GRW-1270705,622.02,SHAFTESBURY CARE GROUP LTD.
Resources - C A C,LCTSS,Third Party Payments,440070,Other third party payments E440,01/04/2021,3852183-RES-04-2021-029A,"3,566.00",SHERBURN VILLAGE PARISH COUNCIL.
Resources - C A C,LCTSS,Third Party Payments,440070,Other third party payments E440,01/04/2021,3852184-RES-04-2021-010A,"33,254.50",SHILDON TOWN COUNCIL.
Resources - C A C,LCTSS,Third Party Payments,440070,Other third party payments E440,01/04/2021,3852186-RES-04-2021-053A,709.00,SHOTTON PARISH COUNCIL.
Children and Young Peoples Services,Head of Education and Skills,Transport,230010,Contract Hire,01/04/2021,3852187-210310,"2,941.01",SHOTTON PRIVATE HIRE.
Children and Young Peoples Services,Head of Education and Skills,Transport,230008,Contract Hire,01/04/2021,3852187-210311,"2,580.00",SHOTTON PRIVATE HIRE.
Children and Young Peoples Services,Head of Education and Skills,Transport,230034,Contract Hire,01/04/2021,3852187-21039,"3,000.00",SHOTTON PRIVATE HIRE.
Neighbourhoods and Climate Change,Environmental Services,Third Party Payments,430113,Rendered by Private Contractors,01/04/2021,3852188-172969,"1,845.36",SHOWSEC INTERNATIONAL LTD.
Children and Young Peoples Services,Head of Education and Skills,Supplies and Services,372009,Subscriptions E372,01/04/2021,3852192-20862,"1,495.00",SISRA LTD.
Neighbourhoods and Climate Change,Environmental Services,Supplies and Services,338027,Services,01/04/2021,3852194-0000874303,"1,403.36",SOCOTEC UK LTD.
Resources - C A C,LCTSS,Third Party Payments,440070,Other third party payments E440,01/04/2021,3852197-RES-04-2021-020A,"11,213.00",SOUTH HETTON PARISH COUNCIL.
Children and Young Peoples Services,Head of Education and Skills,Supplies and Services,338027,Services,01/04/2021,3852198-JANUARY2021,"1,166.00",SPECIALISED TRANSPORT ADVISORY NETWORK.
"Regeneration, Economy and Growth",Corporate Property and Land,Third Party Payments,430100,Rendered by Private Contractors,01/04/2021,3852200-7465,"1,874.00",ST ASTIER LTD.
Adult and Health Services,Head of Adults,Third Party Payments,479140,Purchase of Care,01/04/2021,3852201-SUSTAINABILITYPAYMENT12/2,"1,788.51",ST PHILIPS CARE LTD.
"Regeneration, Economy and Growth",Culture Sport and Tourism,Supplies and Services,304259,Equipment and Materials,01/04/2021,3852202-00377945,"4,974.13",STAGE ELECTRICS PARTNERSHIP LTD.
Resources - C A C,LCTSS,Third Party Payments,440070,Other third party payments E440,01/04/2021,3852206-RES-04-2021-096A,"51,461.00",STANLEY TOWN COUNCIL.*
Children and Young Peoples Services,Head of Education and Skills,Transport,230034,Contract Hire,01/04/2021,3852208-5289-MARCH,"1,161.00",STEPHEN BRACE T/A JAFFA`S TAXI (SEAHAM).
Children and Young Peoples Services,Head of Education and Skills,Transport,230034,Contract Hire,01/04/2021,3852209-064,"1,743.40",STEVEN HENDERSON T/A HENDYS TAXIS.
Children and Young Peoples Services,Head of Education and Skills,Transport,230006,Contract Hire,01/04/2021,3852209-065,"1,140.00",STEVEN HENDERSON T/A HENDYS TAXIS.
Children and Young Peoples Services,Head of Education and Skills,Supplies and Services,372009,Subscriptions E372,01/04/2021,3852212-4100719128,"1,867.50",STORYTIME MAGAZINE LTD.
"Regeneration, Economy and Growth",Corporate Property and Land,Third Party Payments,430100,Rendered by Private Contractors,01/04/2021,3852213-180548,"3,654.35",SUPATINT LTD T/A SUPATINT WINDOW FILMS & BLINDS.
"Regeneration, Economy and Growth",Corporate Property and Land,Third Party Payments,430100,Rendered by Private Contractors,01/04/2021,3852213-180554,"3,083.16",SUPATINT LTD T/A SUPATINT WINDOW FILMS & BLINDS.
"Regeneration, Economy and Growth",Corporate Property and Land,Third Party Payments,430100,Rendered by Private Contractors,01/04/2021,3852213-180558,"1,097.00",SUPATINT LTD T/A SUPATINT WINDOW FILMS & BLINDS.
Adult and Health Services,Head of Adults,Third Party Payments,478151,Purchase of Care,01/04/2021,3852214-658002526,"1,379.52",SWANTON CARE & COMMUNITY (AUTISM NORTH) LTD.
Resources BK0010,Digital and Customer Services,Supplies and Services,304303,Equipment and Materials,01/04/2021,3852216-136226,530.84,SWITCHSHOP LTD.
"Regeneration, Economy and Growth",Transport and Contracted Services,Third Party Payments,430109,Rendered by Private Contractors,01/04/2021,3852217-PSI002914,"3,972.00",TAGMASTER UK LTD.
Neighbourhoods and Climate Change,Technical Services CM0300,Supplies and Services,304221,Equipment and Materials,01/04/2021,3852218-9043243521,623.70,TARMAC TRADING LTD.
Neighbourhoods and Climate Change,Technical Services CM0300,Supplies and Services,304221,Equipment and Materials,01/04/2021,3852218-9043251475,816.90,TARMAC TRADING LTD.
Neighbourhoods and Climate Change,Environmental Services,Supplies and Services,328041,Clothing uniforms and laundry E328,01/04/2021,3852221-NSIN00052875,"4,850.82",THOMAS OWEN & SONS (NEWCASTLE) LTD.
Resources - C A C,LCTSS,Third Party Payments,440070,Other third party payments E440,01/04/2021,3852222-RES-04-2021-098A,"9,254.00",THORNLEY PARISH COUNCIL.
Neighbourhoods and Climate Change,Technical Services CM0300,Stock A926,926900,Stock in hand-Inventory system,01/04/2021,3852223-114752,"5,116.00",TOFCO LTD.
"Regeneration, Economy and Growth",Corporate Property and Land,Supplies and Services,304221,Equipment and Materials,01/04/2021,3852224-34411,"1,095.00",TOTAL PUMP SOLUTIONS LTD.
Resources - C A C,LCTSS,Third Party Payments,440070,Other third party payments E440,01/04/2021,3852225-RES-04-2021-099A,"3,093.00",TOW LAW TOWN COUNCIL.
Children and Young Peoples Services,Childrens Services Operational Support,Supplies and Services,338089,Services,01/04/2021,3852226-1123,"4,800.00",TRACEY HILL TRAINING & CONSULTANCY LTD.
Resources - C A C,LCTSS,Third Party Payments,440070,Other third party payments E440,01/04/2021,3852228-RES-04-2021-054A,"11,662.00",TRIMDON FOUNDRY PARISH COUNCIL.
Resources - C A C,LCTSS,Third Party Payments,440070,Other third party payments E440,01/04/2021,3852229-RES-04-2021-022A,"13,287.50",TRIMDON PARISH COUNCIL.
Neighbourhoods and Climate Change,Technical Services CM0300,Supplies and Services,304221,Equipment and Materials,01/04/2021,3852233-219895,"1,290.58",TYNEDALE ROADSTONE LTD.
Neighbourhoods and Climate Change,Technical Services CM0300,Supplies and Services,304221,Equipment and Materials,01/04/2021,3852233-219898,"1,219.30",TYNEDALE ROADSTONE LTD.
Neighbourhoods and Climate Change,Technical Services CM0300,Supplies and Services,304221,Equipment and Materials,01/04/2021,3852233-219994,989.72,TYNEDALE ROADSTONE LTD.
Neighbourhoods and Climate Change,Technical Services CM0300,Supplies and Services,304221,Equipment and Materials,01/04/2021,3852233-220062,971.19,TYNEDALE ROADSTONE LTD.
Neighbourhoods and Climate Change,Technical Services CM0300,Supplies and Services,304221,Equipment and Materials,01/04/2021,3852233-220171,869.03,TYNEDALE ROADSTONE LTD.
Neighbourhoods and Climate Change,Technical Services CM0300,Supplies and Services,304221,Equipment and Materials,01/04/2021,3852233-220177,"1,546.00",TYNEDALE ROADSTONE LTD.
Neighbourhoods and Climate Change,Technical Services CM0300,Supplies and Services,304221,Equipment and Materials,01/04/2021,3852233-220351,981.00,TYNEDALE ROADSTONE LTD.
Neighbourhoods and Climate Change,Technical Services CM0300,Supplies and Services,304221,Equipment and Materials,01/04/2021,3852233-220398,533.42,TYNEDALE ROADSTONE LTD.
Resources - C A C,LCTSS,Third Party Payments,440070,Other third party payments E440,01/04/2021,3852237-RES-04-2021-100A,"1,927.00",URPETH PARISH COUNCIL.
Neighbourhoods and Climate Change,Technical Services CM0300,Supplies and Services,304358,Equipment and Materials,01/04/2021,3852242-48984,"4,973.00",W MARLEY AGRICULTURAL CONTRACTORS LTD.
Neighbourhoods and Climate Change,Technical Services CM0300,Supplies and Services,304358,Equipment and Materials,01/04/2021,3852242-49008,"2,490.00",W MARLEY AGRICULTURAL CONTRACTORS LTD.
Neighbourhoods and Climate Change,Technical Services CM0300,Supplies and Services,304358,Equipment and Materials,01/04/2021,3852242-49057,"2,590.00",W MARLEY AGRICULTURAL CONTRACTORS LTD.
Resources - C A C,LCTSS,Third Party Payments,440070,Other third party payments E440,01/04/2021,3852243-RES-04-2021-013A,813.00,WALDRIDGE PARISH COUNCIL.
Adult and Health Services,Central/Other,Supplies and Services,338043,Services,01/04/2021,3852245-02002770,897.00,WEIGHTMANS LLP.
Adult and Health Services,Central/Other,Supplies and Services,338043,Services,01/04/2021,3852245-02003564,585.00,WEIGHTMANS LLP.
Resources - C A C,LCTSS,Third Party Payments,440070,Other third party payments E440,01/04/2021,3852247-RES-04-2021-101A,"3,431.00",WEST AUCKLAND PARISH COUNCIL.
Adult and Health Services,Head of Adults,Third Party Payments,479140,Purchase of Care,01/04/2021,3852248-SUSTAINABILITYPAYMENT12/9,"46,588.62",WEST LODGE CARE HOMES LTD.
Resources - C A C,LCTSS,Third Party Payments,440070,Other third party payments E440,01/04/2021,3852249-RES-04-2021-102A,"3,123.00",WEST RAINTON PARISH COUNCIL.
Resources - C A C,LCTSS,Third Party Payments,440070,Other third party payments E440,01/04/2021,3852250-RES-04-2021-055A,"12,672.00",WHEATLEY HILL PARISH COUNCIL.
Resources - C A C,LCTSS,Third Party Payments,440070,Other third party payments E440,01/04/2021,3852253-RES-04-2021-044A,"6,371.00",WINGATE PARISH COUNCIL.
Resources - C A C,LCTSS,Third Party Payments,440070,Other third party payments E440,01/04/2021,3852256-RES-04-2021-106A,"1,631.00",WITTON GILBERT PARISH COUNCIL.
Resources - C A C,LCTSS,Third Party Payments,440070,Other third party payments E440,01/04/2021,3852259-RES-04-2021-014A,541.00,WOLSINGHAM PARISH COUNCIL.
Children and Young Peoples Services,Head of Education and Skills,Supplies and Services,372009,Subscriptions E372,01/04/2021,3852262-7001/47,"1,197.60",WORTH PUBLISHING LTD.
Children and Young Peoples Services,Head of Childrens Social Care,Supplies and Services,338099,Services,01/04/2021,3852263-43823,"1,214.25",WRIXON SECURITY SERVICES LTD T/A WRIXON CARE.
Neighbourhoods and Climate Change,Technical Services CM0300,Third Party Payments,460350,Contract Payments,01/04/2021,3852264-0000029824,"1,028.97",WYBONE LTD.
Resources BK0010,Digital and Customer Services,Supplies and Services,342051,Computers and Communications,01/04/2021,3852265-KY70072,"23,100.00",XMA LTD.
Resources BK0010,Digital and Customer Services,Supplies and Services,342051,Computers and Communications,01/04/2021,3852265-KY72866,"207,900.00",XMA LTD.
Neighbourhoods and Climate Change,Technical Services CM0300,Supplies and Services,304358,Equipment and Materials,01/04/2021,3852267-8490,"2,730.00",YOULL CONSTRUCTION LTD.
Neighbourhoods and Climate Change,Technical Services CM0300,Supplies and Services,304358,Equipment and Materials,01/04/2021,3852267-8493,"2,730.00",YOULL CONSTRUCTION LTD.
Neighbourhoods and Climate Change,Technical Services CM0300,Supplies and Services,304358,Equipment and Materials,01/04/2021,3852267-8494,511.88,YOULL CONSTRUCTION LTD.
Neighbourhoods and Climate Change,Technical Services CM0300,Supplies and Services,304358,Equipment and Materials,01/04/2021,3852267-8495,622.50,YOULL CONSTRUCTION LTD.
Neighbourhoods and Climate Change,Technical Services CM0300,Supplies and Services,304358,Equipment and Materials,01/04/2021,3852267-8508,"2,240.00",YOULL CONSTRUCTION LTD.
Neighbourhoods and Climate Change,Technical Services CM0300,Stock A926,926900,Stock in hand-Inventory system,06/04/2021,3852270-39471,"1,830.00",1ST COVERALL COMPANY LTD.
Children and Young Peoples Services,Head of Education and Skills,Supplies and Services,338099,Services,06/04/2021,3852271-39213,"1,362.50",1ST COVERALL COMPANY LTD.
Neighbourhoods and Climate Change,Technical Services CM0300,Supplies and Services,304221,Equipment and Materials,06/04/2021,3852273-31198559,806.42,AGGREGATE INDUSTRIES UK LTD.
Resources BK0010,Digital and Customer Services,Supplies and Services,332029,Printing Stationery and Gen Off Exps,06/04/2021,3852274-150876,618.49,AGNE LTD T/A ALPHAGRAPHICS.
Resources BK0010,Business Support,Supplies and Services,338099,Services,06/04/2021,3852275-C50522,"2,461.88",ALLIED PUBLICITY SERVICES (MANCHESTER) LTD.
Adult and Health Services,Commissioning inc Supporting People,Third Party Payments,479111,Purchase of Care,06/04/2021,3852277-INV-12370,"4,420.00",APM CLEANING LTD.
Neighbourhoods and Climate Change,Environmental Services,Premises,108099,Service Repairs and Maintenance,06/04/2021,3852279-INV001221,975.00,ASSOCIATED MAINTENANCE SERVICES LTD.
"Regeneration, Economy and Growth",Corporate Property and Land,Supplies and Services,304221,Equipment and Materials,06/04/2021,3852280-26280,730.50,ATWELL INTERNATIONAL LTD.
Children and Young Peoples Services,Head of Education and Skills,Fees,901002,Consultants fees 901002,06/04/2021,3852282-40034,"1,000.00",BGP CONSULTING LTD T/A BILLINGHURST GEORGE & PARTNERS.
"Regeneration, Economy and Growth",Transport and Contracted Services,Supplies and Services,384199,Miscellaneous Expenses,06/04/2021,3852287-INV-1056,"3,000.00",CHALLENGE FOR CHANGE LTD T/A LOVE TO RIDE.
"Regeneration, Economy and Growth",Transport and Contracted Services,Supplies and Services,332047,Printing Stationery and Gen Off Exps,06/04/2021,3852291-36628,610.95,COUNT UP LTD INCORPORATING PIXL ID.
Children and Young Peoples Services,Head of Early Help Inclusion & Vulnerable Children.,Supplies and Services,324500,Provisions E324,06/04/2021,3852293-23705,"13,620.37",CREATIVE MANAGEMENT SERVICES LTD.
Children and Young Peoples Services,Head of Education and Skills,Supplies and Services,338027,Services,06/04/2021,3852294-17,547.00,DAVID FIRTH T/A BARDON MILL EDUCATIONAL CONSULTANTS.
Neighbourhoods and Climate Change,Environmental Services,Supplies and Services,304221,Equipment and Materials,06/04/2021,3852295-186350,"3,986.00",DAVID OGILVIE ENGINEERING LTD.
Resources BK0010,Digital and Customer Services,Supplies and Services,342033,Computers and Communications,06/04/2021,3852297-7402699699,"5,140.00",DELL COMPUTER CORPORATION LTD.
Neighbourhoods and Climate Change,Technical Services CM0300,Construction work A908,908105,Construction work,06/04/2021,3852300-5100GV004966,"2,513.33",DURHAM MARRIOTT ROYAL COUNTY HOTEL.
Adult and Health Services,Head of Adults,Third Party Payments,478151,Purchase of Care,06/04/2021,3852304-LDCONTPERIOD13-2021,"3,572.80",EMBRACING CARE.
"Regeneration, Economy and Growth",Corporate Property and Land,Construction work A908,908105,Construction work,06/04/2021,3852305-SOLAR-FARMAPRIL21,"6,860.85",GREEN TEAM PARTNERSHIP.
"Regeneration, Economy and Growth",Corporate Property and Land,Supplies and Services,304221,Equipment and Materials,06/04/2021,3852309-4694421,"4,787.64",HEADLAM (FLOORCOVERING DISTRIBUTORS) LTD.
"Regeneration, Economy and Growth",Culture Sport and Tourism,Premises,135005,Water Services,06/04/2021,3852315-14810,"36,141.25",IMPALA ESTATES LTD.
Adult and Health Services,Commissioning inc Supporting People,Supplies and Services,377015,County Durham Development,06/04/2021,3852316-41353462,"5,650.00",INDEED IRELAND OPERATIONS LTD.
Neighbourhoods and Climate Change,Technical Services CM0300,Third Party Payments,460006,Contract Payments,06/04/2021,3852317-INV-20620,"23,800.00",INTEGRATED SKILLS LTD.
Neighbourhoods and Climate Change,Technical Services CM0300,Third Party Payments,460006,Contract Payments,06/04/2021,3852317-INV-20621,"11,750.00",INTEGRATED SKILLS LTD.
Children and Young Peoples Services,Head of Childrens Social Care,Supplies and Services,338044,Services,06/04/2021,3852324-WH-1-250221,"1,640.73",KENMOR PSYCHOLOGICAL CONSULTANCY (KPC) LTD.
"Regeneration, Economy and Growth",Corporate Property and Land,Construction work A908,908105,Construction work,06/04/2021,3852325-10005530,"3,438,672.05",KIER PROPERTY DEVELOPMENTS LTD.
Neighbourhoods and Climate Change,Environmental Services,Cap Exp on Grants & Other Financial Assistance (REFCUS),918501,Exp assets not owned by authority,06/04/2021,3852329-1253,"60,740.00",MARSDEN AES LTD.
Neighbourhoods and Climate Change,Environmental Services,Supplies and Services,304259,Equipment and Materials,06/04/2021,3852333-INVHE58691,909.89,NE TRUCK SPARES LTD (NETS).
"Regeneration, Economy and Growth",Transport and Contracted Services,Construction work A908,908105,Construction work,06/04/2021,3852334-1278417,"4,491.64",NETWORK RAIL.
"Regeneration, Economy and Growth",Development and Housing,Supplies and Services,336005,Advertising E336,06/04/2021,3852335-36266278,766.29,NEWSQUEST (YORKSHIRE & NORTH EAST) LTD.
"Regeneration, Economy and Growth",Business Durham CL0850,Construction work A908,908105,Construction work,06/04/2021,3852337-DI20358903,840.21,NORTHERN POWERGRID (NORTHEAST) LTD.
"Regeneration, Economy and Growth",Development and Housing,Construction work A908,908105,Construction work,06/04/2021,3852339-NEI-EXP-04-2021-003,"4,947.00",NORTHUMBRIAN WATER LTD.
Neighbourhoods and Climate Change,Environmental Services,Transport,215005,Running Costs of Vehicles,06/04/2021,3852340-733590,"12,530.34",OIL NRG LTD.
Neighbourhoods and Climate Change,Environmental Services,Transport,215022,Running Costs of Vehicles,06/04/2021,3852340-734712,"4,757.10",OIL NRG LTD.
Neighbourhoods and Climate Change,Technical Services CM0300,Third Party Payments,430128,Rendered by Private Contractors,06/04/2021,3852342-4100711238/230221,"1,882.50",P FEATHERSTONE & SON.
Adult and Health Services,Commissioning inc Supporting People,Third Party Payments,442002,Supporting People E442,06/04/2021,3852343-A432QUARTERS3AND4,"10,612.00",PACT HOUSE STANLEY.
Neighbourhoods and Climate Change,Technical Services CM0300,Stock A926,926900,Stock in hand-Inventory system,06/04/2021,3852344-XL268481,863.14,PARK ELECTRICAL DISTRIBUTORS LTD.
Children and Young Peoples Services,Head of Education and Skills,Supplies and Services,312009,Newspapers books and periodicals E312,06/04/2021,3852345-1821925,"1,028.01",PETERS LTD.
Dedicated Schools Grant BG0015,DSG High Needs Block,Supplies and Services,304259,Equipment and Materials,06/04/2021,3852347-2592859243,"7,019.27",PHONAK UK LTD.
Dedicated Schools Grant BG0015,DSG High Needs Block,Supplies and Services,304259,Equipment and Materials,06/04/2021,3852347-2592900149,"4,056.86",PHONAK UK LTD.
"Regeneration, Economy and Growth",Corporate Property and Land,Third Party Payments,430100,Rendered by Private Contractors,06/04/2021,3852352-37614,"1,100.00",R PARKER WALL & FLOOR TILING CONTRACTOR.
"Regeneration, Economy and Growth",Corporate Property and Land,Third Party Payments,430100,Rendered by Private Contractors,06/04/2021,3852353-INV-0092,"29,331.00",REPROTEC UK LTD.
Neighbourhoods and Climate Change,Environmental Services,Supplies and Services,304259,Equipment and Materials,06/04/2021,3852354-00014233,"4,250.00",ROBERT ACTON PRODUCT DEVELOPMENTS.
"Regeneration, Economy and Growth",Business Durham CL0850,Supplies and Services,340001,Postages E340,06/04/2021,3852355-1802341303,787.00,ROYAL MAIL GROUP PLC.
Neighbourhoods and Climate Change,Environmental Services,Third Party Payments,430113,Rendered by Private Contractors,06/04/2021,3852359-172962,"5,541.93",SHOWSEC INTERNATIONAL LTD.
Neighbourhoods and Climate Change,Environmental Services,Third Party Payments,430113,Rendered by Private Contractors,06/04/2021,3852359-172966,"5,308.34",SHOWSEC INTERNATIONAL LTD.
Resources BK0010,Digital and Customer Services,Supplies and Services,342051,Computers and Communications,06/04/2021,3852360-INV02886950,"2,697.01",SOFTCAT LTD.
Adult and Health Services,Commissioning inc Supporting People,Supplies and Services,377015,County Durham Development,06/04/2021,3852362-INV-5403,"9,949.00",STEVE DAVIDSON ADVERTISING LTD T/A SD ADVERTISING LTD.
"Regeneration, Economy and Growth",Corporate Property and Land,Supplies and Services,304221,Equipment and Materials,06/04/2021,3852364-560864,"2,004.60",T CROSSLING & CO LTD.
"Regeneration, Economy and Growth",Corporate Property and Land,Supplies and Services,304221,Equipment and Materials,06/04/2021,3852364-562259,941.98,T CROSSLING & CO LTD.
"Regeneration, Economy and Growth",Business Durham CL0850,Supplies and Services,338027,Services,06/04/2021,3852366-INV-250,500.00,TEAL VISION LTD.
"Regeneration, Economy and Growth",Development and Housing,Supplies and Services,336005,Advertising E336,06/04/2021,3852367-14007,927.50,TEESDALE MERCURY LTD.
Neighbourhoods and Climate Change,Technical Services CM0300,Supplies and Services,304221,Equipment and Materials,06/04/2021,3852369-36331,620.00,TODDS HIGHWAY MAINTENANCE LTD.
Neighbourhoods and Climate Change,Technical Services CM0300,Supplies and Services,304221,Equipment and Materials,06/04/2021,3852371-219691,927.49,TYNEDALE ROADSTONE LTD.
Adult and Health Services,Public Health CC0450,Third Party Payments,460803,Contract Payments,06/04/2021,3852372-10753537,"7,500.00",UNIVERSITY OF TEESSIDE.
"Regeneration, Economy and Growth",Business Durham CL0850,Supplies and Services,338066,Services,06/04/2021,3852373-638,"11,602.80",URBAN FORESIGHT LTD.
Neighbourhoods and Climate Change,Technical Services CM0300,Third Party Payments,430100,Rendered by Private Contractors,06/04/2021,3852374-INV07031,"8,066.77",VELOCITY (UK) LTD.
Neighbourhoods and Climate Change,Technical Services CM0300,Third Party Payments,430100,Rendered by Private Contractors,06/04/2021,3852374-INV07032,"7,202.48",VELOCITY (UK) LTD.
Neighbourhoods and Climate Change,Technical Services CM0300,Third Party Payments,430100,Rendered by Private Contractors,06/04/2021,3852374-INV07033,"4,609.58",VELOCITY (UK) LTD.
"Regeneration, Economy and Growth",Corporate Property and Land,Supplies and Services,304083,Equipment and Materials,06/04/2021,3852375-5807771,739.82,WATERLOGIC GB LTD.*
Resources BK0010,Finance & Transactional Services,Intangible Assets,917003,Software capitalised implementation fees,06/04/2021,3852378-IN0171688,"1,250.38",ZELLIS UK LTD.
Dedicated Schools Grant BG0015,DSG Early Years Block,Transfer Payments,510030,School Children,07/04/2021,3853005-24823,778.05,REDACTED - PAYMENT TO INDIVIDUAL
Neighbourhoods and Climate Change,Technical Services CM0300,Third Party Payments,430128,Rendered by Private Contractors,07/04/2021,3853155-C434,"6,060.00",REDACTED - PAYMENT TO INDIVIDUAL
Neighbourhoods and Climate Change,Technical Services CM0300,Third Party Payments,430128,Rendered by Private Contractors,07/04/2021,3853155-C435,"3,660.00",REDACTED - PAYMENT TO INDIVIDUAL
Neighbourhoods and Climate Change,Technical Services CM0300,Third Party Payments,430128,Rendered by Private Contractors,07/04/2021,3853155-C436,"1,620.00",REDACTED - PAYMENT TO INDIVIDUAL
Children and Young Peoples Services,Head of Education and Skills,Transport,230008,Contract Hire,07/04/2021,3852939-0497,"1,929.84",ABC & OUSTON CABS.
Children and Young Peoples Services,Head of Education and Skills,Transport,230012,Contract Hire,07/04/2021,3852939-0498,"1,860.00",ABC & OUSTON CABS.
Children and Young Peoples Services,Head of Education and Skills,Transport,230008,Contract Hire,07/04/2021,3852939-O499,"2,125.42",ABC & OUSTON CABS.
Dedicated Schools Grant BG0015,DSG Early Years Block,Transfer Payments,510032,School Children,07/04/2021,3852941-24561,"1,794.98",ADVENTURE VALLEY DAY NURSERY LTD.
Dedicated Schools Grant BG0015,DSG Early Years Block,Transfer Payments,510030,School Children,07/04/2021,3852941-24798,"8,905.98",ADVENTURE VALLEY DAY NURSERY LTD.
Adult and Health Services,Adults Excluded,Supplies and Services,338066,Services,07/04/2021,3852942-AW21-0015,"22,200.00",AFFINITY WORKS LTD.
Neighbourhoods and Climate Change,Environmental Services,Third Party Payments,430100,Rendered by Private Contractors,07/04/2021,3852943-212R/21/92224,"1,130.00",ALAN M RANSON FUNERAL SERVICE.
Neighbourhoods and Climate Change,Environmental Services,Third Party Payments,430100,Rendered by Private Contractors,07/04/2021,3852943-213R/21/92227,"1,010.00",ALAN M RANSON FUNERAL SERVICE.
Neighbourhoods and Climate Change,Environmental Services,Third Party Payments,430100,Rendered by Private Contractors,07/04/2021,3852943-225R/21/92226,"1,230.00",ALAN M RANSON FUNERAL SERVICE.
Neighbourhoods and Climate Change,Environmental Services,Third Party Payments,430100,Rendered by Private Contractors,07/04/2021,3852943-226R/21/92225,"1,230.00",ALAN M RANSON FUNERAL SERVICE.
Children and Young Peoples Services,Head of Early Help Inclusion & Vulnerable Children.,Supplies and Services,308011,Furniture,07/04/2021,3852944-171012,760.00,ALBANY OFFICE EQUIPMENT (WHOLESALE) LTD.
Children and Young Peoples Services,Head of Early Help Inclusion & Vulnerable Children.,Supplies and Services,308011,Furniture,07/04/2021,3852944-171041,500.00,ALBANY OFFICE EQUIPMENT (WHOLESALE) LTD.
Neighbourhoods and Climate Change,Environmental Services,Third Party Payments,430100,Rendered by Private Contractors,07/04/2021,3852946-81081,"2,382.84",ALLAN FULLER LTD.
Resources BK0010,Legal & Democratic Services,Supplies and Services,338102,Services,07/04/2021,3852952-008751,"4,480.00",ANALYTICAL SERVICES INTERNATIONAL LTD.
Resources BK0010,Legal & Democratic Services,Supplies and Services,338102,Services,07/04/2021,3852952-008753,"1,120.00",ANALYTICAL SERVICES INTERNATIONAL LTD.
Adult and Health Services,Commissioning inc Supporting People,Third Party Payments,479111,Purchase of Care,07/04/2021,3852953-1971000,"3,297.48",ANCHOR HANOVER GROUP.
Dedicated Schools Grant BG0015,DSG Early Years Block,Transfer Payments,510032,School Children,07/04/2021,3852959-24563,"1,282.13",ANN SMITH T/A ANN`S ANGELS.
Children and Young Peoples Services,Head of Education and Skills,Transport,235005,Public Transport,07/04/2021,3852963-117712,"84,238.00",ARRIVA DURHAM COUNTY LTD.
Children and Young Peoples Services,Head of Education and Skills,Transport,230007,Contract Hire,07/04/2021,3852965-828,"1,797.50",AT TAXIS LTD.
"Regeneration, Economy and Growth",Corporate Property and Land,Third Party Payments,430100,Rendered by Private Contractors,07/04/2021,3852967-2080,"3,580.00",AWR ROOFING & ALUMIN RAINWATER SYSTEMS LTD.
Dedicated Schools Grant BG0015,DSG Early Years Block,Transfer Payments,510032,School Children,07/04/2021,3852968-24565,"3,589.95",AYCLIFFE DAY NURSERY.
Dedicated Schools Grant BG0015,DSG Early Years Block,Transfer Payments,510030,School Children,07/04/2021,3852968-24811,"3,385.20",AYCLIFFE DAY NURSERY.
Neighbourhoods and Climate Change,Technical Services CM0300,Supplies and Services,338066,Services,07/04/2021,3852969-CSUKOU/INV/103910,"18,407.58",BALFOUR BEATTY LIVING PLACES LTD.*
Neighbourhoods and Climate Change,Environmental Services,Third Party Payments,430100,Rendered by Private Contractors,07/04/2021,3852971-46061354,"2,175.19",BELL TRUCK SALES LTD T/A BELL TRUCK & VAN.
"Regeneration, Economy and Growth",Transport and Contracted Services,Supplies and Services,304245,Equipment and Materials,07/04/2021,3852972-DHP0103,"1,294.50",BERNICIA GROUP LTD.*
Adult and Health Services,Head of Adults,Supplies and Services,338365,Services,07/04/2021,3852972-DHP0I02,"18,268.13",BERNICIA GROUP LTD.*
Adult and Health Services,Commissioning inc Supporting People,Third Party Payments,442002,Supporting People E442,07/04/2021,3852977-1970988,"16,448.04",BID SERVICES.
Dedicated Schools Grant BG0015,DSG Early Years Block,Transfer Payments,510032,School Children,07/04/2021,3852979-24566,"1,487.27",BISHOP AUCKLAND COLLEGE NURSERY.
Dedicated Schools Grant BG0015,DSG Early Years Block,Transfer Payments,510030,School Children,07/04/2021,3852979-24814,"9,661.62",BISHOP AUCKLAND COLLEGE NURSERY.
Dedicated Schools Grant BG0015,DSG Early Years Block,Transfer Payments,510032,School Children,07/04/2021,3852980-24544,"13,846.95",BISHOP CHADWICK CATHOLIC EDUCATION TRUST (NSCET).
Dedicated Schools Grant BG0015,DSG Early Years Block,Transfer Payments,510030,School Children,07/04/2021,3852980-24766,"22,850.10",BISHOP CHADWICK CATHOLIC EDUCATION TRUST (NSCET).
Dedicated Schools Grant BG0015,DSG Early Years Block,Transfer Payments,510030,School Children,07/04/2021,3852981-24941,"6,076.98",BISHOP HOGARTH CATHOLIC EDUCATION TRUST.
Dedicated Schools Grant BG0015,DSG Early Years Block,Transfer Payments,510030,School Children,07/04/2021,3852982-24714,"11,817.00",BISHOP IAN RAMSEY C OF E PRIMARY SCHOOL.
Dedicated Schools Grant BG0015,DSG Early Years Block,Transfer Payments,510030,School Children,07/04/2021,3852983-24939,"7,467.53",BISHOP WILKINSON CE TRUST T/A ST BENET`S RCVA PRIMARY SCHOOL.
Dedicated Schools Grant BG0015,DSG Early Years Block,Transfer Payments,510030,School Children,07/04/2021,3852984-24778,"16,742.70",BISHOP WILKINSON CE TRUST T/A ST JOSEPHS CATHOLIC PRIMARY PRE-SCHOOL.
Dedicated Schools Grant BG0015,DSG Early Years Block,Transfer Payments,510032,School Children,07/04/2021,3852985-24539,"14,616.23",BLUE SKY CHILDCARE.
Dedicated Schools Grant BG0015,DSG Early Years Block,Transfer Payments,510030,School Children,07/04/2021,3852985-24760,"42,166.80",BLUE SKY CHILDCARE.
Children and Young Peoples Services,Head of Education and Skills,Transport,230008,Contract Hire,07/04/2021,3852986-34176,"1,482.00",BLUELINE TAXIS.
Adult and Health Services,Head of Adults,Transport,230005,Contract Hire,07/04/2021,3852986-34177,"1,001.88",BLUELINE TAXIS.
Children and Young Peoples Services,Head of Education and Skills,Transport,230007,Contract Hire,07/04/2021,3852986-34178,"1,608.50",BLUELINE TAXIS.
Dedicated Schools Grant BG0015,DSG Early Years Block,Transfer Payments,510030,School Children,07/04/2021,3852988-24715,"9,182.73",BOW SCHOOL & NURSERY.
Dedicated Schools Grant BG0015,DSG Early Years Block,Transfer Payments,510032,School Children,07/04/2021,3852989-24503,769.28,BOWES PRE SCHOOL.
Dedicated Schools Grant BG0015,DSG Early Years Block,Transfer Payments,510030,School Children,07/04/2021,3852989-24716,"2,762.08",BOWES PRE SCHOOL.
Dedicated Schools Grant BG0015,DSG Early Years Block,Transfer Payments,510032,School Children,07/04/2021,3852991-24568,"4,444.70",BRIGHT STAR NURSERY.
Dedicated Schools Grant BG0015,DSG Early Years Block,Transfer Payments,510030,School Children,07/04/2021,3852991-24817,"13,063.44",BRIGHT STAR NURSERY.
Dedicated Schools Grant BG0015,DSG Early Years Block,Transfer Payments,510032,School Children,07/04/2021,3852992-24505,"6,154.20",BUDDIES CHILDCARE CENTRE.
Dedicated Schools Grant BG0015,DSG Early Years Block,Transfer Payments,510030,School Children,07/04/2021,3852992-24718,"17,770.84",BUDDIES CHILDCARE CENTRE.
Dedicated Schools Grant BG0015,DSG Early Years Block,Transfer Payments,510032,School Children,07/04/2021,3852993-24569,"1,538.55",BURNOPFIELD DAY CARE.
Dedicated Schools Grant BG0015,DSG Early Years Block,Transfer Payments,510030,School Children,07/04/2021,3852993-24818,"6,807.94",BURNOPFIELD DAY CARE.
"Regeneration, Economy and Growth",Transport and Contracted Services,Construction work A908,908105,Construction work,07/04/2021,3852994-27573,"2,733.48",BUS SHELTERS LTD.
Dedicated Schools Grant BG0015,DSG Early Years Block,Transfer Payments,510032,School Children,07/04/2021,3852995-24506,"9,231.30",BUSY BEARS (DURHAM) LTD.
Dedicated Schools Grant BG0015,DSG Early Years Block,Transfer Payments,510030,School Children,07/04/2021,3852995-24719,"81,739.13",BUSY BEARS (DURHAM) LTD.
Dedicated Schools Grant BG0015,DSG Early Years Block,Transfer Payments,510032,School Children,07/04/2021,3852996-24507,"7,692.75",BUSY BEES (DURHAM) LTD.
Dedicated Schools Grant BG0015,DSG Early Years Block,Transfer Payments,510030,School Children,07/04/2021,3852996-24720,"131,388.08",BUSY BEES (DURHAM) LTD.
Dedicated Schools Grant BG0015,DSG Early Years Block,Transfer Payments,510032,School Children,07/04/2021,3852997-24508,"1,538.55",BUTTERFLIES DAY CARE.
Dedicated Schools Grant BG0015,DSG Early Years Block,Transfer Payments,510030,School Children,07/04/2021,3852997-24721,"8,613.54",BUTTERFLIES DAY CARE.
Dedicated Schools Grant BG0015,DSG Early Years Block,Transfer Payments,510032,School Children,07/04/2021,3852998-24570,"2,564.25",BYERLEY ROAD PRE SCHOOL.
Dedicated Schools Grant BG0015,DSG Early Years Block,Transfer Payments,510030,School Children,07/04/2021,3852998-24819,"7,234.50",BYERLEY ROAD PRE SCHOOL.
Adult and Health Services,Commissioning inc Supporting People,Supplies and Services,342225,Computers and Communications,07/04/2021,3853000-TIIF,772.81,CAREWELL (HEALTH CARE) LTD.
Neighbourhoods and Climate Change,Technical Services CM0300,Third Party Payments,430128,Rendered by Private Contractors,07/04/2021,3853004-1790,"3,762.50",CARRICK CONTRACTORS LTD.
Dedicated Schools Grant BG0015,DSG Early Years Block,Transfer Payments,510032,School Children,07/04/2021,3853006-24574,"1,282.13",CASTLE KINDERGARTEN LTD.
Dedicated Schools Grant BG0015,DSG Early Years Block,Transfer Payments,510030,School Children,07/04/2021,3853006-24825,"6,029.89",CASTLE KINDERGARTEN LTD.
Dedicated Schools Grant BG0015,DSG Early Years Block,Transfer Payments,510032,School Children,07/04/2021,3853007-24573,"4,872.08",CASTLE KINDERGARTEN LTD.
Dedicated Schools Grant BG0015,DSG Early Years Block,Transfer Payments,510030,School Children,07/04/2021,3853007-24824,"9,508.20",CASTLE KINDERGARTEN LTD.
Dedicated Schools Grant BG0015,DSG Early Years Block,Transfer Payments,510030,School Children,07/04/2021,3853008-24826,"46,473.57",CASTLE VIEW PRIVATE DAY NURSERY LTD.
Resources BK0010,Digital and Customer Services,Vehicles Equipment Furniture and Fittings,912701,Computer equipment,07/04/2021,3853012-PSINV03109018,"72,445.44",CDW LTD.
Children and Young Peoples Services,Head of Education and Skills,Transport,230006,Contract Hire,07/04/2021,3853015-07-MARCH21,819.00,CHAPMAN TRAVEL.
Neighbourhoods and Climate Change,Environmental Services,Transport,215012,Running Costs of Vehicles,07/04/2021,3853017-195697,794.50,CHEVIN FLEET SOLUTIONS LTD.
Children and Young Peoples Services,Head of Education and Skills,Transport,230008,Contract Hire,07/04/2021,3853019-CW18,"1,711.44",CHIPPERS TAXIS.
Neighbourhoods and Climate Change,Technical Services CM0300,Fees,901002,Consultants fees 901002,07/04/2021,3853020-6425/111343,"1,925.00",CHRIS BLANDFORD ASSOCIATES LTD.
Children and Young Peoples Services,Head of Education and Skills,Transport,230003,Contract Hire,07/04/2021,3853023-47194,"2,490.00",CHRISTOPHER JAMES GRIERSON T/A GRIERSONS COACHES.
Children and Young Peoples Services,Head of Education and Skills,Transport,230003,Contract Hire,07/04/2021,3853023-47195,"4,665.00",CHRISTOPHER JAMES GRIERSON T/A GRIERSONS COACHES.
Children and Young Peoples Services,Head of Education and Skills,Transport,230003,Contract Hire,07/04/2021,3853023-47200,"3,220.00",CHRISTOPHER JAMES GRIERSON T/A GRIERSONS COACHES.
Children and Young Peoples Services,Head of Education and Skills,Transport,230003,Contract Hire,07/04/2021,3853023-47201,"3,320.00",CHRISTOPHER JAMES GRIERSON T/A GRIERSONS COACHES.
Children and Young Peoples Services,Head of Education and Skills,Transport,230003,Contract Hire,07/04/2021,3853023-47202,"3,420.00",CHRISTOPHER JAMES GRIERSON T/A GRIERSONS COACHES.
Children and Young Peoples Services,Head of Education and Skills,Transport,230003,Contract Hire,07/04/2021,3853023-47204,837.20,CHRISTOPHER JAMES GRIERSON T/A GRIERSONS COACHES.
Children and Young Peoples Services,Head of Education and Skills,Transport,230008,Contract Hire,07/04/2021,3853026-M011-AA0321,"1,931.20",CJ`S EXECUTIVE TRAVEL LTD.
Dedicated Schools Grant BG0015,DSG Early Years Block,Transfer Payments,510032,School Children,07/04/2021,3853033-24510,"2,307.83",CLEVER CLOGS DAY NURSERIES LTD.
Dedicated Schools Grant BG0015,DSG Early Years Block,Transfer Payments,510030,School Children,07/04/2021,3853033-24724,"37,420.50",CLEVER CLOGS DAY NURSERIES LTD.
Dedicated Schools Grant BG0015,DSG Early Years Block,Transfer Payments,510032,School Children,07/04/2021,3853034-24511,"5,384.93",CLEVER CLOGS DAY NURSERY (DURHAM) LTD.
Dedicated Schools Grant BG0015,DSG Early Years Block,Transfer Payments,510030,School Children,07/04/2021,3853034-24725,"58,731.08",CLEVER CLOGS DAY NURSERY (DURHAM) LTD.
Dedicated Schools Grant BG0015,DSG Early Years Block,Transfer Payments,510030,School Children,07/04/2021,3853035-24726,"39,686.40",CLEVES CROSS ACADEMY.
"Regeneration, Economy and Growth",Development and Housing,Fees,901002,Consultants fees 901002,07/04/2021,3853039-INV-3024,"1,350.00",COAST CONSULTING ENGINEERS LTD.
Dedicated Schools Grant BG0015,DSG Early Years Block,Transfer Payments,510030,School Children,07/04/2021,3853040-24837,"2,583.36",CONKERS LIFE LTD (NURSERY SCHOOL).
Resources BK0010,Legal & Democratic Services,Supplies and Services,338025,Services,07/04/2021,3853038-S45008-0I165,660.00,CO-OPERATIVE FUNERAL CARE.
Dedicated Schools Grant BG0015,DSG Early Years Block,Transfer Payments,510032,School Children,07/04/2021,3853041-24527,"20,001.15",CORECARE NA LTD.
Dedicated Schools Grant BG0015,DSG Early Years Block,Transfer Payments,510030,School Children,07/04/2021,3853041-24744,"13,481.33",CORECARE NA LTD.
Dedicated Schools Grant BG0015,DSG Early Years Block,Transfer Payments,510030,School Children,07/04/2021,3853043-24839,"7,319.81",COUNDON & LEEHOLME EARLY YEARS CENTRE LTD.
Dedicated Schools Grant BG0015,DSG Early Years Block,Transfer Payments,510032,School Children,07/04/2021,3853044-24490,854.70,COUNDON & LEEHOLME EARLY YEARS CENTRE LTD.
Dedicated Schools Grant BG0015,DSG Early Years Block,Transfer Payments,510032,School Children,07/04/2021,3853044-24582,"5,128.50",COUNDON & LEEHOLME EARLY YEARS CENTRE LTD.
Dedicated Schools Grant BG0015,DSG Early Years Block,Transfer Payments,510032,School Children,07/04/2021,3853045-24583,512.85,CRAGHEAD CHILDCARE CENTRE.
Dedicated Schools Grant BG0015,DSG Early Years Block,Transfer Payments,510032,School Children,07/04/2021,3853045-24584,"2,051.40",CRAGHEAD CHILDCARE CENTRE.
Dedicated Schools Grant BG0015,DSG Early Years Block,Transfer Payments,510030,School Children,07/04/2021,3853045-24840,"1,429.84",CRAGHEAD CHILDCARE CENTRE.
Dedicated Schools Grant BG0015,DSG Early Years Block,Transfer Payments,510030,School Children,07/04/2021,3853045-24841,"7,966.24",CRAGHEAD CHILDCARE CENTRE.
Adult and Health Services,Commissioning inc Supporting People,Third Party Payments,442002,Supporting People E442,07/04/2021,3853046-1970980,"19,868.48",CREATIVE SUPPORT LTD.
Children and Young Peoples Services,Head of Childrens Social Care,Supplies and Services,338099,Services,07/04/2021,316075-SI-1016350,"3,400.00",CRITICAL TORTOISE LTD.
Resources BK0010,Legal & Democratic Services,Supplies and Services,338042,Services,07/04/2021,3853048-PGM/0ZSPJ/068298/001,"1,100.00",CYGNET FAMILY LAW.
Children and Young Peoples Services,Head of Education and Skills,Transport,230008,Contract Hire,07/04/2021,3853049-DI202103,"1,986.00",D&I TAXIS.
Dedicated Schools Grant BG0015,DSG Early Years Block,Transfer Payments,510032,School Children,07/04/2021,3853052-24512,"3,513.02",DAWN TILL DUSK CHILDCARE.
Dedicated Schools Grant BG0015,DSG Early Years Block,Transfer Payments,510032,School Children,07/04/2021,3853053-24559,"2,307.83",DAYPARK LTD T/A YELLOW WELLIES.
Dedicated Schools Grant BG0015,DSG Early Years Block,Transfer Payments,510030,School Children,07/04/2021,3853053-24796,"37,539.45",DAYPARK LTD T/A YELLOW WELLIES.
Dedicated Schools Grant BG0015,DSG Early Years Block,Transfer Payments,510032,School Children,07/04/2021,3853054-24558,"13,846.95",DAYPARK LTD T/A YELLOW WELLIES.
Dedicated Schools Grant BG0015,DSG Early Years Block,Transfer Payments,510030,School Children,07/04/2021,3853054-24795,"29,832.08",DAYPARK LTD T/A YELLOW WELLIES.
Dedicated Schools Grant BG0015,DSG Early Years Block,Transfer Payments,510032,School Children,07/04/2021,3853059-24514,"2,307.83",DEERNESS VALLEY NURSERY SCHOOL.
Dedicated Schools Grant BG0015,DSG Early Years Block,Transfer Payments,510030,School Children,07/04/2021,3853059-24729,"16,953.30",DEERNESS VALLEY NURSERY SCHOOL.
Neighbourhoods and Climate Change,Environmental Services,Third Party Payments,430100,Rendered by Private Contractors,07/04/2021,3853061-404256,662.06,DENNIS EAGLE LTD.
Dedicated Schools Grant BG0015,DSG Early Years Block,Transfer Payments,510032,School Children,07/04/2021,3853064-24515,"5,384.93",DO RE MI DAY NURSERY.
Dedicated Schools Grant BG0015,DSG Early Years Block,Transfer Payments,510030,School Children,07/04/2021,3853064-24730,"44,805.15",DO RE MI DAY NURSERY.
Resources BK0010,Legal & Democratic Services,Supplies and Services,338101,Services,07/04/2021,3853067-3/2021,"13,500.00",DR DCA SENADHIRA.
Dedicated Schools Grant BG0015,DSG Early Years Block,Transfer Payments,510030,School Children,07/04/2021,3853068-24868,"2,429.05",DURHAM & NEWCASTLE DIOCESAN LEARNING TRUST T/A INGLETON CE PRIMARY SCHOOL
Dedicated Schools Grant BG0015,DSG Early Years Block,Transfer Payments,510030,School Children,07/04/2021,3853069-24942,"7,050.42",DURHAM & NEWCASTLE DIOCESAN LEARNING TRUST T/A STANHOPE BARRINGTON C OF E PRIMARY SCHOOL.
Adult and Health Services,Commissioning inc Supporting People,Third Party Payments,441001,Supporting People E441,07/04/2021,3853070-1970977,"25,243.12",DURHAM ACTION ON SINGLE HOUSING LTD.
"Regeneration, Economy and Growth",Business Durham CL0850,Supplies and Services,338066,Services,07/04/2021,3853072-30502,"12,850.00",DURHAM COUNTY CRICKET CLUB HOLDINGS LTD T/A DURHAM CRICKET.
Dedicated Schools Grant BG0015,DSG Early Years Block,Transfer Payments,510032,School Children,07/04/2021,3853075-24590,"3,077.10",EARLY LEARNERS PRIVATE DAY NURSERY.
Dedicated Schools Grant BG0015,DSG Early Years Block,Transfer Payments,510030,School Children,07/04/2021,3853075-24852,"1,620.48",EARLY LEARNERS PRIVATE DAY NURSERY.
Dedicated Schools Grant BG0015,DSG Early Years Block,Transfer Payments,510032,School Children,07/04/2021,3853076-24637,"2,307.83",EAST DURHAM COLLEGE.
Dedicated Schools Grant BG0015,DSG Early Years Block,Transfer Payments,510030,School Children,07/04/2021,3853076-24921,"8,268.00",EAST DURHAM COLLEGE.
Adult and Health Services,Commissioning inc Supporting People,Third Party Payments,441001,Supporting People E441,07/04/2021,3853077-1970986,"5,483.40",EAST DURHAM COMMUNITY INITIATIVES LTD.
Children and Young Peoples Services,Head of Education and Skills,Transport,230008,Contract Hire,07/04/2021,3853078-1076,"2,916.80",EAST DURHAM TAXIS.
Children and Young Peoples Services,Head of Education and Skills,Transport,230008,Contract Hire,07/04/2021,3853078-1077,"3,839.00",EAST DURHAM TAXIS.
Children and Young Peoples Services,Head of Education and Skills,Transport,230008,Contract Hire,07/04/2021,3853078-1078,"2,542.50",EAST DURHAM TAXIS.
Children and Young Peoples Services,Head of Education and Skills,Transport,230006,Contract Hire,07/04/2021,3853078-1079,"2,720.00",EAST DURHAM TAXIS.
Children and Young Peoples Services,Head of Education and Skills,Transport,230008,Contract Hire,07/04/2021,3853078-1080,"2,499.20",EAST DURHAM TAXIS.
Children and Young Peoples Services,Head of Education and Skills,Transport,230007,Contract Hire,07/04/2021,3853078-1081,"2,600.00",EAST DURHAM TAXIS.
Children and Young Peoples Services,Head of Education and Skills,Transport,230006,Contract Hire,07/04/2021,3853078-1083,"1,320.00",EAST DURHAM TAXIS.
Adult and Health Services,Head of Adults,Transport,230005,Contract Hire,07/04/2021,3853078-1087,770.00,EAST DURHAM TAXIS.
Neighbourhoods and Climate Change,Environmental Services,Supplies and Services,304221,Equipment and Materials,07/04/2021,3853079-0000062816,"2,140.00",EAST RIDING HORTICULTURE LTD.
Dedicated Schools Grant BG0015,DSG Early Years Block,Transfer Payments,510032,School Children,07/04/2021,3853080-24567,"1,794.98",EDEN ACADEMY TRUST LTD T/A BLUEBELL MEADOW PRIMARY SCHOOL.
Dedicated Schools Grant BG0015,DSG Early Years Block,Transfer Payments,510030,School Children,07/04/2021,3853080-24815,"5,415.54",EDEN ACADEMY TRUST LTD T/A BLUEBELL MEADOW PRIMARY SCHOOL.
Dedicated Schools Grant BG0015,DSG Early Years Block,Transfer Payments,510032,School Children,07/04/2021,3853081-24591,"3,589.95",EDEN GARDEN NURSERY.
Dedicated Schools Grant BG0015,DSG Early Years Block,Transfer Payments,510030,School Children,07/04/2021,3853081-24853,"9,725.63",EDEN GARDEN NURSERY.
Dedicated Schools Grant BG0015,DSG Early Years Block,Transfer Payments,510030,School Children,07/04/2021,3853082-24831,"12,815.40",EDEN LEARNING TRUST T/A CHILTON ACADEMY.
"Regeneration, Economy and Growth",Corporate Property and Land,Supplies and Services,304221,Equipment and Materials,07/04/2021,3853083-059-279370,941.70,EDMUNDSON ELECTRICAL LTD.
Dedicated Schools Grant BG0015,DSG High Needs Block,Supplies and Services,384302,Miscellaneous Expenses,07/04/2021,3853085-CPDC2020-21/3,"13,500.00",EDUCATION PLUS NE LTD.
Dedicated Schools Grant BG0015,DSG High Needs Block,Supplies and Services,384302,Miscellaneous Expenses,07/04/2021,3853085-EPDC2020-21/3,"22,500.00",EDUCATION PLUS NE LTD.
Dedicated Schools Grant BG0015,DSG High Needs Block,Supplies and Services,384302,Miscellaneous Expenses,07/04/2021,3853085-NPDC2020-21/3,"45,000.00",EDUCATION PLUS NE LTD.
Dedicated Schools Grant BG0015,DSG High Needs Block,Supplies and Services,384302,Miscellaneous Expenses,07/04/2021,3853085-SWPDC2020-21/3,"40,500.00",EDUCATION PLUS NE LTD.
Dedicated Schools Grant BG0015,DSG Early Years Block,Transfer Payments,510032,School Children,07/04/2021,3853094-24594,"6,154.20",EMERALDS LITTLE GEMS DAYCARE LTD.
Dedicated Schools Grant BG0015,DSG Early Years Block,Transfer Payments,510032,School Children,07/04/2021,3853094-24595,"8,974.88",EMERALDS LITTLE GEMS DAYCARE LTD.
Dedicated Schools Grant BG0015,DSG Early Years Block,Transfer Payments,510030,School Children,07/04/2021,3853094-24855,"8,474.70",EMERALDS LITTLE GEMS DAYCARE LTD.
Dedicated Schools Grant BG0015,DSG Early Years Block,Transfer Payments,510030,School Children,07/04/2021,3853094-24856,"21,290.10",EMERALDS LITTLE GEMS DAYCARE LTD.
Dedicated Schools Grant BG0015,DSG Early Years Block,Transfer Payments,510032,School Children,07/04/2021,3853097-24516,"11,539.13",EXPLORERS DAY CARE.
Dedicated Schools Grant BG0015,DSG Early Years Block,Transfer Payments,510030,School Children,07/04/2021,3853097-24731,"102,936.60",EXPLORERS DAY CARE.
"Regeneration, Economy and Growth",Transport and Contracted Services,Third Party Payments,430106,Rendered by Private Contractors,07/04/2021,3853098-PPT3671-2021,"5,181.68",FERRYHILL VILLAGE TRAVEL.
Dedicated Schools Grant BG0015,DSG Early Years Block,Transfer Payments,510032,School Children,07/04/2021,3853099-24560,512.85,FIRST FOUR KIDZ CHILDCARE.
Dedicated Schools Grant BG0015,DSG Early Years Block,Transfer Payments,510030,School Children,07/04/2021,3853099-24797,797.55,FIRST FOUR KIDZ CHILDCARE.
Dedicated Schools Grant BG0015,DSG Early Years Block,Transfer Payments,510032,School Children,07/04/2021,3853100-24517,"6,923.48",FIRST STEPS NURSERY.
Dedicated Schools Grant BG0015,DSG Early Years Block,Transfer Payments,510030,School Children,07/04/2021,3853100-24732,"23,634.00",FIRST STEPS NURSERY.
Dedicated Schools Grant BG0015,DSG Early Years Block,Transfer Payments,510032,School Children,07/04/2021,3853101-24518,"2,307.83",FLOWERPOTS NURSERY.
Dedicated Schools Grant BG0015,DSG Early Years Block,Transfer Payments,510030,School Children,07/04/2021,3853101-24733,"10,541.70",FLOWERPOTS NURSERY.
Adult and Health Services,Commissioning inc Supporting People,Third Party Payments,442002,Supporting People E442,07/04/2021,3853102-1971018,"44,482.44",FOUNDATION.
Children and Young Peoples Services,Head of Education and Skills,Transport,230009,Contract Hire,07/04/2021,3853104-8-MAR21,"1,440.00",G ANGHEL T/A A TAXI.
Dedicated Schools Grant BG0015,DSG Early Years Block,Transfer Payments,510030,School Children,07/04/2021,3853109-24859,"9,650.55",GIANT STEPS LTD.
Dedicated Schools Grant BG0015,DSG Early Years Block,Transfer Payments,510032,School Children,07/04/2021,3853110-24597,"1,794.98",GIANT STEPS LTD.
Dedicated Schools Grant BG0015,DSG Early Years Block,Transfer Payments,510030,School Children,07/04/2021,3853110-24861,"2,990.81",GIANT STEPS LTD.
Dedicated Schools Grant BG0015,DSG Early Years Block,Transfer Payments,510032,School Children,07/04/2021,3853111-24596,"3,589.95",GIANT STEPS LTD.
Dedicated Schools Grant BG0015,DSG Early Years Block,Transfer Payments,510030,School Children,07/04/2021,3853111-24860,"12,255.75",GIANT STEPS LTD.
"Regeneration, Economy and Growth",Transport and Contracted Services,Supplies and Services,384540,Miscellaneous Expenses,07/04/2021,3853113-1258309,"2,000.00",GLOBAL RADIO SERVICES LTD.
"Regeneration, Economy and Growth",Transport and Contracted Services,Supplies and Services,384540,Miscellaneous Expenses,07/04/2021,3853113-1258310,"5,499.82",GLOBAL RADIO SERVICES LTD.
Children and Young Peoples Services,Head of Education and Skills,Transport,230007,Contract Hire,07/04/2021,3853114-90/275-APRIL,864.00,GRAHAMS MOTOR SERVICES LTD.
Children and Young Peoples Services,Head of Education and Skills,Transport,230007,Contract Hire,07/04/2021,3853114-90/275-JULY,936.00,GRAHAMS MOTOR SERVICES LTD.
Children and Young Peoples Services,Head of Education and Skills,Transport,230007,Contract Hire,07/04/2021,3853114-90/275-JUNE,"1,584.00",GRAHAMS MOTOR SERVICES LTD.
Children and Young Peoples Services,Head of Education and Skills,Transport,230007,Contract Hire,07/04/2021,3853114-90/275-MAY,"1,080.00",GRAHAMS MOTOR SERVICES LTD.
Children and Young Peoples Services,Head of Education and Skills,Transport,230007,Contract Hire,07/04/2021,3853114-90/276-DEC,"1,287.00",GRAHAMS MOTOR SERVICES LTD.
Children and Young Peoples Services,Head of Education and Skills,Transport,230007,Contract Hire,07/04/2021,3853114-90/276-NOV,"1,881.00",GRAHAMS MOTOR SERVICES LTD.
Children and Young Peoples Services,Head of Education and Skills,Transport,230007,Contract Hire,07/04/2021,3853114-90/276-OCT,"1,584.00",GRAHAMS MOTOR SERVICES LTD.
Children and Young Peoples Services,Head of Education and Skills,Transport,230007,Contract Hire,07/04/2021,3853114-90/276-SEPT,"2,079.00",GRAHAMS MOTOR SERVICES LTD.
Dedicated Schools Grant BG0015,DSG Early Years Block,Transfer Payments,510032,School Children,07/04/2021,3853115-24598,"1,538.55",GREEN LANE NURSERY & CHILDCARE CENTRE.
Dedicated Schools Grant BG0015,DSG Early Years Block,Transfer Payments,510030,School Children,07/04/2021,3853115-24862,"14,329.58",GREEN LANE NURSERY & CHILDCARE CENTRE.
Neighbourhoods and Climate Change,Technical Services CM0300,Stock A926,926900,Stock in hand-Inventory system,07/04/2021,3853116-06/116415,904.28,GREENHAM TRADING LTD.
Neighbourhoods and Climate Change,Community Protection,Supplies and Services,304999,Equipment and Materials,07/04/2021,3853116-06/116585,787.60,GREENHAM TRADING LTD.
Dedicated Schools Grant BG0015,DSG Early Years Block,Transfer Payments,510032,School Children,07/04/2021,3853119-24623,"1,025.70",H WATSON-GREENWELL T/A LITTLE STARS NURSERY (ST BEDES).
Dedicated Schools Grant BG0015,DSG Early Years Block,Transfer Payments,510030,School Children,07/04/2021,3853119-24902,"3,431.03",H WATSON-GREENWELL T/A LITTLE STARS NURSERY (ST BEDES).
Dedicated Schools Grant BG0015,DSG Early Years Block,Transfer Payments,510032,School Children,07/04/2021,3853120-24519,"11,539.13",HAPPY TIMES DAYCARE LTD.
Dedicated Schools Grant BG0015,DSG Early Years Block,Transfer Payments,510030,School Children,07/04/2021,3853120-24734,"2,451.15",HAPPY TIMES DAYCARE LTD.
Dedicated Schools Grant BG0015,DSG Early Years Block,Transfer Payments,510032,School Children,07/04/2021,3853121-24504,"10,000.58",HAPPYTIMES DAYCARE.
Dedicated Schools Grant BG0015,DSG Early Years Block,Transfer Payments,510030,School Children,07/04/2021,3853121-24717,"6,740.66",HAPPYTIMES DAYCARE.
Adult and Health Services,Commissioning inc Supporting People,Third Party Payments,441001,Supporting People E441,07/04/2021,3853122-1970981,"18,082.80",HARBOUR SUPPORT SERVICES.
Dedicated Schools Grant BG0015,DSG Early Years Block,Transfer Payments,510030,School Children,07/04/2021,3853124-24863,"9,921.60",HARTSIDE PRIMARY ACADEMY.
Dedicated Schools Grant BG0015,DSG Early Years Block,Transfer Payments,510032,School Children,07/04/2021,3853127-24520,"6,154.20",HAYSTACKS NURSERY..
Dedicated Schools Grant BG0015,DSG Early Years Block,Transfer Payments,510030,School Children,07/04/2021,3853127-24736,"61,354.80",HAYSTACKS NURSERY..
Dedicated Schools Grant BG0015,DSG Early Years Block,Transfer Payments,510032,School Children,07/04/2021,3853128-24521,"3,846.38",HAZEL DENE CHILDCARE LTD.
Dedicated Schools Grant BG0015,DSG Early Years Block,Transfer Payments,510030,School Children,07/04/2021,3853128-24737,"11,030.18",HAZEL DENE CHILDCARE LTD.
Adult and Health Services,Head of Adults,Third Party Payments,478151,Purchase of Care,07/04/2021,3853133-HLC358,"1,062.00",HIGHLEA CARE LTD.
Neighbourhoods and Climate Change,Technical Services CM0300,Third Party Payments,430100,Rendered by Private Contractors,07/04/2021,3853134-3213,"20,834.38",HIGHWAY CONSTRUCTION SERVICES LTD.
Dedicated Schools Grant BG0015,DSG Early Years Block,Transfer Payments,510032,School Children,07/04/2021,3853136-24523,"1,692.41",HIPPITOTS LTD.
Dedicated Schools Grant BG0015,DSG Early Years Block,Transfer Payments,510030,School Children,07/04/2021,3853136-24740,"35,480.84",HIPPITOTS LTD.
Neighbourhoods and Climate Change,Environmental Services,Third Party Payments,430100,Rendered by Private Contractors,07/04/2021,3853143-85957,"2,197.53",HOGARTH COACHWORKS LTD.
Adult and Health Services,Commissioning inc Supporting People,Third Party Payments,442002,Supporting People E442,07/04/2021,3853144-1970978,"91,080.12",HOME GROUP LTD FORMERLY STONHAM HOUSING ASSOCIATION LTD.
Adult and Health Services,Commissioning inc Supporting People,Third Party Payments,442002,Supporting People E442,07/04/2021,3853144-1971005,"22,862.56",HOME GROUP LTD FORMERLY STONHAM HOUSING ASSOCIATION LTD.
Adult and Health Services,Commissioning inc Supporting People,Third Party Payments,441001,Supporting People E441,07/04/2021,3853144-1971007,"54,465.72",HOME GROUP LTD FORMERLY STONHAM HOUSING ASSOCIATION LTD.
Adult and Health Services,Commissioning inc Supporting People,Third Party Payments,441001,Supporting People E441,07/04/2021,3853144-1971009,"26,849.32",HOME GROUP LTD FORMERLY STONHAM HOUSING ASSOCIATION LTD.
Adult and Health Services,Commissioning inc Supporting People,Third Party Payments,442002,Supporting People E442,07/04/2021,3853144-1971012,"27,962.72",HOME GROUP LTD FORMERLY STONHAM HOUSING ASSOCIATION LTD.
Adult and Health Services,Commissioning inc Supporting People,Third Party Payments,479111,Purchase of Care,07/04/2021,3853144-1971019,940.80,HOME GROUP LTD FORMERLY STONHAM HOUSING ASSOCIATION LTD.
Dedicated Schools Grant BG0015,DSG Early Years Block,Transfer Payments,510032,School Children,07/04/2021,3853146-24524,"11,539.13",HORDEN YOUTH & COMMUNITY CENTRE NURSERY.
Dedicated Schools Grant BG0015,DSG Early Years Block,Transfer Payments,510030,School Children,07/04/2021,3853146-24741,"16,312.73",HORDEN YOUTH & COMMUNITY CENTRE NURSERY.
Dedicated Schools Grant BG0015,DSG Early Years Block,Transfer Payments,510032,School Children,07/04/2021,3853147-24526,"10,769.85",HOUSE OF EDEN LTD.
Dedicated Schools Grant BG0015,DSG Early Years Block,Transfer Payments,510030,School Children,07/04/2021,3853147-24743,"30,466.80",HOUSE OF EDEN LTD.
Dedicated Schools Grant BG0015,DSG Early Years Block,Transfer Payments,510032,School Children,07/04/2021,3853148-24525,769.28,HOUSE OF EDEN LTD.
Dedicated Schools Grant BG0015,DSG Early Years Block,Transfer Payments,510030,School Children,07/04/2021,3853148-24742,"9,687.60",HOUSE OF EDEN LTD.
Dedicated Schools Grant BG0015,DSG Early Years Block,Transfer Payments,510032,School Children,07/04/2021,3853149-24528,"12,308.40",HOWLETCH & SHOTTON CHILDCARE LTD.
Dedicated Schools Grant BG0015,DSG Early Years Block,Transfer Payments,510030,School Children,07/04/2021,3853149-24745,"13,175.66",HOWLETCH & SHOTTON CHILDCARE LTD.
Dedicated Schools Grant BG0015,DSG Early Years Block,Transfer Payments,510032,School Children,07/04/2021,3853150-24529,"20,770.43",HOWLETCH & SHOTTON CHILDCARE LTD.
Dedicated Schools Grant BG0015,DSG Early Years Block,Transfer Payments,510030,School Children,07/04/2021,3853150-24746,"16,940.14",HOWLETCH & SHOTTON CHILDCARE LTD.
Adult and Health Services,Commissioning inc Supporting People,Third Party Payments,442002,Supporting People E442,07/04/2021,3853152-1970979,"33,554.16",HUMANKIND CHARITY.
Neighbourhoods and Climate Change,Technical Services CM0300,Supplies and Services,304358,Equipment and Materials,07/04/2021,3853159-1786/2020,525.00,J & JG GILL & SONS LTD.
Neighbourhoods and Climate Change,Technical Services CM0300,Supplies and Services,304358,Equipment and Materials,07/04/2021,3853159-1809/2020,815.00,J & JG GILL & SONS LTD.
Neighbourhoods and Climate Change,Technical Services CM0300,Supplies and Services,304358,Equipment and Materials,07/04/2021,3853159-1824/2020,"1,580.00",J & JG GILL & SONS LTD.
Neighbourhoods and Climate Change,Technical Services CM0300,Supplies and Services,304358,Equipment and Materials,07/04/2021,3853159-1909/2020,"1,215.00",J & JG GILL & SONS LTD.
Dedicated Schools Grant BG0015,DSG Early Years Block,Transfer Payments,510030,School Children,07/04/2021,3853163-24871,817.05,JACQUELINE I`ANSON T/A JACKIES TOTS.
Neighbourhoods and Climate Change,Environmental Services,Third Party Payments,430100,Rendered by Private Contractors,07/04/2021,3853167-132443,"5,945.51",JG PAXTON & SONS LTD.
Neighbourhoods and Climate Change,Technical Services CM0300,Stock A926,926900,Stock in hand-Inventory system,07/04/2021,3853168-10107,"1,984.60",JG UNIFORMS.
Dedicated Schools Grant BG0015,DSG Early Years Block,Transfer Payments,510030,School Children,07/04/2021,3853169-24919,"7,871.18",JIGSAW LEARNING TRUST.
Dedicated Schools Grant BG0015,DSG Early Years Block,Transfer Payments,510032,School Children,07/04/2021,3853172-24585,"1,538.55",JOANNE HARDY T/A DAYBREAK NURSERY.
Dedicated Schools Grant BG0015,DSG Early Years Block,Transfer Payments,510030,School Children,07/04/2021,3853172-24843,"7,978.62",JOANNE HARDY T/A DAYBREAK NURSERY.
Children and Young Peoples Services,Head of Education and Skills,Transport,230006,Contract Hire,07/04/2021,3853175-7-20/21,"1,226.00",JOHN BELL TAXI.
"Regeneration, Economy and Growth",Business Durham CL0850,Supplies and Services,384899,Miscellaneous Expenses,07/04/2021,3853176-DBRG-04-2021-004,"1,561.24",JOHN CAGER T/A STANHOPE TRAVEL LTD.
Neighbourhoods and Climate Change,Technical Services CM0300,Stock A926,926900,Stock in hand-Inventory system,07/04/2021,3853180-0113/00325090,814.00,JT DOVE LTD.
Children and Young Peoples Services,Head of Education and Skills,Transport,230008,Contract Hire,07/04/2021,3853192-07-MARCH21,"3,356.80",KD TAXIS.
Dedicated Schools Grant BG0015,DSG Early Years Block,Transfer Payments,510032,School Children,07/04/2021,3853194-24614,"1,538.55",KELLOE PHOENIX CENTRE (CHILDCARE).
Dedicated Schools Grant BG0015,DSG Early Years Block,Transfer Payments,510030,School Children,07/04/2021,3853194-24887,"7,377.34",KELLOE PHOENIX CENTRE (CHILDCARE).
Dedicated Schools Grant BG0015,DSG Early Years Block,Transfer Payments,510030,School Children,07/04/2021,3853197-24749,"56,511.00",KIDS 1ST NURSERIES DURHAM.
Dedicated Schools Grant BG0015,DSG Early Years Block,Transfer Payments,510032,School Children,07/04/2021,3853198-24533,"7,692.75",KIDZ VILLAGE LTD.
Dedicated Schools Grant BG0015,DSG Early Years Block,Transfer Payments,510030,School Children,07/04/2021,3853198-24750,"19,843.20",KIDZ VILLAGE LTD.
Dedicated Schools Grant BG0015,DSG Early Years Block,Transfer Payments,510032,School Children,07/04/2021,3853199-24617,"5,384.93",KIDZONE.
Dedicated Schools Grant BG0015,DSG Early Years Block,Transfer Payments,510030,School Children,07/04/2021,3853199-24890,"11,234.44",KIDZONE.
Dedicated Schools Grant BG0015,DSG Early Years Block,Transfer Payments,510030,School Children,07/04/2021,3853200-24891,"6,552.59",KIRK MERRINGTON PRE SCHOOL.
"Regeneration, Economy and Growth",Business Durham CL0850,Supplies and Services,384899,Miscellaneous Expenses,07/04/2021,3853212-DBRG-04-2021-001,"12,937.50",LD FIRST CLASS FITNESS LTD T/A CROSSFIT FCF.
Dedicated Schools Grant BG0015,DSG Early Years Block,Transfer Payments,510032,School Children,07/04/2021,3853213-24620,"3,846.38",LEADGATE CHILD CENTRE LTD.
Dedicated Schools Grant BG0015,DSG Early Years Block,Transfer Payments,510030,School Children,07/04/2021,3853213-24898,"8,880.30",LEADGATE CHILD CENTRE LTD.
Adult and Health Services,Commissioning inc Supporting People,Supplies and Services,342225,Computers and Communications,07/04/2021,3853215-AA/1/2021,"1,000.00",LEAZES HALL CARE HOME LTD.
Dedicated Schools Grant BG0015,DSG Early Years Block,Transfer Payments,510030,School Children,07/04/2021,3853216-24754,"1,225.58",LESLEY ANNE SEDGWICK (CHILDMINDER).
Children and Young Peoples Services,Head of Education and Skills,Transport,230008,Contract Hire,07/04/2021,3853217-023,"2,160.00",LEWIS PATTISON T/A LEWIS TAXIS.
Dedicated Schools Grant BG0015,DSG Early Years Block,Transfer Payments,510032,School Children,07/04/2021,3853220-24622,"4,359.23",LITTLE ACORNS NORTH EAST LTD.
Dedicated Schools Grant BG0015,DSG Early Years Block,Transfer Payments,510030,School Children,07/04/2021,3853220-24900,"7,319.81",LITTLE ACORNS NORTH EAST LTD.
Dedicated Schools Grant BG0015,DSG Early Years Block,Transfer Payments,510032,School Children,07/04/2021,3853221-24535,"6,308.06",LITTLE CUBS DAY NURSERY.
Dedicated Schools Grant BG0015,DSG Early Years Block,Transfer Payments,510030,School Children,07/04/2021,3853221-24755,"41,147.18",LITTLE CUBS DAY NURSERY.
Dedicated Schools Grant BG0015,DSG Early Years Block,Transfer Payments,510032,School Children,07/04/2021,3853222-24536,"9,231.30",LITTLE STARS EARLY YEARS.
Dedicated Schools Grant BG0015,DSG Early Years Block,Transfer Payments,510030,School Children,07/04/2021,3853222-24756,"15,868.13",LITTLE STARS EARLY YEARS.
Dedicated Schools Grant BG0015,DSG Early Years Block,Transfer Payments,510032,School Children,07/04/2021,3853223-24624,"5,384.93",LITTLE WAVES DAY NURSERY LTD.
Dedicated Schools Grant BG0015,DSG Early Years Block,Transfer Payments,510030,School Children,07/04/2021,3853223-24903,"9,301.50",LITTLE WAVES DAY NURSERY LTD.
Children and Young Peoples Services,Head of Education and Skills,Transport,230016,Contract Hire,07/04/2021,3853232-NO220,800.00,M BUTCHER T/A M & M`S TAXIS.
Neighbourhoods and Climate Change,Technical Services CM0300,Supplies and Services,304358,Equipment and Materials,07/04/2021,3853233-MS2665,504.00,M SPENCE SURFACING LTD.
Neighbourhoods and Climate Change,Technical Services CM0300,Supplies and Services,304358,Equipment and Materials,07/04/2021,3853234-6029,"2,769.00",MAKEPEACE MOTORS.
Neighbourhoods and Climate Change,Technical Services CM0300,Supplies and Services,304358,Equipment and Materials,07/04/2021,3853234-6030,"2,769.00",MAKEPEACE MOTORS.
Neighbourhoods and Climate Change,Technical Services CM0300,Supplies and Services,304358,Equipment and Materials,07/04/2021,3853234-6033,"5,310.00",MAKEPEACE MOTORS.
Neighbourhoods and Climate Change,Technical Services CM0300,Supplies and Services,304358,Equipment and Materials,07/04/2021,3853234-6034,"5,310.00",MAKEPEACE MOTORS.
Neighbourhoods and Climate Change,Technical Services CM0300,Supplies and Services,304358,Equipment and Materials,07/04/2021,3853234-6039,"7,077.50",MAKEPEACE MOTORS.
Neighbourhoods and Climate Change,Technical Services CM0300,Supplies and Services,304358,Equipment and Materials,07/04/2021,3853234-6040,"7,077.50",MAKEPEACE MOTORS.
Adult and Health Services,Commissioning inc Supporting People,Third Party Payments,442002,Supporting People E442,07/04/2021,3853245-1970982,"5,469.72",MENTAL HEALTH MATTERS.
Children and Young Peoples Services,Head of Education and Skills,Transport,230008,Contract Hire,07/04/2021,3853246-A032-MARCH21,"3,378.00",MICHAEL ANDERSON T/A TAXI DURHAM.
Dedicated Schools Grant BG0015,DSG Early Years Block,Transfer Payments,510030,School Children,07/04/2021,3853251-24881,531.70,MISS JA MYERS T/A CHATTERBOX CHILDCARE.
Neighbourhoods and Climate Change,Environmental Services,Premises,108099,Service Repairs and Maintenance,07/04/2021,3853253-NO270,"2,300.00",MOJO POLYTUNNELS LTD.
Neighbourhoods and Climate Change,Environmental Services,Premises,108099,Service Repairs and Maintenance,07/04/2021,3853253-NO271,"2,220.00",MOJO POLYTUNNELS LTD.
Adult and Health Services,Commissioning inc Supporting People,Third Party Payments,442002,Supporting People E442,07/04/2021,3853254-1971001,"2,620.48",MOVING ON HOUSING.
Dedicated Schools Grant BG0015,DSG Early Years Block,Transfer Payments,510032,School Children,07/04/2021,3853257-24537,"3,077.10",MR D YOUNG T/A LITTLE TOTS ACADEMY.
Dedicated Schools Grant BG0015,DSG Early Years Block,Transfer Payments,510030,School Children,07/04/2021,3853257-24757,"18,164.25",MR D YOUNG T/A LITTLE TOTS ACADEMY.
Children and Young Peoples Services,Head of Education and Skills,Transport,230034,Contract Hire,07/04/2021,3853260-163,"1,128.00",MR JOHN ALLINSON T/A AALPHA TAXIS.
Children and Young Peoples Services,Head of Education and Skills,Transport,230006,Contract Hire,07/04/2021,3853260-164,888.00,MR JOHN ALLINSON T/A AALPHA TAXIS.
Children and Young Peoples Services,Head of Education and Skills,Transport,230006,Contract Hire,07/04/2021,3853260-165,626.25,MR JOHN ALLINSON T/A AALPHA TAXIS.
Children and Young Peoples Services,Head of Education and Skills,Transport,230035,Contract Hire,07/04/2021,3853260-166,736.14,MR JOHN ALLINSON T/A AALPHA TAXIS.
Children and Young Peoples Services,Head of Education and Skills,Transport,230009,Contract Hire,07/04/2021,3853262-146,"1,300.00",MR NEIL LEONARD T/A LENNY`S TAXIS.
Children and Young Peoples Services,Head of Education and Skills,Transport,230008,Contract Hire,07/04/2021,3853262-147,"1,808.20",MR NEIL LEONARD T/A LENNY`S TAXIS.
Children and Young Peoples Services,Head of Education and Skills,Transport,230006,Contract Hire,07/04/2021,3853262-149,952.75,MR NEIL LEONARD T/A LENNY`S TAXIS.
Dedicated Schools Grant BG0015,DSG Early Years Block,Transfer Payments,510032,School Children,07/04/2021,3853287-24631,"2,307.83",NELLIE`S DAY NURSERY LTD.
Dedicated Schools Grant BG0015,DSG Early Years Block,Transfer Payments,510030,School Children,07/04/2021,3853287-24915,"6,770.40",NELLIE`S DAY NURSERY LTD.
"Regeneration, Economy and Growth",Business Durham CL0850,Supplies and Services,340001,Postages E340,07/04/2021,3853288-RED-04-2021-004,"1,000.00",NEOPOST CREDIFON.
Dedicated Schools Grant BG0015,DSG Early Years Block,Transfer Payments,510032,School Children,07/04/2021,3853290-24632,"1,282.13",NEW BEGINNINGS (MOORSIDE) CO LTD.
Dedicated Schools Grant BG0015,DSG Early Years Block,Transfer Payments,510030,School Children,07/04/2021,3853290-24916,"7,776.11",NEW BEGINNINGS (MOORSIDE) CO LTD.
Neighbourhoods and Climate Change,Environmental Services,Supplies and Services,304221,Equipment and Materials,07/04/2021,3853291-065224,522.24,NEW ROW FARM NURSERIES.
Neighbourhoods and Climate Change,Environmental Services,Third Party Payments,430100,Rendered by Private Contractors,07/04/2021,3853295-1427103,970.91,NORTH EAST TRUCK & VAN LTD.
Neighbourhoods and Climate Change,Environmental Services,Third Party Payments,430100,Rendered by Private Contractors,07/04/2021,3853295-21866068,724.85,NORTH EAST TRUCK & VAN LTD.
Dedicated Schools Grant BG0015,DSG Early Years Block,Transfer Payments,510032,School Children,07/04/2021,3853297-24636,"2,051.40",NORTHUMBRIAN TRUST DAY NURSERIES LTD.
Dedicated Schools Grant BG0015,DSG Early Years Block,Transfer Payments,510030,School Children,07/04/2021,3853297-24920,"5,719.35",NORTHUMBRIAN TRUST DAY NURSERIES LTD.
Dedicated Schools Grant BG0015,DSG Early Years Block,Transfer Payments,510032,School Children,07/04/2021,3853298-24633,"3,333.53",NURSERY TIME.
Dedicated Schools Grant BG0015,DSG Early Years Block,Transfer Payments,510030,School Children,07/04/2021,3853298-24917,"9,094.80",NURSERY TIME.
Neighbourhoods and Climate Change,Environmental Services,Transport,215022,Running Costs of Vehicles,07/04/2021,3853299-733591,828.48,OIL NRG LTD.
Dedicated Schools Grant BG0015,DSG Early Years Block,Transfer Payments,510030,School Children,07/04/2021,3853300-24918,"6,054.75",OLD BRIDGE NURSERY.
"Regeneration, Economy and Growth",Corporate Property and Land,Third Party Payments,430100,Rendered by Private Contractors,07/04/2021,3853301-10594-74,"1,187.62",OPUS BUILDING SERVICES LTD.
"Regeneration, Economy and Growth",Corporate Property and Land,Third Party Payments,430100,Rendered by Private Contractors,07/04/2021,3853301-10594-75,"1,128.38",OPUS BUILDING SERVICES LTD.
Neighbourhoods and Climate Change,Technical Services CM0300,Stock A926,926900,Stock in hand-Inventory system,07/04/2021,3853308-XL268482,"4,143.75",PARK ELECTRICAL DISTRIBUTORS LTD.
Neighbourhoods and Climate Change,Technical Services CM0300,Stock A926,926900,Stock in hand-Inventory system,07/04/2021,3853308-XL268646,"1,411.80",PARK ELECTRICAL DISTRIBUTORS LTD.
Dedicated Schools Grant BG0015,DSG Early Years Block,Transfer Payments,510032,School Children,07/04/2021,3853318-24545,"6,923.48",PLAYDAY NURSERY.
Dedicated Schools Grant BG0015,DSG Early Years Block,Transfer Payments,510030,School Children,07/04/2021,3853318-24769,"37,380.04",PLAYDAY NURSERY.
Dedicated Schools Grant BG0015,DSG Early Years Block,Transfer Payments,510030,School Children,07/04/2021,3853319-22508,"8,207.43",PLAYOLOGY LTD.
Dedicated Schools Grant BG0015,DSG Early Years Block,Transfer Payments,510030,School Children,07/04/2021,3853319-24089,"2,539.63",PLAYOLOGY LTD.
Dedicated Schools Grant BG0015,DSG Early Years Block,Transfer Payments,510030,School Children,07/04/2021,3853319-24770,"14,923.74",PLAYOLOGY LTD.
Children and Young Peoples Services,Head of Education and Skills,Construction work A908,908105,Construction work,07/04/2021,3853320-900917276,"22,847.75",PORTAKABIN LTD.
Dedicated Schools Grant BG0015,DSG High Needs Block,Third Party Payments,410037,Rendered by Other Local Authorities,07/04/2021,3853323-51607242,"1,420.90",PROTOCOL EDUCATION LTD.*
Dedicated Schools Grant BG0015,DSG High Needs Block,Third Party Payments,410037,Rendered by Other Local Authorities,07/04/2021,3853323-51607243,682.90,PROTOCOL EDUCATION LTD.*
Dedicated Schools Grant BG0015,DSG Early Years Block,Transfer Payments,510032,School Children,07/04/2021,3853326-24638,512.85,RACHAEL SMITH (RACHAEL`S TOT`S).
Dedicated Schools Grant BG0015,DSG Early Years Block,Transfer Payments,510032,School Children,07/04/2021,3853331-24640,"3,333.53",RAINBOW NURSERY LTD (MIDDLESTONE MOOR).
Dedicated Schools Grant BG0015,DSG Early Years Block,Transfer Payments,510030,School Children,07/04/2021,3853331-24925,"17,156.10",RAINBOW NURSERY LTD (MIDDLESTONE MOOR).
Dedicated Schools Grant BG0015,DSG Early Years Block,Transfer Payments,510030,School Children,07/04/2021,3852950-24709,"4,033.58",REDACTED - PAYMENT TO INDIVIDUAL
Dedicated Schools Grant BG0015,DSG Early Years Block,Transfer Payments,510030,School Children,07/04/2021,3852954-24710,"1,838.36",REDACTED - PAYMENT TO INDIVIDUAL
Dedicated Schools Grant BG0015,DSG Early Years Block,Transfer Payments,510030,School Children,07/04/2021,3852955-24804,768.30,REDACTED - PAYMENT TO INDIVIDUAL
Dedicated Schools Grant BG0015,DSG Early Years Block,Transfer Payments,510030,School Children,07/04/2021,3852958-24712,583.54,REDACTED - PAYMENT TO INDIVIDUAL
Dedicated Schools Grant BG0015,DSG Early Years Block,Transfer Payments,510030,School Children,07/04/2021,3852961-24809,"1,196.33",REDACTED - PAYMENT TO INDIVIDUAL
Dedicated Schools Grant BG0015,DSG Early Years Block,Transfer Payments,510032,School Children,07/04/2021,3852975-24502,769.28,REDACTED - PAYMENT TO INDIVIDUAL
Dedicated Schools Grant BG0015,DSG Early Years Block,Transfer Payments,510030,School Children,07/04/2021,3852975-24713,598.16,REDACTED - PAYMENT TO INDIVIDUAL
Dedicated Schools Grant BG0015,DSG Early Years Block,Transfer Payments,510032,School Children,07/04/2021,3853003-24572,512.85,REDACTED - PAYMENT TO INDIVIDUAL
Dedicated Schools Grant BG0015,DSG Early Years Block,Transfer Payments,510032,School Children,07/04/2021,3853022-24509,"1,538.55",REDACTED - PAYMENT TO INDIVIDUAL
Dedicated Schools Grant BG0015,DSG Early Years Block,Transfer Payments,510030,School Children,07/04/2021,3853022-24722,"1,210.95",REDACTED - PAYMENT TO INDIVIDUAL
Dedicated Schools Grant BG0015,DSG Early Years Block,Transfer Payments,510030,School Children,07/04/2021,3853027-24833,768.30,REDACTED - PAYMENT TO INDIVIDUAL
Dedicated Schools Grant BG0015,DSG Early Years Block,Transfer Payments,510030,School Children,07/04/2021,3853032-24723,"5,835.38",REDACTED - PAYMENT TO INDIVIDUAL
Dedicated Schools Grant BG0015,DSG Early Years Block,Transfer Payments,510030,School Children,07/04/2021,3853058-24845,758.55,REDACTED - PAYMENT TO INDIVIDUAL
Dedicated Schools Grant BG0015,DSG Early Years Block,Transfer Payments,510030,School Children,07/04/2021,3853125-24735,"2,509.65",REDACTED - PAYMENT TO INDIVIDUAL
Dedicated Schools Grant BG0015,DSG Early Years Block,Transfer Payments,510030,School Children,07/04/2021,3853126-24864,996.94,REDACTED - PAYMENT TO INDIVIDUAL
Dedicated Schools Grant BG0015,DSG Early Years Block,Transfer Payments,510030,School Children,07/04/2021,3853129-24865,"1,614.60",REDACTED - PAYMENT TO INDIVIDUAL
Dedicated Schools Grant BG0015,DSG Early Years Block,Transfer Payments,510032,School Children,07/04/2021,3853131-24602,"1,538.55",REDACTED - PAYMENT TO INDIVIDUAL
Dedicated Schools Grant BG0015,DSG Early Years Block,Transfer Payments,510030,School Children,07/04/2021,3853131-24867,"1,033.50",REDACTED - PAYMENT TO INDIVIDUAL
Dedicated Schools Grant BG0015,DSG Early Years Block,Transfer Payments,510032,School Children,07/04/2021,3853132-24522,"1,538.55",REDACTED - PAYMENT TO INDIVIDUAL
Dedicated Schools Grant BG0015,DSG Early Years Block,Transfer Payments,510030,School Children,07/04/2021,3853132-24738,"1,896.38",REDACTED - PAYMENT TO INDIVIDUAL
Dedicated Schools Grant BG0015,DSG Early Years Block,Transfer Payments,510030,School Children,07/04/2021,3853162-24870,797.55,REDACTED - PAYMENT TO INDIVIDUAL
Dedicated Schools Grant BG0015,DSG Early Years Block,Transfer Payments,510030,School Children,07/04/2021,3853165-24873,"1,580.31",REDACTED - PAYMENT TO INDIVIDUAL
Dedicated Schools Grant BG0015,DSG Early Years Block,Transfer Payments,510030,School Children,07/04/2021,3853166-24874,784.26,REDACTED - PAYMENT TO INDIVIDUAL
Dedicated Schools Grant BG0015,DSG Early Years Block,Transfer Payments,510032,School Children,07/04/2021,3853173-24530,769.28,REDACTED - PAYMENT TO INDIVIDUAL
Dedicated Schools Grant BG0015,DSG Early Years Block,Transfer Payments,510030,School Children,07/04/2021,3853173-24747,605.48,REDACTED - PAYMENT TO INDIVIDUAL
Dedicated Schools Grant BG0015,DSG Early Years Block,Transfer Payments,510032,School Children,07/04/2021,3853188-24609,769.28,REDACTED - PAYMENT TO INDIVIDUAL
Dedicated Schools Grant BG0015,DSG Early Years Block,Transfer Payments,510030,School Children,07/04/2021,3853188-24883,984.75,REDACTED - PAYMENT TO INDIVIDUAL
Dedicated Schools Grant BG0015,DSG Early Years Block,Transfer Payments,510032,School Children,07/04/2021,3853189-24610,512.85,REDACTED - PAYMENT TO INDIVIDUAL
Dedicated Schools Grant BG0015,DSG Early Years Block,Transfer Payments,510032,School Children,07/04/2021,3853190-24531,"1,538.55",REDACTED - PAYMENT TO INDIVIDUAL
Dedicated Schools Grant BG0015,DSG Early Years Block,Transfer Payments,510032,School Children,07/04/2021,3853193-24532,"1,538.55",REDACTED - PAYMENT TO INDIVIDUAL
Dedicated Schools Grant BG0015,DSG Early Years Block,Transfer Payments,510030,School Children,07/04/2021,3853193-24748,"1,167.08",REDACTED - PAYMENT TO INDIVIDUAL
Dedicated Schools Grant BG0015,DSG Early Years Block,Transfer Payments,510032,School Children,07/04/2021,3853196-24616,769.28,REDACTED - PAYMENT TO INDIVIDUAL
Dedicated Schools Grant BG0015,DSG Early Years Block,Transfer Payments,510030,School Children,07/04/2021,3853196-24889,"1,225.58",REDACTED - PAYMENT TO INDIVIDUAL
Dedicated Schools Grant BG0015,DSG Early Years Block,Transfer Payments,510030,School Children,07/04/2021,3853201-24751,"1,196.33",REDACTED - PAYMENT TO INDIVIDUAL
Dedicated Schools Grant BG0015,DSG Early Years Block,Transfer Payments,510030,School Children,07/04/2021,3853202-24892,630.24,REDACTED - PAYMENT TO INDIVIDUAL
Dedicated Schools Grant BG0015,DSG Early Years Block,Transfer Payments,510030,School Children,07/04/2021,3853203-24056,673.20,REDACTED - PAYMENT TO INDIVIDUAL
Dedicated Schools Grant BG0015,DSG Early Years Block,Transfer Payments,510030,School Children,07/04/2021,3853205-24894,576.23,REDACTED - PAYMENT TO INDIVIDUAL
Dedicated Schools Grant BG0015,DSG Early Years Block,Transfer Payments,510030,School Children,07/04/2021,3853207-24752,583.54,REDACTED - PAYMENT TO INDIVIDUAL
Dedicated Schools Grant BG0015,DSG Early Years Block,Transfer Payments,510032,School Children,07/04/2021,3853208-24619,512.85,REDACTED - PAYMENT TO INDIVIDUAL
Dedicated Schools Grant BG0015,DSG Early Years Block,Transfer Payments,510030,School Children,07/04/2021,3853208-24896,768.30,REDACTED - PAYMENT TO INDIVIDUAL
Dedicated Schools Grant BG0015,DSG Early Years Block,Transfer Payments,510030,School Children,07/04/2021,3853210-24753,"1,977.89",REDACTED - PAYMENT TO INDIVIDUAL
Dedicated Schools Grant BG0015,DSG Early Years Block,Transfer Payments,510032,School Children,07/04/2021,3853216-24534,769.28,REDACTED - PAYMENT TO INDIVIDUAL
Dedicated Schools Grant BG0015,DSG Early Years Block,Transfer Payments,510032,School Children,07/04/2021,3853224-24625,512.85,REDACTED - PAYMENT TO INDIVIDUAL
Dedicated Schools Grant BG0015,DSG Early Years Block,Transfer Payments,510030,School Children,07/04/2021,3853224-24904,"1,816.43",REDACTED - PAYMENT TO INDIVIDUAL
Dedicated Schools Grant BG0015,DSG Early Years Block,Transfer Payments,510032,School Children,07/04/2021,3853227-24538,769.28,REDACTED - PAYMENT TO INDIVIDUAL
Dedicated Schools Grant BG0015,DSG Early Years Block,Transfer Payments,510030,School Children,07/04/2021,3853227-24759,"1,196.33",REDACTED - PAYMENT TO INDIVIDUAL
Dedicated Schools Grant BG0015,DSG Early Years Block,Transfer Payments,510030,School Children,07/04/2021,3853229-24906,612.79,REDACTED - PAYMENT TO INDIVIDUAL
Dedicated Schools Grant BG0015,DSG Early Years Block,Transfer Payments,510030,School Children,07/04/2021,3853230-24907,653.06,REDACTED - PAYMENT TO INDIVIDUAL
Dedicated Schools Grant BG0015,DSG Early Years Block,Transfer Payments,510032,School Children,07/04/2021,3853237-24540,769.28,REDACTED - PAYMENT TO INDIVIDUAL
Dedicated Schools Grant BG0015,DSG Early Years Block,Transfer Payments,510030,School Children,07/04/2021,3853238-24908,598.16,REDACTED - PAYMENT TO INDIVIDUAL
Dedicated Schools Grant BG0015,DSG Early Years Block,Transfer Payments,510030,School Children,07/04/2021,3853239-24909,"1,152.45",REDACTED - PAYMENT TO INDIVIDUAL
Dedicated Schools Grant BG0015,DSG Early Years Block,Transfer Payments,510030,School Children,07/04/2021,3853241-24761,576.23,REDACTED - PAYMENT TO INDIVIDUAL
Dedicated Schools Grant BG0015,DSG Early Years Block,Transfer Payments,510030,School Children,07/04/2021,3853244-24763,"2,246.40",REDACTED - PAYMENT TO INDIVIDUAL
Dedicated Schools Grant BG0015,DSG Early Years Block,Transfer Payments,510030,School Children,07/04/2021,3853247-24764,"1,225.58",REDACTED - PAYMENT TO INDIVIDUAL
Dedicated Schools Grant BG0015,DSG Early Years Block,Transfer Payments,510030,School Children,07/04/2021,3853248-24912,758.55,REDACTED - PAYMENT TO INDIVIDUAL
Dedicated Schools Grant BG0015,DSG Early Years Block,Transfer Payments,510032,School Children,07/04/2021,3853264-24501,769.28,REDACTED - PAYMENT TO INDIVIDUAL
Dedicated Schools Grant BG0015,DSG Early Years Block,Transfer Payments,510030,School Children,07/04/2021,3853264-24711,"1,196.33",REDACTED - PAYMENT TO INDIVIDUAL
Dedicated Schools Grant BG0015,DSG Early Years Block,Transfer Payments,510032,School Children,07/04/2021,3853269-24587,512.85,REDACTED - PAYMENT TO INDIVIDUAL
Dedicated Schools Grant BG0015,DSG Early Years Block,Transfer Payments,510030,School Children,07/04/2021,3853269-24848,583.54,REDACTED - PAYMENT TO INDIVIDUAL
Dedicated Schools Grant BG0015,DSG Early Years Block,Transfer Payments,510030,School Children,07/04/2021,3853271-24857,960.38,REDACTED - PAYMENT TO INDIVIDUAL
Dedicated Schools Grant BG0015,DSG Early Years Block,Transfer Payments,510030,School Children,07/04/2021,3853279-24773,885.20,REDACTED - PAYMENT TO INDIVIDUAL
Dedicated Schools Grant BG0015,DSG Early Years Block,Transfer Payments,510032,School Children,07/04/2021,3853285-24630,"1,025.70",REDACTED - PAYMENT TO INDIVIDUAL
Dedicated Schools Grant BG0015,DSG Early Years Block,Transfer Payments,510030,School Children,07/04/2021,3853285-24914,"2,655.41",REDACTED - PAYMENT TO INDIVIDUAL
Dedicated Schools Grant BG0015,DSG Early Years Block,Transfer Payments,510032,School Children,07/04/2021,3853293-24543,769.28,REDACTED - PAYMENT TO INDIVIDUAL
Dedicated Schools Grant BG0015,DSG Early Years Block,Transfer Payments,510032,School Children,07/04/2021,3853311-24635,769.28,REDACTED - PAYMENT TO INDIVIDUAL
Dedicated Schools Grant BG0015,DSG Early Years Block,Transfer Payments,510030,School Children,07/04/2021,3853312-24767,786.24,REDACTED - PAYMENT TO INDIVIDUAL
Dedicated Schools Grant BG0015,DSG Early Years Block,Transfer Payments,510030,School Children,07/04/2021,3853315-24768,"3,375.55",REDACTED - PAYMENT TO INDIVIDUAL
Dedicated Schools Grant BG0015,DSG Early Years Block,Transfer Payments,510032,School Children,07/04/2021,3853327-24639,"1,025.70",REDACTED - PAYMENT TO INDIVIDUAL
Dedicated Schools Grant BG0015,DSG Early Years Block,Transfer Payments,510030,School Children,07/04/2021,3853327-24924,583.54,REDACTED - PAYMENT TO INDIVIDUAL
Dedicated Schools Grant BG0015,DSG Early Years Block,Transfer Payments,510030,School Children,07/04/2021,3853329-24771,"2,334.15",REDACTED - PAYMENT TO INDIVIDUAL
Dedicated Schools Grant BG0015,DSG Early Years Block,Transfer Payments,510032,School Children,07/04/2021,3853347-24644,512.85,REDACTED - PAYMENT TO INDIVIDUAL
Dedicated Schools Grant BG0015,DSG Early Years Block,Transfer Payments,510030,School Children,07/04/2021,3853352-24935,"1,196.33",REDACTED - PAYMENT TO INDIVIDUAL
Dedicated Schools Grant BG0015,DSG Early Years Block,Transfer Payments,510032,School Children,07/04/2021,3853353-24648,512.85,REDACTED - PAYMENT TO INDIVIDUAL
Dedicated Schools Grant BG0015,DSG Early Years Block,Transfer Payments,510032,School Children,07/04/2021,3853354-24547,"1,538.55",REDACTED - PAYMENT TO INDIVIDUAL
Dedicated Schools Grant BG0015,DSG Early Years Block,Transfer Payments,510030,School Children,07/04/2021,3853354-24774,"2,392.65",REDACTED - PAYMENT TO INDIVIDUAL
Dedicated Schools Grant BG0015,DSG Early Years Block,Transfer Payments,510030,School Children,07/04/2021,3853363-24777,"1,794.49",REDACTED - PAYMENT TO INDIVIDUAL
Dedicated Schools Grant BG0015,DSG Early Years Block,Transfer Payments,510030,School Children,07/04/2021,3853383-24949,598.16,REDACTED - PAYMENT TO INDIVIDUAL
Dedicated Schools Grant BG0015,DSG Early Years Block,Transfer Payments,510032,School Children,07/04/2021,3853425-24554,769.28,REDACTED - PAYMENT TO INDIVIDUAL
Dedicated Schools Grant BG0015,DSG Early Years Block,Transfer Payments,510030,School Children,07/04/2021,3853425-24788,"1,196.33",REDACTED - PAYMENT TO INDIVIDUAL
Dedicated Schools Grant BG0015,DSG Early Years Block,Transfer Payments,510030,School Children,07/04/2021,3853426-24789,"1,181.70",REDACTED - PAYMENT TO INDIVIDUAL
Dedicated Schools Grant BG0015,DSG Early Years Block,Transfer Payments,510030,School Children,07/04/2021,3853337-24929,"16,122.60",RIBBON ACADEMY TRUST.
Dedicated Schools Grant BG0015,DSG Early Years Block,Transfer Payments,510032,School Children,07/04/2021,3853338-24642,"7,949.18",RIBBON DAYCARE.
Dedicated Schools Grant BG0015,DSG Early Years Block,Transfer Payments,510030,School Children,07/04/2021,3853338-24930,"9,921.60",RIBBON DAYCARE.
Adult and Health Services,Commissioning inc Supporting People,Third Party Payments,442002,Supporting People E442,07/04/2021,3853339-1970984,"11,729.08",RICHMOND FELLOWSHIP.
Adult and Health Services,Commissioning inc Supporting People,Third Party Payments,441001,Supporting People E441,07/04/2021,3853339-1970985,"9,423.88",RICHMOND FELLOWSHIP.
Dedicated Schools Grant BG0015,DSG Early Years Block,Transfer Payments,510030,School Children,07/04/2021,3853342-24931,"4,547.40",SACRISTON ACADEMY - EARLY YEARS T/A PRIVATE NURSERY.
Dedicated Schools Grant BG0015,DSG Early Years Block,Transfer Payments,510032,School Children,07/04/2021,3853345-24546,"1,948.83",SAPLINGS NATURE KINDERGARTEN & FOREST SCHOOL.
Dedicated Schools Grant BG0015,DSG Early Years Block,Transfer Payments,510030,School Children,07/04/2021,3853345-24772,"13,352.82",SAPLINGS NATURE KINDERGARTEN & FOREST SCHOOL.
Dedicated Schools Grant BG0015,DSG Early Years Block,Transfer Payments,510032,School Children,07/04/2021,3853348-24645,"1,794.98",SEASIDE LANE NURSERY.
Dedicated Schools Grant BG0015,DSG Early Years Block,Transfer Payments,510030,School Children,07/04/2021,3853348-24933,"3,880.99",SEASIDE LANE NURSERY.
Dedicated Schools Grant BG0015,DSG Early Years Block,Transfer Payments,510030,School Children,07/04/2021,3853350-24934,638.04,SEDGEFIELD OUT OF SCHOOL FUN CLUB.
Dedicated Schools Grant BG0015,DSG Early Years Block,Transfer Payments,510030,School Children,07/04/2021,3853356-24775,"19,223.10",SHIELD ROW ACADEMY.
Dedicated Schools Grant BG0015,DSG Early Years Block,Transfer Payments,510032,School Children,07/04/2021,3853358-24548,769.28,SHOTLEY BRIDGE NURSERY SCHOOL LTD.
Dedicated Schools Grant BG0015,DSG Early Years Block,Transfer Payments,510030,School Children,07/04/2021,3853358-24776,"64,180.35",SHOTLEY BRIDGE NURSERY SCHOOL LTD.
Adult and Health Services,Commissioning inc Supporting People,Supplies and Services,342225,Computers and Communications,07/04/2021,3853359-AA/1/2021,"1,000.00",SHOTLEY PARK HOMES FOR THE ELDERLY LTD.
Adult and Health Services,Commissioning inc Supporting People,Third Party Payments,442002,Supporting People E442,07/04/2021,3853362-1971002,"6,331.08",SINGLE HOMELESS ACTION INITIATIVE IN DURHAM LTD (SHAID).
"Regeneration, Economy and Growth",Corporate Property and Land,Third Party Payments,430100,Rendered by Private Contractors,07/04/2021,3853366-7497,"2,440.00",ST ASTIER LTD.
"Regeneration, Economy and Growth",Corporate Property and Land,Third Party Payments,430100,Rendered by Private Contractors,07/04/2021,3853366-7499,"12,962.30",ST ASTIER LTD.
Dedicated Schools Grant BG0015,DSG Early Years Block,Transfer Payments,510032,School Children,07/04/2021,3853367-24549,"11,154.49",ST OSWALD`S PRE SCHOOL LEARNING CENTRE.
Dedicated Schools Grant BG0015,DSG Early Years Block,Transfer Payments,510030,School Children,07/04/2021,3853367-24779,"53,204.58",ST OSWALD`S PRE SCHOOL LEARNING CENTRE.
Dedicated Schools Grant BG0015,DSG Early Years Block,Transfer Payments,510030,School Children,07/04/2021,3853368-24940,"11,191.20",ST OSWALD`S SUNSHINE CLUB.
Neighbourhoods and Climate Change,Environmental Services,Supplies and Services,384999,Miscellaneous Expenses,07/04/2021,3853370-RES-04-2021-120,"2,700.00",STANHOPE PARISH COUNCIL.
Dedicated Schools Grant BG0015,DSG Early Years Block,Transfer Payments,510032,School Children,07/04/2021,3853371-24649,769.28,STANLEY LEARNING PARTNERSHIP.
Dedicated Schools Grant BG0015,DSG Early Years Block,Transfer Payments,510030,School Children,07/04/2021,3853371-24938,"8,039.85",STANLEY LEARNING PARTNERSHIP.
Children and Young Peoples Services,Head of Early Help Inclusion & Vulnerable Children.,Supplies and Services,338078,Services,07/04/2021,3853373-16852,"17,844.32",STEADFAST SECURITY SOLUTIONS LTD.
Children and Young Peoples Services,Head of Early Help Inclusion & Vulnerable Children.,Supplies and Services,338078,Services,07/04/2021,3853373-16853,"1,036.00",STEADFAST SECURITY SOLUTIONS LTD.
Dedicated Schools Grant BG0015,DSG Early Years Block,Transfer Payments,510030,School Children,07/04/2021,3853374-24943,"6,347.25",STEPHENSON WAY ACADEMY & NURSERY SCHOOL.
Dedicated Schools Grant BG0015,DSG Early Years Block,Transfer Payments,510030,School Children,07/04/2021,3853375-24944,"10,620.38",STEPPING STONES CO-OP NURSERY LTD.
Dedicated Schools Grant BG0015,DSG Early Years Block,Transfer Payments,510030,School Children,07/04/2021,3853376-24945,"5,640.86",STEPPING STONES DAY NURSERY (DURHAM).
Children and Young Peoples Services,Head of Childrens Social Care,Supplies and Services,384540,Miscellaneous Expenses,07/04/2021,3853377-INV-5404,"15,000.00",STEVE DAVIDSON ADVERTISING LTD T/A SD ADVERTISING LTD.
Resources BK0010,Legal & Democratic Services,Supplies and Services,338025,Services,07/04/2021,3853378-12194,920.00,STUART WRIGHT FUNERAL SERVICE LTD.
Dedicated Schools Grant BG0015,DSG Early Years Block,Transfer Payments,510032,School Children,07/04/2021,3853379-24652,"3,333.53",SUNSHINE DAY NURSERY LTD.
Dedicated Schools Grant BG0015,DSG Early Years Block,Transfer Payments,510030,School Children,07/04/2021,3853379-24948,"7,234.50",SUNSHINE DAY NURSERY LTD.
Dedicated Schools Grant BG0015,DSG Early Years Block,Transfer Payments,510032,School Children,07/04/2021,3853380-24651,"4,359.23",SUNSHINE DAY NURSERY LTD.
Dedicated Schools Grant BG0015,DSG Early Years Block,Transfer Payments,510030,School Children,07/04/2021,3853380-24947,"12,482.93",SUNSHINE DAY NURSERY LTD.
Dedicated Schools Grant BG0015,DSG Early Years Block,Transfer Payments,510032,School Children,07/04/2021,3853381-24650,"5,384.93",SUNSHINE DAY NURSERY LTD.
Dedicated Schools Grant BG0015,DSG Early Years Block,Transfer Payments,510030,School Children,07/04/2021,3853381-24946,"15,915.90",SUNSHINE DAY NURSERY LTD.
"Regeneration, Economy and Growth",Business Durham CL0850,Supplies and Services,384899,Miscellaneous Expenses,07/04/2021,3853382-DBRG-04-2021-003,"4,462.50",SUPREME ADVENTURE SPORTS LTD.
Children and Young Peoples Services,Head of Education and Skills,Transport,230007,Contract Hire,07/04/2021,3853388-03/2021/003,"1,240.00",TARNS TAXIS LTD.
Children and Young Peoples Services,Head of Education and Skills,Transport,230008,Contract Hire,07/04/2021,3853388-03/2021/006,"2,440.00",TARNS TAXIS LTD.
Children and Young Peoples Services,Head of Education and Skills,Transport,230008,Contract Hire,07/04/2021,3853389-DCC/2021/11,"1,681.60",TAYLOR`S TAXIS.
Children and Young Peoples Services,Head of Education and Skills,Transport,230008,Contract Hire,07/04/2021,3853389-DCC/2021/14,"2,589.80",TAYLOR`S TAXIS.
Neighbourhoods and Climate Change,Technical Services CM0300,Supplies and Services,336005,Advertising E336,07/04/2021,3853391-14006,821.50,TEESDALE MERCURY LTD.
"Regeneration, Economy and Growth",Business Durham CL0850,Supplies and Services,384899,Miscellaneous Expenses,07/04/2021,3853395-DBRG-04-2021-002,982.50,THE CHERRY TREE OUSTON LTD.
"Regeneration, Economy and Growth",Business Durham CL0850,Supplies and Services,384899,Miscellaneous Expenses,07/04/2021,3853395-DBRG-04-2021-008,640.63,THE CHERRY TREE OUSTON LTD.
Dedicated Schools Grant BG0015,DSG Early Years Block,Transfer Payments,510030,School Children,07/04/2021,3853396-24782,"5,924.34",THE CHORISTER SCHOOL.
Adult and Health Services,Commissioning inc Supporting People,Third Party Payments,441001,Supporting People E441,07/04/2021,3853397-1970989,"19,231.20",THE CYRENIANS LTD T/A CHANGING LIVES.
Dedicated Schools Grant BG0015,DSG Early Years Block,Transfer Payments,510030,School Children,07/04/2021,3853398-24783,"2,747.93",THE EDUCATION PARTNERSHIP (UK) LTD.
Dedicated Schools Grant BG0015,DSG Early Years Block,Transfer Payments,510032,School Children,07/04/2021,3853399-24551,"7,692.75",THE LAURELS CHILD CARE COMPANY LTD.
Dedicated Schools Grant BG0015,DSG Early Years Block,Transfer Payments,510030,School Children,07/04/2021,3853399-24784,"32,245.20",THE LAURELS CHILD CARE COMPANY LTD.
Dedicated Schools Grant BG0015,DSG Early Years Block,Transfer Payments,510032,School Children,07/04/2021,3853401-24653,"4,359.23",THE NURSERY.
Dedicated Schools Grant BG0015,DSG Early Years Block,Transfer Payments,510030,School Children,07/04/2021,3853401-24952,"11,030.18",THE NURSERY.
Adult and Health Services,Commissioning inc Supporting People,Third Party Payments,442002,Supporting People E442,07/04/2021,3853404-1970991,"5,088.84",THIRTEEN HOUSING GROUP LTD.
Adult and Health Services,Commissioning inc Supporting People,Third Party Payments,441001,Supporting People E441,07/04/2021,3853404-1970992,"7,776.68",THIRTEEN HOUSING GROUP LTD.
Adult and Health Services,Commissioning inc Supporting People,Third Party Payments,441001,Supporting People E441,07/04/2021,3853404-1970993,"22,933.96",THIRTEEN HOUSING GROUP LTD.
Neighbourhoods and Climate Change,Technical Services CM0300,Stock A926,926900,Stock in hand-Inventory system,07/04/2021,3853405-NSIN00052884,652.80,THOMAS OWEN & SONS (NEWCASTLE) LTD.
Neighbourhoods and Climate Change,Technical Services CM0300,Stock A926,926900,Stock in hand-Inventory system,07/04/2021,3853405-NSIN00052885,853.18,THOMAS OWEN & SONS (NEWCASTLE) LTD.
Dedicated Schools Grant BG0015,DSG Early Years Block,Transfer Payments,510032,School Children,07/04/2021,3853406-24552,"11,539.13",TILLY MINTS CHERUBS DAY NURSERY LTD.
Dedicated Schools Grant BG0015,DSG Early Years Block,Transfer Payments,510030,School Children,07/04/2021,3853406-24786,"37,086.08",TILLY MINTS CHERUBS DAY NURSERY LTD.
Dedicated Schools Grant BG0015,DSG Early Years Block,Transfer Payments,510032,School Children,07/04/2021,3853407-24603,"4,359.23",TM NURSERY ENTERPRISES LTD T/A JACK IN THE BOX DAYCARE.
Dedicated Schools Grant BG0015,DSG Early Years Block,Transfer Payments,510030,School Children,07/04/2021,3853407-24869,"11,161.80",TM NURSERY ENTERPRISES LTD T/A JACK IN THE BOX DAYCARE.
Children and Young Peoples Services,Head of Education and Skills,Transport,230016,Contract Hire,07/04/2021,3853408-10-MARCH21,"3,028.20",TONYS TAXIS (A BIRCH).
Children and Young Peoples Services,Head of Education and Skills,Transport,230012,Contract Hire,07/04/2021,3853408-12-MARCH21,"1,637.00",TONYS TAXIS (A BIRCH).
Adult and Health Services,Head of Adults,Transport,230005,Contract Hire,07/04/2021,3853408-14-MARCH21,648.00,TONYS TAXIS (A BIRCH).
Adult and Health Services,Head of Adults,Transport,230005,Contract Hire,07/04/2021,3853408-16-MARCH21,"2,020.00",TONYS TAXIS (A BIRCH).
Children and Young Peoples Services,Head of Education and Skills,Transport,230008,Contract Hire,07/04/2021,3853408-1-MARCH21,"2,107.00",TONYS TAXIS (A BIRCH).
Adult and Health Services,Head of Adults,Transport,230005,Contract Hire,07/04/2021,3853408-3-MARCH21,"1,097.04",TONYS TAXIS (A BIRCH).
Children and Young Peoples Services,Head of Education and Skills,Transport,230012,Contract Hire,07/04/2021,3853408-5-MARCH21,"2,049.18",TONYS TAXIS (A BIRCH).
Children and Young Peoples Services,Head of Education and Skills,Transport,230034,Contract Hire,07/04/2021,3853408-6-MARCH21,"1,267.50",TONYS TAXIS (A BIRCH).
Neighbourhoods and Climate Change,Technical Services CM0300,Stock A926,926900,Stock in hand-Inventory system,07/04/2021,3853409-104548,"3,375.00",TOTAL RENTAL SOLUTIONS.
"Regeneration, Economy and Growth",Corporate Property and Land,Supplies and Services,304999,Equipment and Materials,07/04/2021,3853409-104549,855.00,TOTAL RENTAL SOLUTIONS.
Neighbourhoods and Climate Change,Technical Services CM0300,Stock A926,926900,Stock in hand-Inventory system,07/04/2021,3853409-104550,"2,610.53",TOTAL RENTAL SOLUTIONS.
Dedicated Schools Grant BG0015,DSG Early Years Block,Transfer Payments,510032,School Children,07/04/2021,3853411-24553,"9,231.30",TOTS `R` US.
Dedicated Schools Grant BG0015,DSG Early Years Block,Transfer Payments,510030,School Children,07/04/2021,3853411-24787,"15,932.48",TOTS `R` US.
Dedicated Schools Grant BG0015,DSG Early Years Block,Transfer Payments,510032,School Children,07/04/2021,3853415-24655,"1,282.13",TRIMDON`S LITTLE TYKES LTD.
Dedicated Schools Grant BG0015,DSG Early Years Block,Transfer Payments,510030,School Children,07/04/2021,3853415-24955,"2,018.25",TRIMDON`S LITTLE TYKES LTD.
Children and Young Peoples Services,Head of Early Help Inclusion & Vulnerable Children.,Third Party Payments,440999,Other third party payments E440,07/04/2021,3853416-LINV37033,"2,238.75",TRINITY MEDICAL PROPERTIES LTD.
Children and Young Peoples Services,Head of Early Help Inclusion & Vulnerable Children.,Supplies and Services,304259,Equipment and Materials,07/04/2021,3853417-INUK11674,668.25,TRIPLE P UK LTD.
Dedicated Schools Grant BG0015,DSG Early Years Block,Transfer Payments,510030,School Children,07/04/2021,3853419-24937,"3,445.00",TUDHOE LEARNING TRUST T/A SOUTH HETTON PRIMARY SCHOOL.
Dedicated Schools Grant BG0015,DSG Early Years Block,Transfer Payments,510032,School Children,07/04/2021,3853422-24589,769.28,UNIVERSITY OF DURHAM DAY NURSERY.
Dedicated Schools Grant BG0015,DSG Early Years Block,Transfer Payments,510030,School Children,07/04/2021,3853422-24851,"10,494.90",UNIVERSITY OF DURHAM DAY NURSERY.
Resources BK0010,Digital and Customer Services,Supplies and Services,384199,Miscellaneous Expenses,07/04/2021,3853423-1930,"2,040.00",UPNORTH ENGINEERING SERVICES LTD.
Dedicated Schools Grant BG0015,DSG Early Years Block,Transfer Payments,510032,School Children,07/04/2021,3853424-24656,"5,128.50",USHAW MOOR DAYCARE.
Dedicated Schools Grant BG0015,DSG Early Years Block,Transfer Payments,510030,School Children,07/04/2021,3853424-24956,"5,646.71",USHAW MOOR DAYCARE.
Dedicated Schools Grant BG0015,DSG Early Years Block,Transfer Payments,510030,School Children,07/04/2021,3853428-24958,"4,950.86",VICTORIA LANE ACADEMY.
"Regeneration, Economy and Growth",Business Durham CL0850,Supplies and Services,338078,Services,07/04/2021,3853431-INV-41777,"6,243.76",VISTECH SERVICES.
Adult and Health Services,Commissioning inc Supporting People,Third Party Payments,441001,Supporting People E441,07/04/2021,3853432-1970987,"2,367.20",WADDINGTON STREET CENTRE LTD.
Adult and Health Services,Commissioning inc Supporting People,Third Party Payments,442002,Supporting People E442,07/04/2021,3853432-1970995,873.44,WADDINGTON STREET CENTRE LTD.
Children and Young Peoples Services,Head of Education and Skills,Transport,230006,Contract Hire,07/04/2021,3853433-F702-MAR21,"1,720.00",WAINE SANDERSON T/A 1A CAB.
Dedicated Schools Grant BG0015,DSG Early Years Block,Transfer Payments,510032,School Children,07/04/2021,3853435-24577,"3,589.95",WAYMAN DEVELOPMENTS LTD T/A CHILDSPLAY PRIVATE NURSERY.
Dedicated Schools Grant BG0015,DSG Early Years Block,Transfer Payments,510030,School Children,07/04/2021,3853435-24828,"5,374.20",WAYMAN DEVELOPMENTS LTD T/A CHILDSPLAY PRIVATE NURSERY.
Dedicated Schools Grant BG0015,DSG Early Years Block,Transfer Payments,510032,School Children,07/04/2021,3853436-24578,"2,564.25",WAYMAN DEVELOPMENTS LTD T/A CHILDSPLAY PRIVATE NURSERY.
Dedicated Schools Grant BG0015,DSG Early Years Block,Transfer Payments,510030,School Children,07/04/2021,3853436-24829,"5,019.30",WAYMAN DEVELOPMENTS LTD T/A CHILDSPLAY PRIVATE NURSERY.
Dedicated Schools Grant BG0015,DSG Early Years Block,Transfer Payments,510032,School Children,07/04/2021,3853437-24579,"5,641.35",WAYMAN DEVELOPMENTS LTD T/A CHILDSPLAY PRIVATE NURSERY.
Dedicated Schools Grant BG0015,DSG Early Years Block,Transfer Payments,510030,School Children,07/04/2021,3853437-24830,"13,522.28",WAYMAN DEVELOPMENTS LTD T/A CHILDSPLAY PRIVATE NURSERY.
Adult and Health Services,Commissioning inc Supporting People,Third Party Payments,441001,Supporting People E441,07/04/2021,3853438-1971021,"10,479.80",WEAR VALLEY WOMENS AID LTD.
Dedicated Schools Grant BG0015,DSG Early Years Block,Transfer Payments,510032,School Children,07/04/2021,3853439-24555,"3,077.10",WEARDALE AM/PM SCAMPS LTD.
Dedicated Schools Grant BG0015,DSG Early Years Block,Transfer Payments,510030,School Children,07/04/2021,3853439-24791,590.85,WEARDALE AM/PM SCAMPS LTD.
Resources BK0010,Strategy,Supplies and Services,342051,Computers and Communications,07/04/2021,3853441-UOTR4750740,"5,952.68",WESTERN UNION BUSINESS SOLUTIONS.
Resources BK0010,Digital and Customer Services,Supplies and Services,342051,Computers and Communications,07/04/2021,3853441-UOTR4751165,"33,002.00",WESTERN UNION BUSINESS SOLUTIONS.
Resources BK0010,Digital and Customer Services,Supplies and Services,342051,Computers and Communications,07/04/2021,3853441-UOTR4751166,"5,775.96",WESTERN UNION BUSINESS SOLUTIONS.
Dedicated Schools Grant BG0015,DSG Early Years Block,Transfer Payments,510032,School Children,07/04/2021,3853442-24556,"6,154.20",WESTFIELD HOUSE NURSERY.
Dedicated Schools Grant BG0015,DSG Early Years Block,Transfer Payments,510030,School Children,07/04/2021,3853442-24792,"28,801.01",WESTFIELD HOUSE NURSERY.
Dedicated Schools Grant BG0015,DSG Early Years Block,Transfer Payments,510032,School Children,07/04/2021,3853443-24658,"2,820.68",WHEATLEY HILL COMMUNITY NURSERY LTD.
Dedicated Schools Grant BG0015,DSG Early Years Block,Transfer Payments,510030,School Children,07/04/2021,3853443-24961,"6,256.58",WHEATLEY HILL COMMUNITY NURSERY LTD.
Dedicated Schools Grant BG0015,DSG Early Years Block,Transfer Payments,510032,School Children,07/04/2021,3853445-24304,"1,212.12",WINGATE COMMUNITY CHILDCARE LTD.
Dedicated Schools Grant BG0015,DSG Early Years Block,Transfer Payments,510032,School Children,07/04/2021,3853445-24408,901.32,WINGATE COMMUNITY CHILDCARE LTD.
Dedicated Schools Grant BG0015,DSG Early Years Block,Transfer Payments,510032,School Children,07/04/2021,3853445-24659,"5,128.50",WINGATE COMMUNITY CHILDCARE LTD.
Dedicated Schools Grant BG0015,DSG Early Years Block,Transfer Payments,510030,School Children,07/04/2021,3853445-24962,"4,726.80",WINGATE COMMUNITY CHILDCARE LTD.
Dedicated Schools Grant BG0015,DSG Early Years Block,Transfer Payments,510030,School Children,07/04/2021,3853446-24793,"17,962.43",WITTON GILBERT PRE SCHOOL.
Neighbourhoods and Climate Change,Environmental Services,Supplies and Services,384999,Miscellaneous Expenses,07/04/2021,3853448-RES-04-2021-119,"24,170.00",WOLSINGHAM PARISH COUNCIL.
Dedicated Schools Grant BG0015,DSG Early Years Block,Transfer Payments,510030,School Children,07/04/2021,3853449-24794,"19,739.36",WOODLANDS DAY NURSERY.
Dedicated Schools Grant BG0015,DSG Early Years Block,Transfer Payments,510032,School Children,07/04/2021,3853450-24557,"3,846.38",WOODLANDS DAY NURSERY.
Dedicated Schools Grant BG0015,DSG Early Years Block,Transfer Payments,510032,School Children,07/04/2021,3853452-24660,"1,794.98",YORK HOUSE NURSERY.
Dedicated Schools Grant BG0015,DSG Early Years Block,Transfer Payments,510030,School Children,07/04/2021,3853452-24963,"14,675.70",YORK HOUSE NURSERY.
Resources BK0010,Legal & Democratic Services,Supplies and Services,338105,Services,08/04/2021,3853541-JRB/03/2021/JC,"1,249.50",REDACTED - PAYMENT TO INDIVIDUAL
Children and Young Peoples Services,Head of Education and Skills,Transport,230009,Contract Hire,08/04/2021,3853662-7311/MARCH,"1,590.00",REDACTED - PAYMENT TO INDIVIDUAL
Adult and Health Services,Head of Adults,Transport,230005,Contract Hire,08/04/2021,3853662-DM170/MARCH,870.00,REDACTED - PAYMENT TO INDIVIDUAL
Children and Young Peoples Services,Head of Education and Skills,Transport,230006,Contract Hire,08/04/2021,3853662-F848/MARCH,"1,512.00",REDACTED - PAYMENT TO INDIVIDUAL
Children and Young Peoples Services,Head of Education and Skills,Transport,230008,Contract Hire,08/04/2021,3853662-N037/MARCH,900.00,REDACTED - PAYMENT TO INDIVIDUAL
Children and Young Peoples Services,Head of Education and Skills,Transport,230008,Contract Hire,08/04/2021,3853454-32108,"1,310.00",24/7 TAXI SERVICES LTD.
Children and Young Peoples Services,Head of Education and Skills,Transport,230008,Contract Hire,08/04/2021,3853454-32110,"1,240.00",24/7 TAXI SERVICES LTD.
Children and Young Peoples Services,Head of Education and Skills,Transport,230008,Contract Hire,08/04/2021,3853454-32114,"3,464.00",24/7 TAXI SERVICES LTD.
Children and Young Peoples Services,Head of Education and Skills,Transport,230008,Contract Hire,08/04/2021,3853454-32115,"2,448.75",24/7 TAXI SERVICES LTD.
Children and Young Peoples Services,Head of Education and Skills,Transport,230008,Contract Hire,08/04/2021,3853454-32116,"2,440.00",24/7 TAXI SERVICES LTD.
Children and Young Peoples Services,Head of Education and Skills,Transport,230008,Contract Hire,08/04/2021,3853454-32118,"1,717.50",24/7 TAXI SERVICES LTD.
Children and Young Peoples Services,Head of Education and Skills,Transport,230006,Contract Hire,08/04/2021,3853454-32120,"1,422.08",24/7 TAXI SERVICES LTD.
Children and Young Peoples Services,Head of Education and Skills,Transport,230012,Contract Hire,08/04/2021,3853454-32125,"2,420.00",24/7 TAXI SERVICES LTD.
Children and Young Peoples Services,Head of Education and Skills,Transport,230034,Contract Hire,08/04/2021,3853455-10601,"2,878.60",24X7LTD.
Children and Young Peoples Services,Head of Education and Skills,Transport,230034,Contract Hire,08/04/2021,3853455-10602,"1,306.95",24X7LTD.
Children and Young Peoples Services,Head of Education and Skills,Transport,230007,Contract Hire,08/04/2021,3853455-10603,"1,245.09",24X7LTD.
Children and Young Peoples Services,Head of Education and Skills,Transport,230034,Contract Hire,08/04/2021,3853455-10606,"2,024.88",24X7LTD.
Children and Young Peoples Services,Head of Education and Skills,Transport,230034,Contract Hire,08/04/2021,3853455-10607,"1,674.68",24X7LTD.
Children and Young Peoples Services,Head of Education and Skills,Transport,230007,Contract Hire,08/04/2021,3853455-10608,788.22,24X7LTD.
Children and Young Peoples Services,Head of Education and Skills,Transport,230007,Contract Hire,08/04/2021,3853455-10609,"1,281.74",24X7LTD.
Children and Young Peoples Services,Head of Education and Skills,Transport,230009,Contract Hire,08/04/2021,3853455-10610,"1,164.00",24X7LTD.
Children and Young Peoples Services,Head of Education and Skills,Transport,230008,Contract Hire,08/04/2021,3853455-10611,"1,820.00",24X7LTD.
Children and Young Peoples Services,Head of Education and Skills,Transport,230006,Contract Hire,08/04/2021,3853456-0321/SA,"2,909.00",AABAT TAXIS.
Adult and Health Services,Head of Adults,Transport,230005,Contract Hire,08/04/2021,3853456-0321/SB,862.50,AABAT TAXIS.
Children and Young Peoples Services,Head of Education and Skills,Transport,230012,Contract Hire,08/04/2021,3853456-0321/SE,"1,209.00",AABAT TAXIS.
Adult and Health Services,Head of Adults,Transport,230005,Contract Hire,08/04/2021,3853456-0321/SF,880.20,AABAT TAXIS.
Children and Young Peoples Services,Head of Education and Skills,Transport,230012,Contract Hire,08/04/2021,3853456-0321/SG,"1,720.00",AABAT TAXIS.
Adult and Health Services,Head of Adults,Transport,230005,Contract Hire,08/04/2021,3853456-0321/SH,"1,840.00",AABAT TAXIS.
Children and Young Peoples Services,Head of Education and Skills,Transport,230006,Contract Hire,08/04/2021,3853456-0321/SI,"2,040.00",AABAT TAXIS.
Adult and Health Services,Head of Adults,Transport,230005,Contract Hire,08/04/2021,3853456-0321/SK,"2,217.43",AABAT TAXIS.
Children and Young Peoples Services,Head of Education and Skills,Transport,230007,Contract Hire,08/04/2021,3853456-0321/SL,"1,199.60",AABAT TAXIS.
Children and Young Peoples Services,Head of Education and Skills,Transport,230034,Contract Hire,08/04/2021,3853456-0321/SO,902.50,AABAT TAXIS.
Children and Young Peoples Services,Head of Education and Skills,Transport,230008,Contract Hire,08/04/2021,3853456-0321/SP,"1,327.20",AABAT TAXIS.
Adult and Health Services,Head of Adults,Transport,230005,Contract Hire,08/04/2021,3853456-0321/SQ,590.70,AABAT TAXIS.
Children and Young Peoples Services,Head of Education and Skills,Transport,230007,Contract Hire,08/04/2021,3853456-0321/SR,510.00,AABAT TAXIS.
Children and Young Peoples Services,Head of Education and Skills,Transport,230007,Contract Hire,08/04/2021,3853456-0321/SZ,"1,340.00",AABAT TAXIS.
Children and Young Peoples Services,Head of Education and Skills,Transport,230007,Contract Hire,08/04/2021,3853457-O501,597.80,ABC & OUSTON CABS.
Children and Young Peoples Services,Head of Childrens Social Care,Third Party Payments,486048,Service level agreements E486,08/04/2021,3853458-R81IN2/00011053,"1,723.12",ACTION FOR CHILDREN SERVICES LTD.*
Neighbourhoods and Climate Change,Technical Services CM0300,Supplies and Services,304221,Equipment and Materials,08/04/2021,3853460-31206651,610.00,AGGREGATE INDUSTRIES UK LTD.
Neighbourhoods and Climate Change,Technical Services CM0300,Supplies and Services,304221,Equipment and Materials,08/04/2021,3853460-31213909,728.34,AGGREGATE INDUSTRIES UK LTD.
Adult and Health Services,Head of Adults,Transport,230005,Contract Hire,08/04/2021,3853461-0043,"1,429.83",AIRPORT TAXIS 4U.
Children and Young Peoples Services,Head of Education and Skills,Transport,230012,Contract Hire,08/04/2021,3853462-38895898,"1,958.60",ALAN SOUTHERN T/A ALANS TAXIS PELTON FELL.
Dedicated Schools Grant BG0015,DSG High Needs Block,Third Party Payments,425005,Rendered by Voluntary Organisations,08/04/2021,3853463-445,"5,388.15",ALD GROUP LTD.
Resources BK0010,Legal & Democratic Services,Supplies and Services,338102,Services,08/04/2021,3853466-008752,"4,625.00",ANALYTICAL SERVICES INTERNATIONAL LTD.
Children and Young Peoples Services,Head of Childrens Social Care,Supplies and Services,338044,Services,08/04/2021,3853469-1086,"6,209.40",ANDREW BECKWITH INDEPENDENT LTD.
Children and Young Peoples Services,Head of Education and Skills,Transport,230008,Contract Hire,08/04/2021,3853470-0112,"1,840.00",ANDREW SIMPSON T/A ANDY`S CABS.
"Regeneration, Economy and Growth",Development and Housing,Supplies and Services,352001,Conference Expenses,08/04/2021,3853471-AG/0104/2021,700.00,ANDY GALE HOUSING CONSULTANCY.
Children and Young Peoples Services,Head of Education and Skills,Supplies and Services,384199,Miscellaneous Expenses,08/04/2021,3853475-73943,600.00,ASCENTIS.
Children and Young Peoples Services,Head of Education and Skills,Transport,230008,Contract Hire,08/04/2021,3853476-DCC03MAR21,"2,640.00",ATLAS TAXIS BISHOP AUCKLAND.
Children and Young Peoples Services,Head of Education and Skills,Transport,230008,Contract Hire,08/04/2021,3853476-DCC10MARCH21,"4,040.00",ATLAS TAXIS BISHOP AUCKLAND.
Children and Young Peoples Services,Head of Education and Skills,Transport,230008,Contract Hire,08/04/2021,3853476-DCC11MARCH21,"2,720.00",ATLAS TAXIS BISHOP AUCKLAND.
Adult and Health Services,Head of Adults,Transport,230005,Contract Hire,08/04/2021,3853476-DCC13MARCH2021,"1,506.96",ATLAS TAXIS BISHOP AUCKLAND.
Adult and Health Services,Head of Adults,Transport,230005,Contract Hire,08/04/2021,3853476-DCC5MAR21,"1,571.08",ATLAS TAXIS BISHOP AUCKLAND.
Children and Young Peoples Services,Head of Education and Skills,Transport,230006,Contract Hire,08/04/2021,3853476-DCC6MAR2021,"1,072.00",ATLAS TAXIS BISHOP AUCKLAND.
Children and Young Peoples Services,Head of Education and Skills,Transport,230008,Contract Hire,08/04/2021,3853476-DCC8MARCH21,"4,705.50",ATLAS TAXIS BISHOP AUCKLAND.
Children and Young Peoples Services,Head of Education and Skills,Transport,230008,Contract Hire,08/04/2021,3853476-DCC9MAR21,"2,148.00",ATLAS TAXIS BISHOP AUCKLAND.
Children and Young Peoples Services,Head of Education and Skills,Transport,230006,Contract Hire,08/04/2021,3853478-260321,"2,119.65",AVALON TAXIS.
Children and Young Peoples Services,Head of Education and Skills,Transport,230009,Contract Hire,08/04/2021,3853478-2603212,"2,123.00",AVALON TAXIS.
Neighbourhoods and Climate Change,Environmental Services,Supplies and Services,304221,Equipment and Materials,08/04/2021,3853480-98419689,"2,357.77",BALL COLEGRAVE LTD.
Neighbourhoods and Climate Change,Environmental Services,Supplies and Services,304221,Equipment and Materials,08/04/2021,3853480-98424825,"1,667.28",BALL COLEGRAVE LTD.
Children and Young Peoples Services,Head of Education and Skills,Transport,230008,Contract Hire,08/04/2021,3853482-SMITH1MARCH21,"1,895.00",BEELINE PRIVATE HIRE.
Children and Young Peoples Services,Head of Education and Skills,Transport,230016,Contract Hire,08/04/2021,3853482-SMITH2/MARCH21,865.40,BEELINE PRIVATE HIRE.
Neighbourhoods and Climate Change,Technical Services CM0300,Third Party Payments,430100,Rendered by Private Contractors,08/04/2021,3853486-207R00983,"1,068.20",BIFFA WASTE SERVICES LTD.
Neighbourhoods and Climate Change,Technical Services CM0300,Third Party Payments,430100,Rendered by Private Contractors,08/04/2021,3853486-207R00992,"1,045.80",BIFFA WASTE SERVICES LTD.
Children and Young Peoples Services,Head of Education and Skills,Transport,230008,Contract Hire,08/04/2021,3853487-000379,"1,600.00",BIRDS TAXIS LTD.
Children and Young Peoples Services,Head of Education and Skills,Transport,230008,Contract Hire,08/04/2021,3853487-000380,"2,740.00",BIRDS TAXIS LTD.
Children and Young Peoples Services,Head of Education and Skills,Transport,230007,Contract Hire,08/04/2021,3853487-000381,800.00,BIRDS TAXIS LTD.
Adult and Health Services,Head of Adults,Transport,230005,Contract Hire,08/04/2021,3853487-000383,736.00,BIRDS TAXIS LTD.
Adult and Health Services,Head of Adults,Transport,230005,Contract Hire,08/04/2021,3853487-000384,720.00,BIRDS TAXIS LTD.
Adult and Health Services,Head of Adults,Transport,230005,Contract Hire,08/04/2021,3853487-000390,"1,840.00",BIRDS TAXIS LTD.
Children and Young Peoples Services,Head of Education and Skills,Transport,230008,Contract Hire,08/04/2021,3853489-8028-2021,"2,222.40",BOBBY DOVE PRIVATE HIRE.
Adult and Health Services,Head of Adults,Debtors,930186,Sustainability Funded Nursing Care,08/04/2021,3853490-SUSTAINABILITYPAYMENT-3,"2,907.85",BONDCARE WILLINGTON LTD.
Adult and Health Services,Head of Adults,Debtors,930186,Sustainability Funded Nursing Care,08/04/2021,3853491-SUSTAINABILITYPAYMENT-11,"21,381.25",BONDCARE WILLINGTON LTD.
Neighbourhoods and Climate Change,Environmental Services,Supplies and Services,304221,Equipment and Materials,08/04/2021,3853492-210381,"1,800.00",BRAMBLEDOWN LANDSCAPE SERVICES LTD.
Children and Young Peoples Services,Head of Education and Skills,Transport,230008,Contract Hire,08/04/2021,3853493-BZ00365,"1,717.50",BREZ`S TAXIS.
Children and Young Peoples Services,Head of Education and Skills,Transport,230008,Contract Hire,08/04/2021,3853493-BZ00366,"1,109.55",BREZ`S TAXIS.
Children and Young Peoples Services,Head of Early Help Inclusion & Vulnerable Children.,Supplies and Services,338099,Services,08/04/2021,3853494-INV273686,959.00,BROXAP LTD.
Adult and Health Services,Head of Adults,Debtors,930186,Sustainability Funded Nursing Care,08/04/2021,3853496-SUSTAINABILITYPAYMENT-13,"5,815.70",CARE UK COMMUNITY PARTNERSHIPS LTD.
Adult and Health Services,Head of Adults,Supplies and Services,308011,Furniture,08/04/2021,3853497-SI-2172,"3,830.00",CAREFREE MOBILITY SERVICES LTD.
Children and Young Peoples Services,Head of Childrens Social Care,Supplies and Services,384500,Miscellaneous Expenses,08/04/2021,3853499-318,600.00,CATHERINE MORRIS OCCUPATIONAL THERAPY.
Resources BK0010,Digital and Customer Services,Vehicles Equipment Furniture and Fittings,912701,Computer equipment,08/04/2021,3853500-PSIN03109208,"8,598.80",CDW LTD.
Resources BK0010,Digital and Customer Services,Supplies and Services,342033,Computers and Communications,08/04/2021,3853501-104253,"25,480.00",CENTRAL POWER SERVICES LTD (CPS).
Children and Young Peoples Services,Head of Education and Skills,Transport,230007,Contract Hire,08/04/2021,3853502-04-MARCH,"1,162.50",CHAPMAN TRAVEL.
Children and Young Peoples Services,Head of Education and Skills,Transport,230006,Contract Hire,08/04/2021,3853507-F797-7-MARCH,960.00,CHRIS BELL T/A MEGAN`S TAXIS.
Children and Young Peoples Services,Head of Education and Skills,Transport,230007,Contract Hire,08/04/2021,3853509-5269/07,738.00,CHRISTOPHER MADDISON (TAXI).
Children and Young Peoples Services,Head of Education and Skills,Transport,230006,Contract Hire,08/04/2021,3853509-F830/12,853.00,CHRISTOPHER MADDISON (TAXI).
Children and Young Peoples Services,Head of Education and Skills,Transport,230006,Contract Hire,08/04/2021,3853512-N112-GHH0321,"2,068.55",CJ`S EXECUTIVE TRAVEL LTD.
Adult and Health Services,Head of Adults,Third Party Payments,478151,Purchase of Care,08/04/2021,3853515-308364L/GC,"2,747.64",COMMUNITY INTEGRATED CARE LTD.
Children and Young Peoples Services,Head of Education and Skills,Transport,230008,Contract Hire,08/04/2021,3853518-1716,"2,054.40",CONNORS MINI BUSES.*
"Regeneration, Economy and Growth",Corporate Property and Land,Supplies and Services,304221,Equipment and Materials,08/04/2021,3853519-SRO20186,834.00,CONSIDERATE CONSTRUCTORS SCHEME.
Resources BK0010,Legal & Democratic Services,Supplies and Services,338025,Services,08/04/2021,3853513-S44997-01143,520.00,CO-OPERATIVE FUNERAL CARE.
Children and Young Peoples Services,Head of Education and Skills,Supplies and Services,338094,Services,08/04/2021,3853520-484,"1,020.00",CORNERSTONES CENTRE FOR THE COMMUNITY.
Neighbourhoods and Climate Change,Community Protection,Supplies and Services,304999,Equipment and Materials,08/04/2021,3853521-91469,"2,733.68",CORPORATE COMPUTER SUPPLIES LTD.
Adult and Health Services,Head of Adults,Debtors,930186,Sustainability Funded Nursing Care,08/04/2021,3853525-SUSTAINABILITYPAYMENT-4,"1,368.40",CRAIGARRAN LTD.
Children and Young Peoples Services,Head of Education and Skills,Transport,230008,Contract Hire,08/04/2021,3853526-110557,"2,186.25",CROFT BUSINESS SERVICES (UK) LTD T/A CROFT TAXIS.
Children and Young Peoples Services,Head of Education and Skills,Transport,230008,Contract Hire,08/04/2021,3853526-110561,"2,680.00",CROFT BUSINESS SERVICES (UK) LTD T/A CROFT TAXIS.
Children and Young Peoples Services,Head of Education and Skills,Transport,230008,Contract Hire,08/04/2021,3853526-110562,"2,826.50",CROFT BUSINESS SERVICES (UK) LTD T/A CROFT TAXIS.
Children and Young Peoples Services,Head of Education and Skills,Transport,230008,Contract Hire,08/04/2021,3853526-110564,"1,475.30",CROFT BUSINESS SERVICES (UK) LTD T/A CROFT TAXIS.
Children and Young Peoples Services,Head of Education and Skills,Transport,230008,Contract Hire,08/04/2021,3853526-110565,"4,110.00",CROFT BUSINESS SERVICES (UK) LTD T/A CROFT TAXIS.
Children and Young Peoples Services,Head of Education and Skills,Transport,230008,Contract Hire,08/04/2021,3853526-110566,"1,372.85",CROFT BUSINESS SERVICES (UK) LTD T/A CROFT TAXIS.
Children and Young Peoples Services,Head of Education and Skills,Transport,230008,Contract Hire,08/04/2021,3853526-110567,"2,933.60",CROFT BUSINESS SERVICES (UK) LTD T/A CROFT TAXIS.
Adult and Health Services,Head of Adults,Transport,230005,Contract Hire,08/04/2021,3853526-110568,622.86,CROFT BUSINESS SERVICES (UK) LTD T/A CROFT TAXIS.
Adult and Health Services,Head of Adults,Debtors,930186,Sustainability Funded Nursing Care,08/04/2021,3853527-SUSTAINABILITYPAYMENT-12,"8,381.45",CROWN CARE VI LTD.
"Regeneration, Economy and Growth",Development and Housing,Supplies and Services,338066,Services,08/04/2021,3853529-GB3002-CI-21-00353,"3,000.00",CUSHMAN & WAKEFIELD DEBENHAM TIE LEUNG LTD.
Children and Young Peoples Services,Head of Education and Skills,Transport,230034,Contract Hire,08/04/2021,3853531-SEDGEFIELD310321,893.00,D IRVING T/A BJ TAXIS.
Children and Young Peoples Services,Head of Education and Skills,Transport,230008,Contract Hire,08/04/2021,3853532-1723,"1,851.20",DA TAXIS.
Children and Young Peoples Services,Head of Education and Skills,Transport,230006,Contract Hire,08/04/2021,3853533-467,"1,200.00",DA TRAVEL.
Children and Young Peoples Services,Head of Education and Skills,Transport,230008,Contract Hire,08/04/2021,3853534-3622,"2,445.20",DAVES MINIBUSES.
Children and Young Peoples Services,Head of Education and Skills,Transport,230008,Contract Hire,08/04/2021,3853534-3623,"1,812.52",DAVES MINIBUSES.
Children and Young Peoples Services,Head of Education and Skills,Transport,230008,Contract Hire,08/04/2021,3853534-3625,"1,947.00",DAVES MINIBUSES.
Children and Young Peoples Services,Head of Education and Skills,Transport,230008,Contract Hire,08/04/2021,3853534-3627,"2,108.00",DAVES MINIBUSES.
Children and Young Peoples Services,Head of Education and Skills,Transport,230008,Contract Hire,08/04/2021,3853535-B21,"1,636.40",DAVID FOREMAN T/A DAVES TAXIS.
Adult and Health Services,Head of Adults,Third Party Payments,478151,Purchase of Care,08/04/2021,3853536-INV-0728,"1,853.60",DEACONSTAR LTD.
Adult and Health Services,Head of Adults,Debtors,930186,Sustainability Funded Nursing Care,08/04/2021,3853537-SUSTAINABILITYPAYMENT-5,"1,026.30",DIPTON CARE HOME LTD.
Neighbourhoods and Climate Change,Environmental Services,Supplies and Services,304221,Equipment and Materials,08/04/2021,3853543-0000135574,783.09,EARLEY ORNAMENTALS LTD.
"Regeneration, Economy and Growth",Business Durham CL0850,Premises,120009,Energy Costs,08/04/2021,3853546-000009483757,"4,102.33",EDF ENERGY CUSTOMERS PLC T/A EDF ENERGY.
"Regeneration, Economy and Growth",Corporate Property and Land,Supplies and Services,304221,Equipment and Materials,08/04/2021,3853547-059-276927,"1,781.10",EDMUNDSON ELECTRICAL LTD.
Adult and Health Services,Head of Adults,Debtors,930186,Sustainability Funded Nursing Care,08/04/2021,3853548-SUSTAINABILITYPAYMENT-6,"5,131.50",ELBA CARE LTD.
Adult and Health Services,Head of Adults,Third Party Payments,478151,Purchase of Care,08/04/2021,3853550-0013,"53,663.40",EMBRACING CARE.
Adult and Health Services,Head of Adults,Third Party Payments,478151,Purchase of Care,08/04/2021,3853550-MIDHILLP13-2021,"3,053.52",EMBRACING CARE.
Neighbourhoods and Climate Change,Technical Services CM0300,Stock A926,926900,Stock in hand-Inventory system,08/04/2021,3853551-78SI/74191,"1,310.60",ENCON INSULATION LTD.
"Regeneration, Economy and Growth",Corporate Property and Land,Fees,901002,Consultants fees 901002,08/04/2021,3853554-131148/18,"1,475.00",FAIRHURST (CONSULTING ENGINEERS).
Adult and Health Services,Head of Adults,Third Party Payments,478151,Purchase of Care,08/04/2021,3853555-0000002757,"1,764.00",FLEXIBLE SUPPORT OPTIONS LTD.
Children and Young Peoples Services,Head of Education and Skills,Transport,230007,Contract Hire,08/04/2021,3853559-22705,"4,683.75",GARNETTS LTD (COACHES).
Children and Young Peoples Services,Head of Childrens Social Care,Employees,080025,Agency Staff,08/04/2021,3853563-2447535,"160,083.28",GEOMETRIC RESULTS INTERNATIONAL.
"Regeneration, Economy and Growth",Corporate Property and Land,Supplies and Services,304221,Equipment and Materials,08/04/2021,3853564-120986,"1,580.71",GIACOMINI UK LTD.
Children and Young Peoples Services,Head of Early Help Inclusion & Vulnerable Children.,Supplies and Services,304259,Equipment and Materials,08/04/2021,3853565-SINV00302999,766.32,GL ASSESSMENT LTD.
Children and Young Peoples Services,Head of Education and Skills,Transport,230007,Contract Hire,08/04/2021,3853568-90/277-3048,"1,485.00",GRAHAMS MOTOR SERVICES LTD.
Children and Young Peoples Services,Head of Education and Skills,Transport,230007,Contract Hire,08/04/2021,3853568-90/277-FEB-3048,"1,113.75",GRAHAMS MOTOR SERVICES LTD.
Children and Young Peoples Services,Head of Education and Skills,Transport,230007,Contract Hire,08/04/2021,3853568-90/277-MARCH,"1,856.25",GRAHAMS MOTOR SERVICES LTD.
"Regeneration, Economy and Growth",Transport and Contracted Services,Supplies and Services,384540,Miscellaneous Expenses,08/04/2021,3853571-INV-0421,"2,205.00",GRM MAPPING LTD.
Neighbourhoods and Climate Change,Environmental Services,Supplies and Services,304221,Equipment and Materials,08/04/2021,3853573-161033,"1,110.88",GUSTHARTS LTD.
Children and Young Peoples Services,Head of Education and Skills,Transport,230034,Contract Hire,08/04/2021,3853574-002-MARCH21,840.00,GUY`S TAXIS.
Children and Young Peoples Services,Head of Education and Skills,Transport,230007,Contract Hire,08/04/2021,3853575-07-02,960.26,HARDIP SINGH MAHIL T/A AMBER CARS.
Children and Young Peoples Services,Head of Education and Skills,Transport,230008,Contract Hire,08/04/2021,3853577-HT525,"2,440.00",HARRY`S TAXI`S.
Children and Young Peoples Services,Head of Education and Skills,Transport,230008,Contract Hire,08/04/2021,3853577-HT526,"2,640.00",HARRY`S TAXI`S.
Children and Young Peoples Services,Head of Education and Skills,Transport,230007,Contract Hire,08/04/2021,3853577-HT527,"2,128.00",HARRY`S TAXI`S.
Children and Young Peoples Services,Head of Education and Skills,Transport,230008,Contract Hire,08/04/2021,3853577-HT528,"1,640.00",HARRY`S TAXI`S.
Children and Young Peoples Services,Head of Education and Skills,Transport,230016,Contract Hire,08/04/2021,3853577-HT529,532.00,HARRY`S TAXI`S.
Adult and Health Services,Head of Adults,Debtors,930186,Sustainability Funded Nursing Care,08/04/2021,3853578-SUSTAINABILITYPAYMENT-9,"2,736.80",HC-ONE BEAMISH LTD.
Adult and Health Services,Head of Adults,Debtors,930186,Sustainability Funded Nursing Care,08/04/2021,3853579-SUSTAINABILITYPAYMENT-14,"1,368.40",HC-ONE LTD.
Adult and Health Services,Head of Adults,Debtors,930186,Sustainability Funded Nursing Care,08/04/2021,3853581-SUSTAINABILITYPAYMENT-2,"2,394.70",HC-ONE LTD.
"Regeneration, Economy and Growth",Transport and Contracted Services,Third Party Payments,430106,Rendered by Private Contractors,08/04/2021,3853584-18307,"13,312.40",HODGSONS COACH OPERATORS LTD.
Children and Young Peoples Services,Head of Education and Skills,Transport,230003,Contract Hire,08/04/2021,3853584-18312,921.91,HODGSONS COACH OPERATORS LTD.
Children and Young Peoples Services,Head of Education and Skills,Transport,230007,Contract Hire,08/04/2021,3853584-18314-3042,"3,514.00",HODGSONS COACH OPERATORS LTD.
Children and Young Peoples Services,Head of Education and Skills,Transport,230007,Contract Hire,08/04/2021,3853584-18314-3044,"3,324.60",HODGSONS COACH OPERATORS LTD.
Children and Young Peoples Services,Head of Education and Skills,Transport,230007,Contract Hire,08/04/2021,3853584-18315,"4,328.60",HODGSONS COACH OPERATORS LTD.
Children and Young Peoples Services,Head of Education and Skills,Transport,230007,Contract Hire,08/04/2021,3853584-18316,"2,260.00",HODGSONS COACH OPERATORS LTD.
Children and Young Peoples Services,Head of Education and Skills,Transport,230007,Contract Hire,08/04/2021,3853584-18317,"1,914.60",HODGSONS COACH OPERATORS LTD.
Children and Young Peoples Services,Head of Education and Skills,Transport,230007,Contract Hire,08/04/2021,3853584-18323,555.00,HODGSONS COACH OPERATORS LTD.
Children and Young Peoples Services,Head of Education and Skills,Transport,230007,Contract Hire,08/04/2021,3853584-18325,965.20,HODGSONS COACH OPERATORS LTD.
Adult and Health Services,Head of Adults,Transport,230005,Contract Hire,08/04/2021,3853584-18326,666.96,HODGSONS COACH OPERATORS LTD.
Children and Young Peoples Services,Head of Education and Skills,Transport,230034,Contract Hire,08/04/2021,3853584-18332,"1,796.00",HODGSONS COACH OPERATORS LTD.
Children and Young Peoples Services,Head of Education and Skills,Transport,230008,Contract Hire,08/04/2021,3853585-499,"3,520.00",IAN CLYDESDALE T/A BURNOPFIELD TAXIS.
Children and Young Peoples Services,Head of Education and Skills,Transport,230006,Contract Hire,08/04/2021,3853585-500,"2,900.00",IAN CLYDESDALE T/A BURNOPFIELD TAXIS.
Adult and Health Services,Head of Adults,Transport,230005,Contract Hire,08/04/2021,3853585-502,"2,691.00",IAN CLYDESDALE T/A BURNOPFIELD TAXIS.
Children and Young Peoples Services,Head of Education and Skills,Transport,230034,Contract Hire,08/04/2021,3853585-504,"1,989.50",IAN CLYDESDALE T/A BURNOPFIELD TAXIS.
Children and Young Peoples Services,Head of Education and Skills,Transport,230008,Contract Hire,08/04/2021,3853585-505,"2,136.75",IAN CLYDESDALE T/A BURNOPFIELD TAXIS.
Children and Young Peoples Services,Head of Education and Skills,Transport,230008,Contract Hire,08/04/2021,3853585-506,"2,532.50",IAN CLYDESDALE T/A BURNOPFIELD TAXIS.
Neighbourhoods and Climate Change,Technical Services CM0300,Stock A926,926900,Stock in hand-Inventory system,08/04/2021,3853588-774663,"3,320.80",INSTARMAC GROUP PLC.
Resources BK0010,Finance & Transactional Services,Supplies and Services,352001,Conference Expenses,08/04/2021,3853589-03CERT/18,"2,500.00",IRRV NORTHERN COUNTIES ASSOCIATION.
Children and Young Peoples Services,Head of Education and Skills,Transport,230008,Contract Hire,08/04/2021,3853594-80,"2,440.00",JAYS TAXIS/JOHN GARLAND (TAXIS).
Children and Young Peoples Services,Head of Education and Skills,Transport,230008,Contract Hire,08/04/2021,3853594-81,"1,540.00",JAYS TAXIS/JOHN GARLAND (TAXIS).
Children and Young Peoples Services,Head of Education and Skills,Transport,230034,Contract Hire,08/04/2021,3853594-82,"2,290.00",JAYS TAXIS/JOHN GARLAND (TAXIS).
Children and Young Peoples Services,Head of Education and Skills,Transport,230008,Contract Hire,08/04/2021,3853594-83,"3,040.00",JAYS TAXIS/JOHN GARLAND (TAXIS).
Children and Young Peoples Services,Head of Education and Skills,Transport,230008,Contract Hire,08/04/2021,3853595-2062,"2,731.40",JDS PRIVATE HIRE DURHAM.
Children and Young Peoples Services,Head of Education and Skills,Transport,230008,Contract Hire,08/04/2021,3853595-2063,"3,266.00",JDS PRIVATE HIRE DURHAM.
Children and Young Peoples Services,Head of Education and Skills,Transport,230008,Contract Hire,08/04/2021,3853595-2064,"2,640.00",JDS PRIVATE HIRE DURHAM.
Children and Young Peoples Services,Head of Education and Skills,Transport,230008,Contract Hire,08/04/2021,3853595-2065,"2,534.40",JDS PRIVATE HIRE DURHAM.
Children and Young Peoples Services,Head of Education and Skills,Transport,230008,Contract Hire,08/04/2021,3853595-2066,"3,039.40",JDS PRIVATE HIRE DURHAM.
Children and Young Peoples Services,Head of Education and Skills,Transport,230008,Contract Hire,08/04/2021,3853595-2070,"1,652.60",JDS PRIVATE HIRE DURHAM.
Children and Young Peoples Services,Head of Education and Skills,Transport,230008,Contract Hire,08/04/2021,3853595-2071,727.40,JDS PRIVATE HIRE DURHAM.
Children and Young Peoples Services,Head of Education and Skills,Transport,230008,Contract Hire,08/04/2021,3853595-2072,"1,653.00",JDS PRIVATE HIRE DURHAM.
Children and Young Peoples Services,Head of Education and Skills,Transport,230008,Contract Hire,08/04/2021,3853595-2073,"1,616.00",JDS PRIVATE HIRE DURHAM.
Children and Young Peoples Services,Head of Education and Skills,Transport,230008,Contract Hire,08/04/2021,3853595-2077,"1,653.00",JDS PRIVATE HIRE DURHAM.
Children and Young Peoples Services,Head of Education and Skills,Transport,230008,Contract Hire,08/04/2021,3853595-2078,"2,520.80",JDS PRIVATE HIRE DURHAM.
Children and Young Peoples Services,Head of Education and Skills,Transport,230008,Contract Hire,08/04/2021,3853595-2079,"1,400.00",JDS PRIVATE HIRE DURHAM.
Children and Young Peoples Services,Head of Education and Skills,Transport,230010,Contract Hire,08/04/2021,3853595-2080,"2,268.40",JDS PRIVATE HIRE DURHAM.
Adult and Health Services,Head of Adults,Transport,230005,Contract Hire,08/04/2021,3853595-2081,832.00,JDS PRIVATE HIRE DURHAM.
Children and Young Peoples Services,Head of Education and Skills,Transport,230008,Contract Hire,08/04/2021,3853595-2082,"2,840.00",JDS PRIVATE HIRE DURHAM.
Children and Young Peoples Services,Head of Education and Skills,Transport,230034,Contract Hire,08/04/2021,3853595-2084,"1,940.00",JDS PRIVATE HIRE DURHAM.
Children and Young Peoples Services,Head of Education and Skills,Transport,230034,Contract Hire,08/04/2021,3853595-2085,"1,400.00",JDS PRIVATE HIRE DURHAM.
Children and Young Peoples Services,Head of Education and Skills,Transport,230008,Contract Hire,08/04/2021,3853595-2087,"1,840.00",JDS PRIVATE HIRE DURHAM.
Neighbourhoods and Climate Change,Technical Services CM0300,Supplies and Services,304358,Equipment and Materials,08/04/2021,3853598-31025,989.50,JOHN R BUTTERFIELD LTD.
Neighbourhoods and Climate Change,Technical Services CM0300,Supplies and Services,304358,Equipment and Materials,08/04/2021,3853598-31144,"1,058.00",JOHN R BUTTERFIELD LTD.
Neighbourhoods and Climate Change,Technical Services CM0300,Supplies and Services,304358,Equipment and Materials,08/04/2021,3853598-31247,"1,136.00",JOHN R BUTTERFIELD LTD.
Neighbourhoods and Climate Change,Technical Services CM0300,Supplies and Services,304358,Equipment and Materials,08/04/2021,3853598-31248,"1,136.00",JOHN R BUTTERFIELD LTD.
Neighbourhoods and Climate Change,Technical Services CM0300,Supplies and Services,304358,Equipment and Materials,08/04/2021,3853598-31290,"1,139.25",JOHN R BUTTERFIELD LTD.
Neighbourhoods and Climate Change,Technical Services CM0300,Supplies and Services,304358,Equipment and Materials,08/04/2021,3853598-31291,"1,204.00",JOHN R BUTTERFIELD LTD.
Neighbourhoods and Climate Change,Technical Services CM0300,Supplies and Services,304358,Equipment and Materials,08/04/2021,3853598-31300,756.75,JOHN R BUTTERFIELD LTD.
Children and Young Peoples Services,Head of Education and Skills,Transport,230007,Contract Hire,08/04/2021,3853599-CORPTRAVWPAMAR21,790.00,JOHN W CROOK T/A CORPORATE TRAVEL.
Children and Young Peoples Services,Head of Education and Skills,Transport,230016,Contract Hire,08/04/2021,3853603-M11013,650.00,JOVIAL PRIVATE HIRE.
"Regeneration, Economy and Growth",Corporate Property and Land,Supplies and Services,304221,Equipment and Materials,08/04/2021,3853604-0113/00323816,"3,224.40",JT DOVE LTD.
Neighbourhoods and Climate Change,Technical Services CM0300,Stock A926,926900,Stock in hand-Inventory system,08/04/2021,3853604-0113/00326912,"1,236.76",JT DOVE LTD.
Neighbourhoods and Climate Change,Technical Services CM0300,Third Party Payments,430128,Rendered by Private Contractors,08/04/2021,3853605-1939,"1,190.50",JTF & JR FINCH (WINTER MAINTENANCE CONTRACTOR).
Neighbourhoods and Climate Change,Technical Services CM0300,Supplies and Services,304358,Equipment and Materials,08/04/2021,3853607-3656,778.00,KEVIN SNOWDON GROUNDWORKS LTD.
Neighbourhoods and Climate Change,Technical Services CM0300,Supplies and Services,304358,Equipment and Materials,08/04/2021,3853607-3657,"1,176.00",KEVIN SNOWDON GROUNDWORKS LTD.
Neighbourhoods and Climate Change,Technical Services CM0300,Supplies and Services,304358,Equipment and Materials,08/04/2021,3853607-3660,"1,176.00",KEVIN SNOWDON GROUNDWORKS LTD.
Neighbourhoods and Climate Change,Technical Services CM0300,Supplies and Services,304358,Equipment and Materials,08/04/2021,3853607-3661,596.00,KEVIN SNOWDON GROUNDWORKS LTD.
Neighbourhoods and Climate Change,Technical Services CM0300,Supplies and Services,304358,Equipment and Materials,08/04/2021,3853607-3666,"1,054.75",KEVIN SNOWDON GROUNDWORKS LTD.
Neighbourhoods and Climate Change,Technical Services CM0300,Supplies and Services,304358,Equipment and Materials,08/04/2021,3853607-3667,"1,054.75",KEVIN SNOWDON GROUNDWORKS LTD.
Neighbourhoods and Climate Change,Technical Services CM0300,Supplies and Services,304358,Equipment and Materials,08/04/2021,3853607-3671,528.00,KEVIN SNOWDON GROUNDWORKS LTD.
Neighbourhoods and Climate Change,Technical Services CM0300,Supplies and Services,304358,Equipment and Materials,08/04/2021,3853607-3674,528.00,KEVIN SNOWDON GROUNDWORKS LTD.
Neighbourhoods and Climate Change,Technical Services CM0300,Supplies and Services,304358,Equipment and Materials,08/04/2021,3853607-3675,888.00,KEVIN SNOWDON GROUNDWORKS LTD.
Children and Young Peoples Services,Head of Education and Skills,Transport,230008,Contract Hire,08/04/2021,3853609-123-MARCH21,"2,412.00",KINGSWAY CABS LTD.
Children and Young Peoples Services,Head of Education and Skills,Transport,230008,Contract Hire,08/04/2021,3853609-124-MARCH21,"2,070.00",KINGSWAY CABS LTD.
Children and Young Peoples Services,Head of Education and Skills,Transport,230008,Contract Hire,08/04/2021,3853609-129,"1,620.00",KINGSWAY CABS LTD.
Dedicated Schools Grant BG0015,DSG Early Years Block,Transfer Payments,510030,School Children,08/04/2021,3853610-25082,648.45,KIRKLANDS DAY NURSERY.
Adult and Health Services,Head of Adults,Debtors,930186,Sustainability Funded Nursing Care,08/04/2021,3853612-SUSTAINABILITYPAYMENT-8,"6,842.00",LEAZES HALL CARE HOME LTD.
"Regeneration, Economy and Growth",Business Durham CL0850,Supplies and Services,336005,Advertising E336,08/04/2021,3853613-BUSINESS,"4,990.00",LEC CONSULTANCY LTD.
Children and Young Peoples Services,Head of Education and Skills,Transport,230003,Contract Hire,08/04/2021,3853614-29491,"4,500.00",LEE`S COACHES LTD.
Children and Young Peoples Services,Head of Education and Skills,Transport,230007,Contract Hire,08/04/2021,3853614-29493,"3,900.00",LEE`S COACHES LTD.
Children and Young Peoples Services,Head of Education and Skills,Transport,230008,Contract Hire,08/04/2021,3853616-006-MARCH21,"2,100.00",LIMASEC LTD T/A LIMA TRANSPORT.
"Regeneration, Economy and Growth",Development and Housing,Fees,901002,Consultants fees 901002,08/04/2021,3853617-02-03/21,"1,500.00",LIONEL PLAYFORD CONTEMPORARY ART.
Children and Young Peoples Services,Head of Education and Skills,Construction work A908,908105,Construction work,08/04/2021,3853618-130218,750.00,LUCION ENVIRONMENTAL LLP LTD.
"Regeneration, Economy and Growth",Transport and Contracted Services,Construction work A908,908105,Construction work,08/04/2021,3853618-130480,575.00,LUCION ENVIRONMENTAL LLP LTD.
Neighbourhoods and Climate Change,Technical Services CM0300,Supplies and Services,304358,Equipment and Materials,08/04/2021,3853620-MS2693,835.20,M SPENCE SURFACING LTD.
Neighbourhoods and Climate Change,Technical Services CM0300,Supplies and Services,304358,Equipment and Materials,08/04/2021,3853620-MS2694,619.20,M SPENCE SURFACING LTD.
Neighbourhoods and Climate Change,Technical Services CM0300,Supplies and Services,304358,Equipment and Materials,08/04/2021,3853620-MS2702,607.95,M SPENCE SURFACING LTD.
Neighbourhoods and Climate Change,Technical Services CM0300,Supplies and Services,304358,Equipment and Materials,08/04/2021,3853620-MS2704,"2,151.38",M SPENCE SURFACING LTD.
Neighbourhoods and Climate Change,Technical Services CM0300,Supplies and Services,304358,Equipment and Materials,08/04/2021,3853620-MS2708,603.00,M SPENCE SURFACING LTD.
Children and Young Peoples Services,Head of Education and Skills,Transport,230008,Contract Hire,08/04/2021,3853621-50,"2,440.00",M&C`S CABS LTD.
Adult and Health Services,Head of Adults,Supplies and Services,338099,Services,08/04/2021,3853622-MAHON2,730.00,MAHON HOUSE BOARDING KENNELS & CATTERY.
Neighbourhoods and Climate Change,Technical Services CM0300,Third Party Payments,430100,Rendered by Private Contractors,08/04/2021,3853623-6046,"3,724.00",MAKEPEACE MOTORS.
Neighbourhoods and Climate Change,Technical Services CM0300,Third Party Payments,430100,Rendered by Private Contractors,08/04/2021,3853623-6047,"4,200.00",MAKEPEACE MOTORS.
Neighbourhoods and Climate Change,Technical Services CM0300,Third Party Payments,430128,Rendered by Private Contractors,08/04/2021,3853623-6049,"5,305.50",MAKEPEACE MOTORS.
Neighbourhoods and Climate Change,Technical Services CM0300,Third Party Payments,430128,Rendered by Private Contractors,08/04/2021,3853623-6052,674.00,MAKEPEACE MOTORS.
Children and Young Peoples Services,Head of Education and Skills,Transport,230008,Contract Hire,08/04/2021,3853628-INV03/2021,"3,074.40",MARK & JOHN CHISHOLM T/A (CHEVRON).
Children and Young Peoples Services,Head of Education and Skills,Transport,230010,Contract Hire,08/04/2021,3853628-INV03/2021-03,"2,506.09",MARK & JOHN CHISHOLM T/A (CHEVRON).
Children and Young Peoples Services,Head of Education and Skills,Transport,230010,Contract Hire,08/04/2021,3853628-INV03/2021-04,"2,180.38",MARK & JOHN CHISHOLM T/A (CHEVRON).
Children and Young Peoples Services,Head of Education and Skills,Transport,230010,Contract Hire,08/04/2021,3853628-INV03/2021-05,"2,104.59",MARK & JOHN CHISHOLM T/A (CHEVRON).
Children and Young Peoples Services,Head of Education and Skills,Transport,230008,Contract Hire,08/04/2021,3853628-INV03/2021-10,"2,246.60",MARK & JOHN CHISHOLM T/A (CHEVRON).
Children and Young Peoples Services,Head of Education and Skills,Transport,230010,Contract Hire,08/04/2021,3853628-INV03/2021-14,"1,598.25",MARK & JOHN CHISHOLM T/A (CHEVRON).
Children and Young Peoples Services,Head of Education and Skills,Transport,230008,Contract Hire,08/04/2021,3853628-INV03/2021-20,"2,840.00",MARK & JOHN CHISHOLM T/A (CHEVRON).
Children and Young Peoples Services,Head of Education and Skills,Transport,230008,Contract Hire,08/04/2021,3853628-INV03/2021-24,"1,360.00",MARK & JOHN CHISHOLM T/A (CHEVRON).
Children and Young Peoples Services,Head of Education and Skills,Transport,230010,Contract Hire,08/04/2021,3853628-INV03/2021-26,"1,947.00",MARK & JOHN CHISHOLM T/A (CHEVRON).
Children and Young Peoples Services,Head of Education and Skills,Transport,230034,Contract Hire,08/04/2021,3853628-INV03/2021-27,"1,600.00",MARK & JOHN CHISHOLM T/A (CHEVRON).
Children and Young Peoples Services,Head of Education and Skills,Transport,230034,Contract Hire,08/04/2021,3853628-INV03/2021-28,"1,583.60",MARK & JOHN CHISHOLM T/A (CHEVRON).
Children and Young Peoples Services,Head of Education and Skills,Transport,230008,Contract Hire,08/04/2021,3853631-59,"2,025.75",MARK WATSON T/A MARK`S TAXIS.
Children and Young Peoples Services,Head of Education and Skills,Transport,230008,Contract Hire,08/04/2021,3853631-60,"1,440.00",MARK WATSON T/A MARK`S TAXIS.
Children and Young Peoples Services,Head of Education and Skills,Transport,230034,Contract Hire,08/04/2021,3853636-6048,"1,040.00",MR AG WILSON T/A ALAN`S TAXIS (DURHAM CITY).
Children and Young Peoples Services,Head of Education and Skills,Transport,230007,Contract Hire,08/04/2021,3853636-AT235,592.50,MR AG WILSON T/A ALAN`S TAXIS (DURHAM CITY).
Children and Young Peoples Services,Head of Education and Skills,Transport,230012,Contract Hire,08/04/2021,3853637-CHPK03-21,"1,693.10",MR CT WALKER T/A CW TAXIS.
Children and Young Peoples Services,Head of Education and Skills,Transport,230007,Contract Hire,08/04/2021,3853637-DJS03-21,"1,763.50",MR CT WALKER T/A CW TAXIS.
Children and Young Peoples Services,Head of Education and Skills,Transport,230035,Contract Hire,08/04/2021,3853637-HERM03-21,"1,425.00",MR CT WALKER T/A CW TAXIS.
Children and Young Peoples Services,Head of Education and Skills,Transport,230008,Contract Hire,08/04/2021,3853637-OAK103-21,"1,989.30",MR CT WALKER T/A CW TAXIS.
Children and Young Peoples Services,Head of Education and Skills,Transport,230007,Contract Hire,08/04/2021,3853641-ESH0321,"1,050.00",MR STUART SCOTT T/A AIRPORT CARS DURHAM
Children and Young Peoples Services,Head of Education and Skills,Transport,230010,Contract Hire,08/04/2021,3853642-720/212,"1,700.40",MR TERENCE DOUGHERTY T/A TERRYS TAXIS.
Neighbourhoods and Climate Change,Technical Services CM0300,Supplies and Services,304358,Equipment and Materials,08/04/2021,3853646-NC/145/BW,"2,035.00",NEDCO CONTRACTS (NE) LTD.
Neighbourhoods and Climate Change,Environmental Services,Supplies and Services,304221,Equipment and Materials,08/04/2021,3853649-33780,"2,550.00",NIGEL BUCHANAN T/A PREMIER PARTS UK LTD.
Neighbourhoods and Climate Change,Environmental Services,Supplies and Services,304221,Equipment and Materials,08/04/2021,3853649-33781,850.00,NIGEL BUCHANAN T/A PREMIER PARTS UK LTD.
Dedicated Schools Grant BG0015,DSG High Needs Block,Third Party Payments,425005,Rendered by Voluntary Organisations,08/04/2021,3853651-0000055055,"22,439.52",NORTH EAST AUTISM SOCIETY.
Dedicated Schools Grant BG0015,DSG High Needs Block,Third Party Payments,425005,Rendered by Voluntary Organisations,08/04/2021,3853651-0000055541,"22,536.28",NORTH EAST AUTISM SOCIETY.
Dedicated Schools Grant BG0015,DSG High Needs Block,Third Party Payments,425005,Rendered by Voluntary Organisations,08/04/2021,3853651-0000055544,"21,779.52",NORTH EAST AUTISM SOCIETY.
Dedicated Schools Grant BG0015,DSG High Needs Block,Third Party Payments,440080,Other third party payments E440,08/04/2021,3853651-0000055597,"4,820.00",NORTH EAST AUTISM SOCIETY.
Dedicated Schools Grant BG0015,DSG High Needs Block,Third Party Payments,440080,Other third party payments E440,08/04/2021,3853651-0000055598,"1,020.00",NORTH EAST AUTISM SOCIETY.
Dedicated Schools Grant BG0015,DSG High Needs Block,Third Party Payments,440080,Other third party payments E440,08/04/2021,3853651-0000055599,"4,820.00",NORTH EAST AUTISM SOCIETY.
Dedicated Schools Grant BG0015,DSG High Needs Block,Third Party Payments,440080,Other third party payments E440,08/04/2021,3853651-0000055600,"10,013.33",NORTH EAST AUTISM SOCIETY.
Dedicated Schools Grant BG0015,DSG High Needs Block,Third Party Payments,440080,Other third party payments E440,08/04/2021,3853651-0000055637,"23,790.00",NORTH EAST AUTISM SOCIETY.
Children and Young Peoples Services,Head of Education and Skills,Transport,230007,Contract Hire,08/04/2021,3853652-6681,"3,572.06",NORTH EAST COACHWAYS LTD.
Children and Young Peoples Services,Head of Education and Skills,Transport,230007,Contract Hire,08/04/2021,3853652-6682,"2,463.75",NORTH EAST COACHWAYS LTD.
Children and Young Peoples Services,Head of Education and Skills,Transport,230007,Contract Hire,08/04/2021,3853652-6683,"2,320.00",NORTH EAST COACHWAYS LTD.
Children and Young Peoples Services,Head of Education and Skills,Transport,230007,Contract Hire,08/04/2021,3853652-6684,"2,620.00",NORTH EAST COACHWAYS LTD.
Children and Young Peoples Services,Head of Education and Skills,Transport,230007,Contract Hire,08/04/2021,3853652-6685,"2,557.50",NORTH EAST COACHWAYS LTD.
Children and Young Peoples Services,Head of Education and Skills,Transport,230003,Contract Hire,08/04/2021,3853652-6686,"3,720.00",NORTH EAST COACHWAYS LTD.
Children and Young Peoples Services,Head of Education and Skills,Transport,230007,Contract Hire,08/04/2021,3853652-6687,"2,694.80",NORTH EAST COACHWAYS LTD.
"Regeneration, Economy and Growth",Development and Housing,Construction work A908,908105,Construction work,08/04/2021,3853653-DI20357929,"10,077.20",NORTHERN POWERGRID (NORTHEAST) LTD.
Adult and Health Services,Head of Adults,Debtors,930186,Sustainability Funded Nursing Care,08/04/2021,3853656-SUSTAINABILITYPAYMENT-1,"20,183.90",OBJECT QUEST LTD.
Neighbourhoods and Climate Change,Technical Services CM0300,Third Party Payments,430100,Rendered by Private Contractors,08/04/2021,3853658-23721,"2,520.00",OLIVERS TREE SERVICES LTD.
Dedicated Schools Grant BG0015,DSG High Needs Block,Supplies and Services,338027,Services,08/04/2021,3853666-050421,"12,000.00",PETER COADY (EDUCATION CONSULTANT).
Resources BK0010,Legal & Democratic Services,Supplies and Services,338106,Services,08/04/2021,3853667-11122020,900.00,PHILLIPS & CO COSMETIC DENTISTRY.
Resources BK0010,Legal & Democratic Services,Supplies and Services,338106,Services,08/04/2021,3853667-29012021,900.00,PHILLIPS & CO COSMETIC DENTISTRY.
Resources BK0010,Legal & Democratic Services,Supplies and Services,338106,Services,08/04/2021,3853667-30032021,900.00,PHILLIPS & CO COSMETIC DENTISTRY.
"Regeneration, Economy and Growth",Corporate Property and Land,Third Party Payments,430100,Rendered by Private Contractors,08/04/2021,3853669-INV240108,943.83,POINTER FIRE LTD.
Adult and Health Services,Head of Adults,Debtors,930186,Sustainability Funded Nursing Care,08/04/2021,3853671-SUSTAINABILITYPAYMENT-10,"12,828.75",PREMIER CARE HOMES LTD.
"Regeneration, Economy and Growth",Transport and Contracted Services,Construction work A908,908105,Construction work,08/04/2021,3853675-IN16156QTDC,"18,060.00",Q-FREE (BRISTOL) UK LTD.
Neighbourhoods and Climate Change,Technical Services CM0300,Third Party Payments,430100,Rendered by Private Contractors,08/04/2021,3853676-13201,"5,753.60",QUANTUM POWER CONNECTIONS LTD.
Neighbourhoods and Climate Change,Technical Services CM0300,Third Party Payments,430100,Rendered by Private Contractors,08/04/2021,3853676-13202,556.80,QUANTUM POWER CONNECTIONS LTD.
Neighbourhoods and Climate Change,Technical Services CM0300,Third Party Payments,430100,Rendered by Private Contractors,08/04/2021,3853676-13204,742.40,QUANTUM POWER CONNECTIONS LTD.
"Regeneration, Economy and Growth",Business Durham CL0850,Supplies and Services,336005,Advertising E336,08/04/2021,3853678-5512990,"1,600.83",REACH PUBLISHING SERVICES LTD.*
Neighbourhoods and Climate Change,Environmental Services,Supplies and Services,304221,Equipment and Materials,08/04/2021,3853681-RSIN0366835,"4,995.50",RIGBY TAYLOR LTD.
Neighbourhoods and Climate Change,Environmental Services,Supplies and Services,304221,Equipment and Materials,08/04/2021,3853681-RSIN0366837,"4,860.00",RIGBY TAYLOR LTD.
Children and Young Peoples Services,Head of Education and Skills,Transport,230007,Contract Hire,08/04/2021,3853683-1496,"3,572.94",ROBERTS TOURS.
Adult and Health Services,Head of Adults,Supplies and Services,304259,Equipment and Materials,08/04/2021,3853684-147980,653.95,ROMPA LTD.
Children and Young Peoples Services,Head of Education and Skills,Transport,230008,Contract Hire,08/04/2021,3853685-1848,"1,975.00",RON`S TAXIS (FISHBURN).
Adult and Health Services,Head of Adults,Transport,230005,Contract Hire,08/04/2021,3853685-1850,"1,364.88",RON`S TAXIS (FISHBURN).
Resources BK0010,Legal & Democratic Services,Supplies and Services,340001,Postages E340,08/04/2021,3853687-9062682221,"1,781.46",ROYAL MAIL GROUP PLC.
"Regeneration, Economy and Growth",Business Durham CL0850,Premises,108099,Service Repairs and Maintenance,08/04/2021,3853690-13591,519.75,SAFEGUARD SECURITY (NE) LTD.
Children and Young Peoples Services,Head of Education and Skills,Transport,230008,Contract Hire,08/04/2021,3853691-212,"2,440.00",SAM MONTAGUE T/A 8 SEATER TRAVEL.
"Regeneration, Economy and Growth",Business Durham CL0850,Premises,108099,Service Repairs and Maintenance,08/04/2021,3853692-NEW14346,631.00,SANDERSON WEATHERALL LLP.
Children and Young Peoples Services,Head of Education and Skills,Transport,230007,Contract Hire,08/04/2021,3853697-5275-MARCH21,"2,260.00",SHAUN MILLS T/A ASM TRAVEL.
Children and Young Peoples Services,Head of Education and Skills,Transport,230007,Contract Hire,08/04/2021,3853698-200337,"1,170.00",SHERBURN TAXIS LTD.
"Regeneration, Economy and Growth",Corporate Property and Land,Supplies and Services,304221,Equipment and Materials,08/04/2021,3853699-0000117812,"2,000.00",SHORTS INDUSTRIES LTD T/A SHORTS LIFTS.
Children and Young Peoples Services,Head of Education and Skills,Transport,230008,Contract Hire,08/04/2021,3853700-21034,"1,919.44",SHOTTON PRIVATE HIRE.
Children and Young Peoples Services,Head of Education and Skills,Transport,230012,Contract Hire,08/04/2021,3853701-2024,"1,673.67",SIMONS TAXIS.
Children and Young Peoples Services,Head of Education and Skills,Transport,230012,Contract Hire,08/04/2021,3853701-2027-2,"1,723.95",SIMONS TAXIS.
Adult and Health Services,Head of Adults,Transport,230005,Contract Hire,08/04/2021,3853701-2028MAR,"1,640.00",SIMONS TAXIS.
Resources BK0010,Digital and Customer Services,Supplies and Services,342051,Computers and Communications,08/04/2021,3853702-INV02882971,"3,780.00",SOFTCAT LTD.
"Regeneration, Economy and Growth",Development and Housing,Construction work A908,908105,Construction work,08/04/2021,3853703-2021-066,"6,005.00",SOLMEK LTD.
Children and Young Peoples Services,Head of Education and Skills,Transport,230008,Contract Hire,08/04/2021,3853706-000570,"1,640.00",SPENNYMOOR TAXIS.
Children and Young Peoples Services,Head of Education and Skills,Transport,230008,Contract Hire,08/04/2021,3853706-000571,"1,940.00",SPENNYMOOR TAXIS.
Children and Young Peoples Services,Head of Education and Skills,Transport,230008,Contract Hire,08/04/2021,3853706-000572,"2,460.00",SPENNYMOOR TAXIS.
Children and Young Peoples Services,Head of Education and Skills,Transport,230012,Contract Hire,08/04/2021,3853706-000573,"1,100.00",SPENNYMOOR TAXIS.
Neighbourhoods and Climate Change,Environmental Services,Third Party Payments,430100,Rendered by Private Contractors,08/04/2021,3853707-0001583315,"2,252.77",SRCL LTD.
"Regeneration, Economy and Growth",Corporate Property and Land,Supplies and Services,304221,Equipment and Materials,08/04/2021,3853708-7498,"1,500.00",ST ASTIER LTD.
Children and Young Peoples Services,Head of Education and Skills,Transport,230003,Contract Hire,08/04/2021,3853710-56469,"3,120.00",STANLEY TRAVEL (NORTH EAST) LTD.
Children and Young Peoples Services,Head of Education and Skills,Transport,230003,Contract Hire,08/04/2021,3853710-56470,"3,700.00",STANLEY TRAVEL (NORTH EAST) LTD.
Children and Young Peoples Services,Head of Education and Skills,Transport,230003,Contract Hire,08/04/2021,3853710-56471,"3,900.00",STANLEY TRAVEL (NORTH EAST) LTD.
Children and Young Peoples Services,Head of Education and Skills,Transport,230003,Contract Hire,08/04/2021,3853710-56472,"3,820.00",STANLEY TRAVEL (NORTH EAST) LTD.
Children and Young Peoples Services,Head of Education and Skills,Transport,230003,Contract Hire,08/04/2021,3853710-56473,"3,480.00",STANLEY TRAVEL (NORTH EAST) LTD.
Children and Young Peoples Services,Head of Education and Skills,Transport,230007,Contract Hire,08/04/2021,3853710-56474,991.20,STANLEY TRAVEL (NORTH EAST) LTD.
Neighbourhoods and Climate Change,COVID19 - Neighbourhoods and Climate Change,Supplies and Services,338078,Services,08/04/2021,3853711-16731,"4,779.72",STEADFAST SECURITY SOLUTIONS LTD.
Neighbourhoods and Climate Change,COVID19 - Neighbourhoods and Climate Change,Supplies and Services,338078,Services,08/04/2021,3853711-16855,"5,141.82",STEADFAST SECURITY SOLUTIONS LTD.
Neighbourhoods and Climate Change,Environmental Services,Supplies and Services,338078,Services,08/04/2021,3853711-16859,"9,556.26",STEADFAST SECURITY SOLUTIONS LTD.
"Regeneration, Economy and Growth",Business Durham CL0850,Premises,108099,Service Repairs and Maintenance,08/04/2021,3853711-16861,"8,980.08",STEADFAST SECURITY SOLUTIONS LTD.
"Regeneration, Economy and Growth",Corporate Property and Land,Third Party Payments,430100,Rendered by Private Contractors,08/04/2021,3853711-16879,"1,520.84",STEADFAST SECURITY SOLUTIONS LTD.
Children and Young Peoples Services,Head of Early Help Inclusion & Vulnerable Children.,Supplies and Services,384199,Miscellaneous Expenses,08/04/2021,3853711-16928,518.00,STEADFAST SECURITY SOLUTIONS LTD.
"Regeneration, Economy and Growth",Business Durham CL0850,Premises,108099,Service Repairs and Maintenance,08/04/2021,3853711-16949,"2,548.00",STEADFAST SECURITY SOLUTIONS LTD.
Children and Young Peoples Services,Head of Education and Skills,Transport,230007,Contract Hire,08/04/2021,3853712-036-MAR21,569.50,STEPHEN BALL T/A ABBIE`S TAXIS..
Children and Young Peoples Services,Head of Education and Skills,Transport,230008,Contract Hire,08/04/2021,3853712-039-MAR21,"1,555.00",STEPHEN BALL T/A ABBIE`S TAXIS..
Children and Young Peoples Services,Head of Education and Skills,Transport,230007,Contract Hire,08/04/2021,3853713-754/2,"1,045.91",STEPHEN VALLANCE T/A SELECT CABS.
Children and Young Peoples Services,Head of Education and Skills,Transport,230010,Contract Hire,08/04/2021,3853714-20200011/A,"1,155.21",STEVE`S CABS (TAXIS).
Neighbourhoods and Climate Change,Technical Services CM0300,Third Party Payments,430100,Rendered by Private Contractors,08/04/2021,3853715-13749,"1,354.40",STONEGRAVE AGGREGATES LTD.
"Regeneration, Economy and Growth",Corporate Property and Land,Third Party Payments,430100,Rendered by Private Contractors,08/04/2021,3853717-180567,"2,337.00",SUPATINT LTD T/A SUPATINT WINDOW FILMS & BLINDS.
"Regeneration, Economy and Growth",Corporate Property and Land,Supplies and Services,304221,Equipment and Materials,08/04/2021,3853718-JE021341TLHLB,990.00,T MANNERS & SONS LTD.
Children and Young Peoples Services,Head of Education and Skills,Transport,230008,Contract Hire,08/04/2021,3853719-1646,"2,048.31",TALBOTS TAXIS.
Children and Young Peoples Services,Head of Education and Skills,Transport,230010,Contract Hire,08/04/2021,3853721-03/2021/005-2,"1,273.00",TARNS TAXIS LTD.
Children and Young Peoples Services,Head of Education and Skills,Transport,230007,Contract Hire,08/04/2021,3853723-4055/45,"3,720.00",TED WILFORD COACHES.
Children and Young Peoples Services,Head of Education and Skills,Transport,230007,Contract Hire,08/04/2021,3853723-4297/18,"3,720.00",TED WILFORD COACHES.
Neighbourhoods and Climate Change,Technical Services CM0300,Stock A926,926900,Stock in hand-Inventory system,08/04/2021,3853726-NSIN00052981,694.21,THOMAS OWEN & SONS (NEWCASTLE) LTD.
Adult and Health Services,Head of Adults,Transport,230005,Contract Hire,08/04/2021,3853728-0002223,"3,496.00",TONY RIDLEY T/A COLORS TAXIS LTD.
Children and Young Peoples Services,Head of Education and Skills,Transport,230006,Contract Hire,08/04/2021,3853728-2221,"1,740.00",TONY RIDLEY T/A COLORS TAXIS LTD.
Children and Young Peoples Services,Head of Education and Skills,Transport,230008,Contract Hire,08/04/2021,3853728-2224,"1,649.00",TONY RIDLEY T/A COLORS TAXIS LTD.
Children and Young Peoples Services,Head of Education and Skills,Transport,230008,Contract Hire,08/04/2021,3853728-2225,"4,109.20",TONY RIDLEY T/A COLORS TAXIS LTD.
Neighbourhoods and Climate Change,Environmental Services,Third Party Payments,430100,Rendered by Private Contractors,08/04/2021,3853729-TRNE025634,"1,722.60",TOTAL RESOURCES UK LTD.
Neighbourhoods and Climate Change,Environmental Services,Third Party Payments,430100,Rendered by Private Contractors,08/04/2021,3853729-TRNE025635,"1,566.00",TOTAL RESOURCES UK LTD.
Resources BK0010,Legal & Democratic Services,Supplies and Services,338042,Services,08/04/2021,3853734-286634/INVKI0146,500.00,TRINITY CHAMBERS.
Neighbourhoods and Climate Change,Environmental Services,Supplies and Services,342215,Computers and Communications,08/04/2021,3853737-48588,"4,031.28",UK TELEMATICS LTD.
Children and Young Peoples Services,Head of Early Help Inclusion & Vulnerable Children.,Supplies and Services,344033,Telephones,08/04/2021,3853738-207289,572.70,UNIFY BUSINESS SOLUTIONS LTD.
Resources BK0010,Digital and Customer Services,Supplies and Services,342007,Computers and Communications,08/04/2021,3853742-PC24729,"22,551.00",VODAFONE CORPORATE LTD.
Resources BK0010,Digital and Customer Services,Supplies and Services,344015,Telephones,08/04/2021,3853743-PB95775,"2,080.00",VODAFONE LTD.
Resources BK0010,Digital and Customer Services,Supplies and Services,344015,Telephones,08/04/2021,3853743-PC15891,"3,950.00",VODAFONE LTD.
Neighbourhoods and Climate Change,Technical Services CM0300,Supplies and Services,304358,Equipment and Materials,08/04/2021,3853744-48843,"1,635.00",W MARLEY AGRICULTURAL CONTRACTORS LTD.
Neighbourhoods and Climate Change,Technical Services CM0300,Supplies and Services,304358,Equipment and Materials,08/04/2021,3853744-49077,577.50,W MARLEY AGRICULTURAL CONTRACTORS LTD.
"Regeneration, Economy and Growth",Corporate Property and Land,Supplies and Services,304259,Equipment and Materials,08/04/2021,3853745-6069897,814.13,WATERLOGIC GB LTD.*
